{"text_format":"1","workbook":"xlsx","n_sheets":6,"sheets":["Mapning","DigiResolver","Setup","Feltmapning","Dokumentation","Temp"],"not_rendered":{"charts":0,"images":0,"macros":1,"external_links":0,"defined_names":9,"comments":6,"pivot_tables":0},"unopened":[],"bounds":{"document_bytes":16777216,"sheet_cells":100000,"rows_first":2000,"rows_last":500,"rows_between":2000,"halvings":0,"cell_chars":16384,"cell_head_chars":4096},"cells_cut":0,"cells_raw":0,"read":"whole","date_system":"1900"}

{"sheet":"Mapning","index":0,"n_rows":476,"n_cols":10,"rows_kept":476,"cut":false,"hidden":false,"merged":[]}
["SKATXML fil","SKATXML element","SKATXML type","OIO elementnavn","OIOXML type","OIO skemafilnavn","Noter","Transient","Path","Keywords"]
["AktierSpecifikation.xsd","AktierSpecifikationGevinstTabAktierMarked","skat2020:BeløbType","2608580_AktierSpecifikationGevinstTabAktierMarkedBeloeb","decimal",{"$f":"IF(AND(D2<>\"\",B2<>\"-\",ISERROR(FIND(\"_\",D2))),CONCATENATE(D2,\".xsd\"),\"\")","v":""}]
["AktierSpecifikation.xsd","AktierSpecifikationUdbytteEjDkAktierEjMarked","skat2020:BeløbType","2608615_AktierSpecifikationUdbytteEjDkAktierEjMarkedBeloeb","decimal",{"$f":"IF(AND(D3<>\"\",B3<>\"-\",ISERROR(FIND(\"_\",D3))),CONCATENATE(D3,\".xsd\"),\"\")","v":""}]
["AktierSpecifikation.xsd","AktierSpecifikationUdbytteEjDkAktierMarked","skat2020:BeløbType","2608626_AktierSpecifikationUdbytteEjDkAktierMarkedBeloeb","decimal",""]
["AktierSpecifikation.xsd","AktierSpecifikationUdbytteEjUdbytteSkat","skat2020:BeløbType","2608638_AktierSpecifikationUdbytteEjUdbytteSkatBeloeb","decimal",""]
["AktierSpecifikation.xsd","AktierSpecifikationUdbytteDkAktierEjMarked","skat2020:BeløbType","2608593_AktierSpecifikationUdbytteDkAktierEjMarkedBeloeb","decimal",""]
["AktierSpecifikation.xsd","AktierSpecifikationUdbytteDkAktierMarked","skat2020:BeløbType","2608604_AktierSpecifikationUdbytteDkAktierMarkedBeloeb","decimal",""]
["AktierSpecifikation.xsd","AktierSpecifikationUdbytteUdenlandskAktierMarked","skat2020:BeløbType","2608652_AktierSpecifikationUdbytteUdenlandskAktierMarkedBeloeb","decimal",""]
["AktierSpecifikation.xsd","AktierSpecifikationUdbytteUdlodningEjUdbytteSkat","skat2020:BeløbType","2608668_AktierSpecifikationUdbytteUdlodningEjUdbytteSkatBeloeb","decimal",""]
["AktierSpecifikation.xsd","AktierSpecifikationAktiebaseretInvesteringBeløb","skat2020:BeløbDanskType","5775091_AktierSpecifikationAktiebaseretInvesteringBeloeb","decimal",""]
["AktierSpecifikation.xsd","AktierSpecifikationUdenlandskAktiebaseretInvesteringBeløb","skat2020:BeløbDanskType","5775126_AktierSpecifikationUdenlandskAktiebaseretInvesteringBeloeb","decimal",""]
["AktierSpecifikation.xsd","AktierSpecifikationTabUdenlandskAktiebaseretInvesteringTilÆgtefælleBeløb","skat2020:BeløbDanskType","5775141_AktierSpecifikationTabUdenlandskAktiebaseretInvesteringTilAegtefaelleBeloeb","decimal",""]
["AktierSpecifikation.xsd","AktierSpecifikationTabUdenlandskAktiebaseretInvesteringFraÆgtefælleBeløb","skat2020:BeløbDanskType","5775156_AktierSpecifikationTabUdenlandskAktiebaseretInvesteringFraAegtefaelleBeloeb","decimal",""]
["Aktieskat.xsd","AktieskatBeløb","skat2020:BeløbDanskType","5544082_AktieskatBeloeb","decimal",""]
["Aktieskat.xsd","AktieskatGrundBeløb","skat2020:BeløbDanskType","5545518_AktieskatGrundBeloeb","decimal",""]
["Aktieskat.xsd","AktieskatManueltNettoBeløb","skat2020:BeløbDanskType","5545533_AktieskatManueltNettoBeloeb","decimal",""]
["Aktieskat.xsd","AktieskatDBOGrundBeløb","skat2020:BeløbDanskType","5545548_AktieskatDBOGrundBeloeb","decimal",""]
["AlternativAdresse.xsd","AlternativAdresseAdresseLinie1","skat2020:AdresseLinieType","6121_PostalAddressFirstLineText","string",""]
["AlternativAdresse.xsd","AlternativAdresseAdresseLinie2","skat2020:AdresseLinieType","2684_PostalAddressSecondLineText","string",""]
["AlternativAdresse.xsd","AlternativAdresseAdresseLinie3","skat2020:AdresseLinieType","5147_PostalAddressThirdLineText","string",""]
["AlternativAdresse.xsd","AlternativAdresseAdresseLinie4","skat2020:AdresseLinieType","1889_PostalAddressFourthLineText","string",""]
["AlternativAdresse.xsd","AlternativAdresseAdresseLinie5","skat2020:AdresseLinieType","839_PostalAddressFifthLineText","string",""]
["AlternativAdresse.xsd","AlternativAdresseAdresseLinie6","skat2020:AdresseLinieType","4803_PostalAddressSixthLineText","string",""]
["AlternativAdresse.xsd","AlternativAdresseAdresseLinie7","skat2020:AdresseLinieType","2547941_AlternativAdresseAdresseLinie7Text","string",""]
["AMBidrag.xsd","AMBidragBeløb","skat2020:BeløbDanskType","5545563_AMBidragBeloeb","decimal",""]
["AMBidrag.xsd","AMBidragNettoBeløb","skat2020:BeløbDanskType","5545578_AMBidragNettoBeloeb","decimal",""]
["ArbejdsgiverAdministreretBidrag.xsd","ArbejdsgiverAdministreretBidragIndskudPåAlderpension","skat2020:BeløbDanskType","2606411_ArbejdsgiverAdministreretBidragIndskudPaaAlderpensionBeloeb","decimal",""]
["ArbejdsgiverAdministreretBidrag.xsd","ArbejdsgiverAdministreretBidragIndskudAldersopsparingDISBeløb","skat2020:BeløbDanskType","5775171_ArbejdsgiverAdministreretBidragIndskudAldersopsparingDISBeloeb","decimal",""]
["BefordringsFradrag.xsd","BefordringsFradragBeløb","skat2020:BeløbDanskType","2547236_BefordringsFradragBeloeb","decimal",""]
["BefordringsFradrag.xsd","BefordringsFradragBeregnet","skat2020:BeløbDanskType","5545593_BefordringsFradragBeregnetBeloeb","decimal",""]
["BegraensetSkattepligtig.xsd","BegrænsetSkattepligtigDISNedslag","skat2020:BeløbDanskType","5545608_BegraensetSkattepligtigDISNedslagBeloeb","decimal",""]
["BegraensetSkattepligtig.xsd","BegrænsetSkattepligtigUdenlandskIndkomstHalvLempelseNedslag","skat2020:BeløbDanskType","5545623_BegraensetSkattepligtigUdenlandskIndkomstHalvLempelseNedslagBeloeb","decimal",""]
["BeregnetKapitalIndkomst.xsd","BeregnetKapitalIndkomstOverskydendeTotalNedslagGrænse","skat2020:BeløbDanskType","5545638_BeregnetKapitalIndkomstOverskydendeTotalNedslagGraenseBeloeb","decimal",""]
["BeregnetPersonligIndkomst.xsd","BeregnetPersonligIndkomstGrænse","skat2020:BeløbDanskType","5545653_BeregnetPersonligIndkomstGraenseBeloeb","decimal",""]
["Beregningsgrundlag.xsd","BeregningsgrundlagGammel2001","skat2020:BeløbDanskType","5545668_BeregningsgrundlagGammel2001Beloeb","decimal",""]
["Beregningsgrundlag.xsd","BeregningsgrundlagNy2002","skat2020:BeløbDanskType","5545683_BeregningsgrundlagNy2002Beloeb","decimal",""]
["Beregningsgrundlag.xsd","BeregningsgrundlagBeløb","skat2020:BeløbDanskType","5545698_BeregningsgrundlagBeloebBeloeb","decimal",""]
["Beregningsgrundlag.xsd","BeregningsgrundlagSamletGammel2001","skat2020:BeløbDanskType","5545713_BeregningsgrundlagSamletGammel2001Beloeb","decimal",""]
["Beregningsgrundlag.xsd","BeregningsgrundlagSamletNy2002","skat2020:BeløbDanskType","5545728_BeregningsgrundlagSamletNy2002Beloeb","decimal",""]
["Beskaeftigelse.xsd","BeskæftigelseByggeAnlægMontering","skat2020:Tekst1Type","5545743_BeskaeftigelseByggeAnlaegMonteringIndikator","string",""]
["Beskaeftigelse.xsd","BeskæftigelseJournalist","skat2020:Tekst1Type","5545758_BeskaeftigelseJournalistIndikator","string",""]
["Beskaeftigelse.xsd","BeskæftigelseMyndighed","skat2020:Tekst1Type","5545773_BeskaeftigelseMyndighedIndikator","string",""]
["Beskaeftigelse.xsd","BeskæftigelseSystemeksport","skat2020:Tekst1Type","5545788_BeskaeftigelseSystemeksportIndikator","string",""]
["Beskaeftigelse.xsd","BeskæftigelseTekniskEkspert","skat2020:Tekst1Type","5545803_BeskaeftigelseTekniskEkspertIndikator","string",""]
["BeskaeftigelsesFradrag.xsd","BeskæftigelsesFradragBeløb","skat2020:BeløbDanskType","2547245_BeskaeftigelsesFradragBeloeb","decimal",""]
["BeskaeftigelsesFradrag.xsd","BeskæftigelsesFradragEnligForsørger","skat2020:BeløbDanskType","2748243_BeskaeftigelsesFradragEnligForsoergerBeloeb","decimal",""]
["BlanketFelt.xsd","BlanketFeltNummer","skat2020:TalHelType","217_BlanketFeltNummerIdentifikator","integer",""]
["Bundskat.xsd","BundskatTotal","skat2020:BeløbDanskType","5545818_BundskatTotalBeloeb","decimal",""]
["Bundskat.xsd","BundskatManueltNettoBeløb","skat2020:BeløbDanskType","5545833_BundskatManueltNettoBeloeb","decimal",""]
["BundskatFradrag.xsd","BundskatFradragBeløb","skat2020:BeløbDanskType","5545848_BundskatFradragBeloeb","decimal",""]
["BundskatFradrag.xsd","BundskatFradragModregnetværdi","skat2020:BeløbDanskType","5545863_BundskatFradragModregnetvaerdiBeloeb","decimal",""]
["CFCIndkomst.xsd","CFCIndkomstBeløb","skat2020:BeløbDanskType","5546578_CFCIndkomstBeloeb","decimal",""]
["CFCIndkomst.xsd","CFCIndkomstNedslagBeløb","skat2020:BeløbDanskType","5546593_CFCIndkomstNedslagBeloeb","decimal",""]
["CFCskat.xsd","CFCskatBeløb","skat2020:BeløbDanskType","5546608_CFCskatBeloeb","decimal",""]
["CFCskat.xsd","CFCskatManueltNettoBeløb","skat2020:BeløbDanskType","5546623_CFCskatManueltNettoBeloeb","decimal",""]
["DISIndkomst.xsd","DISIndkomstBundskatNedslag","skat2020:BeløbDanskType","5546662_DISIndkomstBundskatNedslagBeloeb","decimal",""]
["DISIndkomst.xsd","DISIndkomstNedslagBeløb","skat2020:BeløbDanskType","5546683_DISIndkomstNedslagBeloeb","decimal",""]
["Ejendom.xsd","EjendomNummer","skat2020:EjendomNummerType","2280_MunicipalRealPropertyIdentifier","string",""]
["EjendomAngivelse.xsd","EjendomAngivelseEjendomstype","skat2020:KodeEtCifferStartNulType","2608965_EjendomAngivelseEjendomstypeKode","string",""]
["EjendomAngivelse.xsd","EjendomAngivelseOvertagelsesdato","skat2020:DatoType","5546698_EjendomAngivelseOvertagelsesdatoDato","date",""]
["EjendomAngivelse.xsd","EjendomAngivelseIndflytningsdato","skat2020:DatoType","2609074_EjendomAngivelseOvertagelseDato","date",""]
["EjendomAngivelse.xsd","EjendomAngivelseIndflytningEfterIndkomstår","skat2020:MarkeringType","2609041_EjendomAngivelseIndflytningEfterIndkomstaarIndikator","boolean",""]
["EjendomAngivelse.xsd","EjendomAngivelseUdflytningsdato","skat2020:DatoType","2609096_EjendomAngivelseUdflytningDato","date",""]
["EjendomAngivelse.xsd","EjendomAngivelseKøberOvertagelsesdato","skat2020:DatoType","5546728_EjendomAngivelseKoeberOvertagelsesdatoDato","date",""]
["EjendomAngivelse.xsd","EjendomAngivelseUbeboeligdage","skat2020:TalHel5Type","2609085_EjendomAngivelseUbeboeligdageKvantitet","integer",""]
["EjendomAngivelse.xsd","EjendomAngivelseDelvisUdlejningsdage","skat2020:TalHel3Type","2608954_EjendomAngivelseDelvisUdlejningsdageKvantitet","integer",""]
["EjendomAngivelse.xsd","EjendomAngivelseDelvisUdlejningsandel","skat2020:VærdiProcentType","2608755_EjendomAngivelseDelvisUdlejningsandelProcent","decimal",{"$f":"IF(AND(D67<>\"\",B67<>\"-\",ISERROR(FIND(\"_\",D67))),CONCATENATE(D67,\".xsd\"),\"\")","v":""}]
["EjendomAngivelse.xsd","EjendomAngivelseHelUdlejningsdage","skat2020:TalHel3Type","2609031_EjendomAngivelseHelUdlejningsdageKvantitet","integer",""]
["EjendomAngivelse.xsd","EjendomAngivelseErhvervsanvendelsesandel","skat2020:VærdiProcentType","2608998_EjendomAngivelseErhvervsanvendelsesandelProcent","decimal",""]
["EjendomAngivelse.xsd","EjendomAngivelseErhvervsanvendelsesdage","skat2020:TalHel3Type","2609009_EjendomAngivelseErhvervsanvendelsesdageKvantitet","integer",""]
["EjendomAngivelse.xsd","EjendomAngivelseErhvervsudlejningsdage","skat2020:TalHel3Type","2609020_EjendomAngivelseErhvervsudlejningsdageKvantitet","integer",""]
["EjendomAngivelse.xsd","EjendomAngivelseUdlejningBundfradrag","skat2020:MarkeringType","5775186_EjendomAngivelseUdlejningBundfradragIndikator","boolean",""]
["EjendomEjerskab.xsd","EjendomEjerskabErhvervetFør1998","skat2020:MarkeringType","5546713_EjendomEjerskabErhvervetFoer1998Indikator","boolean",""]
["EjendomEjerskab.xsd","EjendomEjerskabEjerandel","skat2020:VærdiProcentType","5546917_EjendomEjerskabEjerandelProcent","decimal",""]
["EjendomEjerskab.xsd","EjendomEjerskabErhvervetFør2007","skat2020:MarkeringType","5546932_EjendomEjerskabErhvervetFoer2007Indikator","boolean",""]
["Ejendomsvaerdi.xsd","EjendomsværdiSamlet","skat2020:BeløbDanskType","5546947_EjendomsvaerdiSamletBeloeb","decimal",""]
["Ejendomvaerdiskat.xsd","EjendomværdiskatBeløb","skat2020:BeløbDanskType","5546962_EjendomvaerdiskatBeloeb","decimal",""]
["Ejendomvaerdiskat.xsd","EjendomværdiskatBeregnetSum","skat2020:BeløbDanskType","5546977_EjendomvaerdiskatBeregnetSumBeloeb","decimal",""]
["EjReguleretGevinst.xsd","EjReguleretGevinstUdenlandsk","skat2020:BeløbDanskType","5546992_EjReguleretGevinstUdenlandskBeloeb","decimal",""]
["EjReguleretUdbytte.xsd","EjReguleretUdbytteUdenlandsk","skat2020:BeløbDanskType","5547007_EjReguleretUdbytteUdenlandskBeloeb","decimal",""]
["FastEjendomTab.xsd","FastEjendomTabBeløb","skat2020:BeløbDanskType","2547200_FastEjendomTabBeloeb","decimal",""]
["Fly.xsd","FlyOpgave","skat2020:Tekst1Type","5547022_FlyOpgaveIndikator","string",""]
["Fly.xsd","FlyInternationalt","skat2020:Tekst1Type","5547037_FlyInternationaltIndikator","string",""]
["Fly.xsd","FlySelskabNavn","skat2020:TekstLangType","5548836_FlySelskabNavnTekst","string",""]
["Fly.xsd","FlyFastBesætning","skat2020:Tekst1Type","5548851_FlyFastBesaetningIndikator","string",""]
["Fly.xsd","FlySelskabKode","skat2020:TekstKortType","5548866_FlySelskabKodeTekst","string",""]
["Forskerskat.xsd","ForskerskatBeløb","skat2020:BeløbDanskType","5548881_ForskerskatBeloeb","decimal",""]
["Forskerskat.xsd","ForskerskatManueltNettoBeløb","skat2020:BeløbDanskType","5548896_ForskerskatManueltNettoBeloeb","decimal",""]
["Indkomst.xsd","IndkomstPeriodeFra","skat2020:DatoType","3700058_IndkomstPeriodeFraDato","date",""]
["Indkomst.xsd","IndkomstPeriodeTil","skat2020:DatoType","3700082_IndkomstPeriodeTilDato","date",""]
["IndkomstskatFradrag.xsd","IndkomstskatFradragBeløb","skat2020:BeløbDanskType","5548926_IndkomstskatFradragBeloeb","decimal",""]
["IndkomstskatFradrag.xsd","IndkomstskatFradragModregnetværdi","skat2020:BeløbDanskType","5548941_IndkomstskatFradragModregnetvaerdiBeloeb","decimal",""]
["KapitalafkastOrdning.xsd","KapitalafkastOrdningVirksomhedsbeskatningKonjunktur","skat2020:BeløbDanskType","5549498_KapitalafkastOrdningVirksomhedsbeskatningKonjunkturBeloeb","decimal",""]
["KapitalafkastOrdning.xsd","KapitalafkastOrdningKapitalafkast","skat2020:BeløbDanskType","5549514_KapitalafkastOrdningKapitalafkastBeloeb","decimal",""]
["KapitalIndkomst.xsd","KapitalIndkomstAndenKapitalIndkomst","skat2020:BeløbDanskType","2609183_KapitalIndkomstAndenKapitalIndkomstBeloeb","decimal",""]
["KapitalIndkomst.xsd","KapitalIndkomstRenteIndtægt","skat2020:BeløbDanskType","2609346_KapitalIndkomstRenteIndtaegtBeloeb","decimal",""]
["KapitalIndkomst.xsd","KapitalIndkomstGevinstTabAktierBevisInvesteringsSelskab","skat2020:BeløbDanskType","2609227_KapitalIndkomstGevinstTabAktierBevisInvesteringsSelskabBeloeb","decimal",""]
["KapitalIndkomst.xsd","KapitalIndkomstGevinstTabObligationerEjMarked","skat2020:BeløbDanskType","2609238_KapitalIndkomstGevinstTabObligationerEjMarkedBeloeb","decimal",""]
["KapitalIndkomst.xsd","KapitalIndkomstGevinstTabObligationerMarked","skat2020:BeløbDanskType","2609260_KapitalIndkomstGevinstTabObligationerMarkedBeloeb","decimal",""]
["KapitalIndkomst.xsd","KapitalIndkomstFinansielleKontrakter","skat2020:BeløbDanskType","2609216_KapitalIndkomstFinansielleKontrakterBeloeb","decimal",""]
["KapitalIndkomst.xsd","KapitalIndkomstReserveFondsUdlodningVærdiStigning","skat2020:BeløbDanskType","2609860_KapitalIndkomstReserveFondsUdlodningVaerdiStigningBeloeb","decimal",""]
["KapitalIndkomst.xsd","KapitalIndkomstUdbytteUdlodningInvesteringsForening","skat2020:BeløbDanskType","2609872_KapitalIndkomstUdbytteUdlodningInvesteringsForeningBeloeb","decimal",""]
["KapitalIndkomst.xsd","KapitalIndkomstNettoLejeIndtægt","skat2020:BeløbDanskType","2609291_KapitalIndkomstNettoLejeIndtaegtBeloeb","decimal",""]
["KapitalIndkomst.xsd","KapitalIndkomstGevinstTabObligationerInvesteringForening","skat2020:BeløbDanskType","2609249_KapitalIndkomstGevinstTabObligationerInvesteringForeningBeloeb","decimal",""]
["KapitalIndkomst.xsd","KapitalIndkomstRenteIndtægtVirksomhed","skat2020:BeløbType","5074713_KapitalIndkomstRenteIndtaegtVirksomhedBeloeb","decimal",""]
["Kirkeskat.xsd","KirkeskatBeløb","skat2020:BeløbDanskType","5549529_KirkeskatBeloeb","decimal",""]
["Kirkeskat.xsd","KirkeskatManueltNettoBeløb","skat2020:BeløbDanskType","5549545_KirkeskatManueltNettoBeloeb","decimal",""]
["Kirkeskat.xsd","KirkeskatNedslagPeriodeBeløb","skat2020:BeløbDanskType","5549567_KirkeskatNedslagPeriodeBeloeb","decimal",""]
["KommunalIndkomstskat.xsd","KommunalIndkomstskatBeløb","skat2020:BeløbDanskType","5549584_KommunalIndkomstskatBeloeb","decimal",""]
["KommunalIndkomstskat.xsd","KommunalIndkomstskatNedslagBeløb","skat2020:BeløbType","5550211_KommunalIndkomstskatNedslagBeloeb","decimal",""]
["KommunalIndkomstskat.xsd","KommunalIndkomstskatManueltNettoBeløb","skat2020:BeløbDanskType","5550362_KommunalIndkomstskatManueltNettoBeloeb","decimal",""]
["KommuneskatFradrag.xsd","KommuneskatFradragBeløb","skat2020:BeløbDanskType","5550377_KommuneskatFradragBeloeb","decimal",""]
["KommuneskatFradrag.xsd","KommuneskatFradragModregnetværdi","skat2020:BeløbDanskType","5550392_KommuneskatFradragModregnetvaerdiBeloeb","decimal",""]
["Konkursskat.xsd","KonkursskatBeløb","skat2020:BeløbDanskType","5550407_KonkursskatBeloeb","decimal",""]
["Konkursskat.xsd","KonkursskatManueltNettoBeløb","skat2020:BeløbDanskType","5550422_KonkursskatManueltNettoBeloeb","decimal",""]
["KunstnerVirksomhedOrdning.xsd","KunstnerVirksomhedOrdningIndkomstTilBeskatning","skat2020:BeløbDanskType","5550437_KunstnerVirksomhedOrdningIndkomstTilBeskatningBeloeb","decimal",""]
["KunstnerVirksomhedOrdning.xsd","KunstnerVirksomhedOrdningBeløbOverførtFraKonto","skat2020:BeløbDanskType","5550452_KunstnerVirksomhedOrdningBeloebOverfoertFraKontoBeloeb","decimal",""]
["Land.xsd","LandKode","skat2020:AdresseLandKodeType","1965_CountryIdentificationCode","string",""]
["LigningsmaessigtFradrag.xsd","LigningsmæssigtFradragAkasse","skat2020:BeløbDanskType","2547227_LigningsmaessigtFradragAkasseBeloeb","decimal",""]
["LigningsmaessigtFradrag.xsd","LigningsmæssigtFradragBørneDagplejereFiskere","skat2020:BeløbDanskType","2547254_LigningsmaessigtFradragBoerneDagplejereFiskereBeloeb","decimal",""]
["LigningsmaessigtFradrag.xsd","LigningsmæssigtFradragRejseUdgifter","skat2020:BeløbDanskType","2547317_LigningsmaessigtFradragRejseUdgifterBeloeb","decimal",""]
["LigningsmaessigtFradrag.xsd","LigningsmæssigtFradragFagligtKontingent","skat2020:BeløbDanskType","2547263_LigningsmaessigtFradragFagligtKontingentBeloeb","decimal",""]
["LigningsmaessigtFradrag.xsd","LigningsmæssigtFradragGaverForeninger","skat2020:BeløbDanskType","2547272_LigningsmaessigtFradragGaverForeningerBeloeb","decimal",""]
["LigningsmaessigtFradrag.xsd","LigningsmæssigtFradragGaverKulturForskning","skat2020:BeløbDanskType","2547281_LigningsmaessigtFradragGaverKulturForskningBeloeb","decimal",""]
["LigningsmaessigtFradrag.xsd","LigningsmæssigtFradragIndskudEtableringsKonto","skat2020:BeløbDanskType","2547290_LigningsmaessigtFradragIndskudEtableringsKontoBeloeb","decimal",""]
["LigningsmaessigtFradrag.xsd","LigningsmæssigtFradragKontingentVirksomhed","skat2020:BeløbDanskType","2547299_LigningsmaessigtFradragKontingentVirksomhedBeloeb","decimal",""]
["LigningsmaessigtFradrag.xsd","LigningsmæssigtFradragLøbendeYdelserForeninger","skat2020:BeløbDanskType","2547308_LigningsmaessigtFradragLoebendeYdelserForeningerBeloeb","decimal",""]
["LigningsmaessigtFradrag.xsd","LigningsmæssigtFradragUdgifterFrededeBygninger","skat2020:BeløbDanskType","2547378_LigningsmaessigtFradragUdgifterFrededeBygningerBeloeb","decimal",""]
["LigningsmaessigtFradrag.xsd","LigningsmæssigtFradragUdgifterServiceFradrag","skat2020:BeløbDanskType","2547387_LigningsmaessigtFradragUdgifterServiceFradragBeloeb","decimal",""]
["LigningsmaessigtFradrag.xsd","LigningsmæssigtFradragUnderholdsBidragBørneBidrag","skat2020:BeløbDanskType","2547396_LigningsmaessigtFradragUnderholdsBidragBoerneBidragBeloeb","decimal",""]
["LigningsmaessigtFradrag.xsd","LigningsmæssigtFradragØvrigeLønmodtagerUdgifter","skat2020:BeløbDanskType","2547405_LigningsmaessigtFradragOEvrigeLoenmodtagerUdgifterBeloeb","decimal",{"$f":"IF(AND(D131<>\"\",B131<>\"-\",ISERROR(FIND(\"_\",D131))),CONCATENATE(D131,\".xsd\"),\"\")","v":""}]
["LigningsmaessigtFradrag.xsd","LigningsmæssigtFradragEfterlønsbidragGrænsegænger","skat2020:BeløbDanskType","5550467_LigningsmaessigtFradragEfterloensbidragGraensegaengerBeloeb","decimal",""]
["LigningsmaessigtFradrag.xsd","LigningsmæssigtFradragSøfradrag","skat2020:BeløbDanskType","5550482_LigningsmaessigtFradragSoefradragBeloeb","decimal",""]
["LigningsmaessigtFradrag.xsd","LigningsmæssigtFradragDISFradragAndenFart","skat2020:BeløbDanskType","5550497_LigningsmaessigtFradragDISFradragAndenFartBeloeb","decimal",""]
["LigningsmaessigtFradrag.xsd","LigningsmæssigtFradragBørneDagplejereStandard","skat2020:BeløbDanskType","2748254_LigningsmaessigtFradragBoerneDagplejereStandardBeloeb","decimal",""]
["LigningsmaessigtFradrag.xsd","LigningsmæssigtFradragMedarbejdendeÆgtefælleSygeArbejdsskadeForsikring","skat2020:BeløbDanskType","2748265_LigningsmaessigtFradragMedarbejdendeAegtefaelleSygeArbejdsskadeForsikringBeloeb","decimal",""]
["LigningsmaessigtFradrag.xsd","LigningsmæssigtFradragUdenlandskExemption","skat2020:BeløbDanskType","5551004_LigningsmaessigtFradragUdenlandskExemptionBeloeb","decimal",""]
["LigningsmaessigtFradrag.xsd","LigningmæssigtFradragUdenlandskCredit","skat2020:BeløbDanskType","5551019_LigningmaessigtFradragUdenlandskCreditBeloeb","decimal",""]
["MedarbejdendeAEgtefaelle.xsd","MedarbejdendeÆgtefælleIndkomst","skat2020:BeløbDanskType","5567064_MedarbejdendeAegtefaelleIndkomstBeloeb","decimal",""]
["MedarbejdendeAEgtefaelle.xsd","MedarbejdendeÆgtefælleIndkomstEfterAMBidrag","skat2020:BeløbDanskType","5551035_MedarbejdendeAegtefaelleIndkomstEfterAMBidragBeloeb","decimal",""]
["NedslagAktieskat.xsd","NedslagAktieskatDBOUnderOgOverBeløb","skat2020:BeløbDanskType","5554434_NedslagAktieskatDBOUnderOgOverBeloeb","decimal",""]
["NedslagAktieskat.xsd","NedslagAktieskatUdenlandskEjReguleretUnderOgOverGrundBeløb","skat2020:BeløbDanskType","5554458_NedslagAktieskatUdenlandskEjReguleretUnderOgOverGrundBeloeb","decimal",""]
["NedslagAktieskat.xsd","NedslagAktieskatDBOBeløb","skat2020:BeløbDanskType","5554473_NedslagAktieskatDBOBeloeb","decimal",""]
["NedslagAktieskat.xsd","NedslagAktieskatReguleretUdenlandskGrundBeløb","skat2020:BeløbDanskType","5554488_NedslagAktieskatReguleretUdenlandskGrundBeloeb","decimal",""]
["NedslagAktieskat.xsd","NedslagAktieskatUdenlandskOverGrundBeløb","skat2020:BeløbDanskType","5554503_NedslagAktieskatUdenlandskOverGrundBeloeb","decimal",""]
["NedslagAktieskat.xsd","NedslagAktieskatEjReguleretGrundBeløb","skat2020:BeløbDanskType","5554518_NedslagAktieskatEjReguleretGrundBeloeb","decimal",""]
["NedslagAktieskat.xsd","NedslagAktieskatUdenlandskEjReguleretBeløb","skat2020:BeløbDanskType","5554533_NedslagAktieskatUdenlandskEjReguleretBeloeb","decimal",""]
["NedslagBundskat.xsd","NedslagBundskatUdenlandskVirksomhedOverskud","skat2020:BeløbDanskType","5554549_NedslagBundskatUdenlandskVirksomhedOverskudBeloeb","decimal",""]
["NedslagBundskat.xsd","NedslagBundskatUdenlandskPersonligIndkomstGammelExemption","skat2020:BeløbDanskType","5554564_NedslagBundskatUdenlandskPersonligIndkomstGammelExemptionBeloeb","decimal",""]
["NedslagBundskat.xsd","NedslagBundskatUdenlandskPersonligIndkomstExemption","skat2020:BeløbDanskType","5554579_NedslagBundskatUdenlandskPersonligIndkomstExemptionBeloeb","decimal",""]
["NedslagBundskat.xsd","NedslagBundskatUdenlandskKapitalIndkomstVirksomhed","skat2020:BeløbDanskType","5554594_NedslagBundskatUdenlandskKapitalIndkomstVirksomhedBeloeb","decimal",""]
["NedslagBundskat.xsd","NedslagBundskatUdenlandskKapitalIndkomstGammelExemption","skat2020:BeløbDanskType","5554609_NedslagBundskatUdenlandskKapitalIndkomstGammelExemptionBeloeb","decimal",""]
["NedslagBundskat.xsd","NedslagBundskatUdenlandskKapitalIndkomstCredit","skat2020:BeløbDanskType","5554624_NedslagBundskatUdenlandskKapitalIndkomstCreditBeloeb","decimal",""]
["NedslagBundskat.xsd","NedslagBundkskatUdenlandskPensionExemptionSærligOrdning","skat2020:BeløbDanskType","5554639_NedslagBundkskatUdenlandskPensionExemptionSaerligOrdningBeloeb","decimal",""]
["NedslagBundskat.xsd","NedslagBundskatUdenlandskIndkomstHalvLempelse","skat2020:BeløbDanskType","5554656_NedslagBundskatUdenlandskIndkomstHalvLempelseBeloeb","decimal",""]
["NedslagBundskat.xsd","NedslagBundskatUdenlandskIndkomst33A","skat2020:BeløbDanskType","5554671_NedslagBundskatUdenlandskIndkomst33ABeloeb","decimal",""]
["NedslagBundskat.xsd","NedslagBundskatUdenlandskIndkomstCredit","skat2020:BeløbDanskType","5554686_NedslagBundskatUdenlandskIndkomstCreditBeloeb","decimal",""]
["NedslagBundskat.xsd","NedslagBundskatUdenlandskIndkomstExemption","skat2020:BeløbDanskType","5554720_NedslagBundskatUdenlandskIndkomstExemptionBeloeb","decimal",""]
["NedslagBundskat.xsd","NedslagBundskatUdenlandskPensionSærligOrdningCredit","skat2020:BeløbDanskType","5554735_NedslagBundskatUdenlandskPensionSaerligOrdningCreditBeloeb","decimal",""]
["NedslagBundskat.xsd","NedslagBundskatUndelandskKapitalindkomstExemtion","skat2020:BeløbDanskType","5554750_NedslagBundskatUndelandskKapitalindkomstExemtionBeloeb","decimal",""]
["NedslagNegativKapitalIndkomst.xsd","NedslagNegativKapitalIndkomstBeløb","skat2020:BeløbDanskType","5554765_NedslagNegativKapitalIndkomstBeloeb","decimal",""]
["NedslagNegativKapitalIndkomst.xsd","NedslagNegativKapitalIndkomstÆgtefælle","skat2020:BeløbDanskType","5554780_NedslagNegativKapitalIndkomstAegtefaelleBeloeb","decimal",""]
["NedslagUdenlandskAktieudbytte.xsd","NedslagUdenlandskAktieudbytteCredit","skat2020:BeløbDanskType","5554795_NedslagUdenlandskAktieudbytteCreditBeloeb","decimal",""]
["NedslagUdenlandskIndkomst.xsd","NedslagUdenlandskIndkomst33A","skat2020:BeløbDanskType","5554825_NedslagUdenlandskIndkomst33ABeloeb","decimal",""]
["NedslagUdenlandskIndkomst.xsd","NedslagUdenlandskIndkomstGammelExemption","skat2020:BeløbDanskType","5554840_NedslagUdenlandskIndkomstGammelExemptionBeloeb","decimal",""]
["NedslagUdenlandskIndkomst.xsd","NedslagUdenlandskIndkomstPersonligIndkomstCredit","skat2020:BeløbDanskType","5554856_NedslagUdenlandskIndkomstPersonligIndkomstCreditBeloeb","decimal",""]
["NedslagUdenlandskIndkomst.xsd","NedslagUdenlandskIndkomstVirksomhedsbeskatningCredit","skat2020:BeløbDanskType","5554876_NedslagUdenlandskIndkomstVirksomhedsbeskatningCreditBeloeb","decimal",""]
["NedslagUdenlandskIndkomst.xsd","NedslagUdenlandskIndkomstHalvLempelse","skat2020:BeløbDanskType","5554810_NedslagUdenlandskIndkomstHalvLempelseBeloeb","decimal",""]
["NedslagUdenlandskIndkomst.xsd","NedslagUdenlandskIndkomstHalvLempelseMedAcontoAMBidrag","skat2020:BeløbDanskType","5554907_NedslagUdenlandskIndkomstHalvLempelseMedAcontoAMBidragBeloeb","decimal",""]
["NedslagUdenlandskKapitalIndkomst.xsd","NedslagUdenlandskKapitalIndkomstCredit","skat2020:BeløbDanskType","5554922_NedslagUdenlandskKapitalIndkomstCreditBeloeb","decimal",""]
["NedslagUdenlandskKapitalIndkomst.xsd","NedslagUdenlandskKapitalIndkomstBeløb","skat2020:BeløbDanskType","5554937_NedslagUdenlandskKapitalIndkomstBeloeb","decimal",""]
["NedslagUdenlandskKapitalIndkomst.xsd","NedslagUdenlandskKapitalIndkomst33G","skat2020:BeløbDanskType","5554952_NedslagUdenlandskKapitalIndkomst33GBeloeb","decimal",""]
["NedslagUdenlandskKapitalIndkomst.xsd","NedslagUdenlandskKapitalIndkomstGammelExemption","skat2020:BeløbDanskType","5554967_NedslagUdenlandskKapitalIndkomstGammelExemptionBeloeb","decimal",""]
["NedslagUdenlandskKapitalIndkomst.xsd","NedslagUdenlandskKapitalIndkomstVirksomhed","skat2020:BeløbDanskType","5554982_NedslagUdenlandskKapitalIndkomstVirksomhedBeloeb","decimal",""]
["NedslagUdenlandskKapitalIndkomst.xsd","NedslagUdenlandskKapitalIndkomstVirksomhedCredit","skat2020:BeløbDanskType","5554997_NedslagUdenlandskKapitalIndkomstVirksomhedCreditBeloeb","decimal",""]
["NedslagUdenlandskPension.xsd","NedslagUdenlandskPensionCredit","skat2020:BeløbDanskType","5555012_NedslagUdenlandskPensionCreditBeloeb","decimal",""]
["NedslagUdenlandskPension.xsd","NedslagUdenlandskPensionSærligOrdningCredit","skat2020:BeløbDanskType","5555027_NedslagUdenlandskPensionSaerligOrdningCreditBeloeb","decimal",""]
["NedslagUdenlandskPension.xsd","NedslagUdenlandskPensionSærligOrdning","skat2020:BeløbDanskType","5555042_NedslagUdenlandskPensionSaerligOrdningBeloeb","decimal",""]
["NedslagUdenlandskPension.xsd","NedslagUdenlandskPensionExemption","skat2020:BeløbDanskType","5555072_NedslagUdenlandskPensionExemptionBeloeb","decimal",""]
["NedslagUdenlandskPension.xsd","NedslagUdenlandskPensionSærligOrdningExemption","skat2020:BeløbDanskType","5555087_NedslagUdenlandskPensionSaerligOrdningExemptionBeloeb","decimal",""]
["NedslagUdenlandskPension.xsd","NedslagUdenlandskPensionFranskskatCredit","skat2020:BeløbDanskType","5555102_NedslagUdenlandskPensionFranskskatCreditBeloeb","decimal",""]
["NedslagUdenlandskPersonligIndkomst.xsd","NedslagUdenlandskPersonligIndkomstLønindtægtAMBidrag","skat2020:BeløbDanskType","5555117_NedslagUdenlandskPersonligIndkomstLoenindtaegtAMBidragBeloeb","decimal",""]
["NedslagUdenlandskPersonligIndkomst.xsd","NedslagUdenlandskPersonligIndkomstGammelExemptionAMBidrag","skat2020:BeløbDanskType","5555134_NedslagUdenlandskPersonligIndkomstGammelExemptionAMBidragBeloeb","decimal",""]
["NedslagUdenlandskPersonligIndkomst.xsd","NedslagUdenlandskPersonligIndkomstExemption","skat2020:BeløbDanskType","5555149_NedslagUdenlandskPersonligIndkomstExemptionBeloeb","decimal",""]
["NedslagUdenlandskVirksomhed.xsd","NedslagUdenlandskVirksomhedBeløb","skat2020:BeløbDanskType","5555164_NedslagUdenlandskVirksomhedBeloeb","decimal",""]
["NedslagUdenlandskVirksomhed.xsd","NedslagUdenlandskVirksomhedCredit","skat2020:BeløbDanskType","5555179_NedslagUdenlandskVirksomhedCreditBeloeb","decimal",""]
["NedslagUdenlandskVirksomhed.xsd","NedslagUdenlandskVirksomhedOverskudAMBidrag","skat2020:BeløbDanskType","5555194_NedslagUdenlandskVirksomhedOverskudAMBidragBeloeb","decimal",""]
["NedslagUdenlandskVirksomhed.xsd","NedslagUdenlandskVirksomhedOverskudRentekorrektionBidragAMBidrag","skat2020:BeløbDanskType","5555209_NedslagUdenlandskVirksomhedOverskudRentekorrektionBidragAMBidragBeloeb","decimal",""]
["OEvrigeOplysninger.xsd","ØvrigeOplysningerBeregningsGrundlagAcontoSkat","skat2020:BeløbType","2610693_OevrigeOplysningerBeregningsgrundlagAcontoSkatBeloeb","decimal",""]
["OEvrigeOplysninger.xsd","ØvrigeOplysningerBeregningsGrundlagAcontoSkatSuccession","skat2020:BeløbType","2610704_OevrigeOplysningerBeregningsgrundlagAcontoSkatSuccessionBeloeb","decimal",""]
["OpholdUdland.xsd","OpholdUdlandAntalDageMereEnd183","skat2020:Tekst1Type","5555224_OpholdUdlandAntalDageMereEnd183Indikator","string",""]
["OpholdUdland.xsd","OpholdUdlandPeriodeOver30Dage","skat2020:Tekst1Type","5555239_OpholdUdlandPeriodeOver30DageIndikator","string",""]
["OpholdUdland.xsd","OpholdUdlandPeriodeOver120Dage","skat2020:Tekst1Type","5555254_OpholdUdlandPeriodeOver120DageIndikator","string",""]
["OpholdUdland.xsd","OpholdUdlandPeriodeOver60Dage","skat2020:Tekst1Type","5555269_OpholdUdlandPeriodeOver60DageIndikator","string",""]
["OpholdUdland.xsd","OpholdUdlandMereEnd6Måneder","skat2020:Tekst1Type","5555284_OpholdUdlandMereEnd6MaanederIndikator","string",{"$f":"IF(AND(D195<>\"\",B195<>\"-\",ISERROR(FIND(\"_\",D195))),CONCATENATE(D195,\".xsd\"),\"\")","v":""}]
["OpholdUdland.xsd","OpholdUdlandByggeAnlægMonteringPeriode","skat2020:Tekst1Type","5555299_OpholdUdlandByggeAnlaegMonteringPeriodeIndikator","string",""]
["OpholdUdland.xsd","OpholdUdlandByggeAnlægMonteringPeriode2","skat2020:Tekst1Type","5555314_OpholdUdlandByggeAnlaegMonteringPeriode2Indikator","string",""]
["OpholdUdland.xsd","OpholdUdlandOver365Dage","skat2020:Tekst1Type","5555331_OpholdUdlandOver365DageIndikator","string",""]
["Person.xsd","PersonCPRNummer","skat2020:CPRNummerType","3070_PersonCivilRegistrationIdentifier","string",""]
["Person.xsd","PersonFødselDato","skat2020:DatoType","5265_BirthDate","date",""]
["PersonligIndkomst.xsd","PersonligIndkomstLønIndkomst","skat2020:BeløbDanskType","2609624_PersonligIndkomstLoenIndkomstBeloeb","decimal",""]
["PersonligIndkomst.xsd","PersonligIndkomstPensionDagpengeStipendie","skat2020:BeløbDanskType","2609658_PersonligIndkomstPensionDagpengeStipendieBeloeb","decimal",""]
["PersonligIndkomst.xsd","PersonligIndkomstPrivatDagplejeHushjælp","skat2020:BeløbDanskType","2609670_PersonligIndkomstPrivatDagplejeHushjaelpBeloeb","decimal",""]
["PersonligIndkomst.xsd","PersonligIndkomstHonorar","skat2020:BeløbDanskType","2608744_PersonligIndkomstHonorarBeloeb","decimal",""]
["PersonligIndkomst.xsd","PersonligIndkomstUnderholdsbidrag","skat2020:BeløbDanskType","2609714_PersonligIndkomstUnderholdsbidragBeloeb","decimal",""]
["PersonligIndkomst.xsd","PersonligIndkomstGruppeLivsForsikringLegatPersonaleGoder","skat2020:BeløbDanskType","2606422_PersonligIndkomstGruppeLivsForsikringLegatPersonaleGoderBeloeb","decimal",""]
["PersonligIndkomst.xsd","PersonligIndkomstJubilæumsGratialeFratrædelsesGodtgørelse","skat2020:BeløbDanskType","2609600_PersonligIndkomstJubilaeumsGratialeFratraedelsesGodtgoerelseBeloeb","decimal",""]
["PersonligIndkomst.xsd","PersonligIndkomstAndenPersonligIndkomst","skat2020:BeløbDanskType","2609398_PersonligIndkomstAndenPersonligIndkomstBeloeb","decimal",""]
["PersonligIndkomst.xsd","PersonligIndkomstHædersGaver","skat2020:BeløbDanskType","2609541_PersonligIndkomstHaedersGaverBeloeb","decimal",""]
["PersonligIndkomst.xsd","PersonligIndkomstKapitalafkastAktierAnparter","skat2020:BeløbDanskType","2609612_PersonligIndkomstKapitalafkastAktierAnparterBeloeb","decimal",""]
["PersonligIndkomst.xsd","PersonligIndkomstHævningEtableringsKonto","skat2020:BeløbDanskType","2609553_PersonligIndkomstHaevningEtableringsKontoBeloeb","decimal",""]
["PersonligIndkomst.xsd","PersonligIndkomstHævningIværksætterKonto","skat2020:BeløbDanskType","2609565_PersonligIndkomstHaevningIvaerksaetterKontoBeloeb","decimal",""]
["PersonligIndkomst.xsd","PersonligIndkomstOverskudVirksomhedUdlejningEjendom","skat2020:BeløbType","2609647_PersonligIndkomstOverskudVirksomhedUdlejningEjendomBeloeb","decimal",""]
["PersonligIndkomst.xsd","PersonligIndkomstEjendomsAvance","skat2020:BeløbType","5074727_PersonligIndkomstEjendomsAvanceBeloeb","decimal",""]
["PersonligIndkomst.xsd","PersonligIndkomstOverskudVirksomhedUdlejningEjendomEfterAMBidrag","skat2020:BeløbType","5074740_PersonligIndkomstOverskudVirksomhedUdlejningEjendomEfterAMBidragBeloeb","decimal",""]
["PersonligIndkomst.xsd","PersonligIndkomstResultatAfVirksomhed","skat2020:BeløbType","5074753_PersonligIndkomstResultatAfVirksomhedBeloeb","decimal",""]
["PersonligIndkomst.xsd","PersonligIndkomstResultatAfVirksomhedEfterAMBidrag","skat2020:BeløbType","5074766_PersonligIndkomstResultatAfVirksomhedEfterAMBidragBeloeb","decimal",""]
["PersonligIndkomst.xsd","PersonligIndkomstUdlodningInvesteringsForeningVirksomhed","skat2020:BeløbType","5074779_PersonligIndkomstUdlodningInvesteringsForeningVirksomhedBeloeb","decimal",""]
["PersonligIndkomst.xsd","PersonligIndkomstVirksomhedRenteudgift","skat2020:BeløbType","5074792_PersonligIndkomstVirksomhedRenteudgiftBeloeb","decimal",""]
["PersonligIndkomstFradrag.xsd","PersonligIndkomstFradragUdenlandskeSocialeBidrag","skat2020:BeløbDanskType","5555346_PersonligIndkomstFradragUdenlandskeSocialeBidragBeloeb","decimal",""]
["PersonSelvangivelse.xsd","PersonSelvangivelseIndkomstÅr","skat2020:IndkomstÅrType","7437_AarIdentifikator","integer",""]
["PersonSelvangivelse.xsd","PersonSelvangivelseVirksomhedOphør","skat2020:MarkeringType","2610558_PersonSelvangivelseVirksomhedOphoerIndikator","boolean",""]
["PersonSelvangivelse.xsd","PersonSelvangivelseVirksomhedOphørTidligere","skat2020:MarkeringType","2610569_PersonSelvangivelseVirksomhedOphoerTidligereIndikator","boolean",""]
["PersonSelvangivelse.xsd","PersonSelvangivelseHenstandsbegæring","skat2020:MarkeringType","2610536_PersonSelvangivelseHenstandsbegaeringIndikator","boolean",""]
["PersonSelvangivelse.xsd","PersonSelvangivelseBeskatningsordning","skat2020:Tekst1Type","2610492_PersonSelvangivelseBeskatningsordningKode","string",""]
["PersonSelvangivelse.xsd","PersonSelvangivelseEjendomsoplysningAccept","skat2020:MarkeringType","2610503_PersonSelvangivelseEjendomsoplysningAcceptIndikator","boolean",""]
["PersonSelvangivelse.xsd","PersonSelvangivelseEjendomsoplysningSupplement","skat2020:MarkeringType","2610514_PersonSelvangivelseEjendomsoplysningSupplementIndikator","boolean",""]
["PersonSelvangivelse.xsd","PersonSelvangivelseRevisorindberetning","skat2020:KodeType","5077004_PersonSelvangivelseRevisorindberetningTekst","string",""]
["PersonSelvangivelse.xsd","PersonSelvangivelseFradragHelårsomregning","skat2020:MarkeringType","2610525_PersonSelvangivelseFradragHelaarsomregningIndikator","boolean",""]
["PersonSkattepligtigIndkomst.xsd","PersonSkattepligtigIndkomstSkatBeløb","skat2020:BeløbDanskType","5555361_PersonSkattepligtigIndkomstSkatBeloeb","decimal",""]
["PersonSkattepligtigIndkomst.xsd","PersonSkattepligtigIndkomstSkatManueltNettoBeløb","skat2020:BeløbDanskType","5555376_PersonSkattepligtigIndkomstSkatManueltNettoBeloeb","decimal",""]
["PersonSkattepligtigIndkomst.xsd","PersonSkattepligtigIndkomstBeløbPeriodeNedslag","skat2020:BeløbDanskType","5555391_PersonSkattepligtigIndkomstBeloebPeriodeNedslagBeloeb","decimal",""]
["RegnskabAngivelse.xsd","RegnskabAngivelseOplysningsfritagelse","skat2020:MarkeringType","2610591_RegnskabAngivelseOplysningsfritagelseIndikator","boolean",""]
["RegnskabAngivelse.xsd","RegnskabAngivelseOplysningsfritagelseÅrsag","skat2020:KodeType","2610602_RegnskabAngivelseOplysningsfritagelseAarsagKode","string",""]
["RegnskabAngivelse.xsd","RegnskabAngivelseRevisorbistand","skat2020:MarkeringType","2610625_RegnskabAngivelseRevisorbistandIndikator","boolean",""]
["RegnskabAngivelse.xsd","RegnskabAngivelseRevisorbistandArt","skat2020:KodeType","2610636_RegnskabAngivelseRevisorbistandArtKode","string",""]
["RegnskabAngivelse.xsd","RegnskabAngivelseRevisorerklæring","skat2020:KodeType","2610647_RegnskabAngivelseRevisorerklaeringKode","string",""]
["RegnskabAngivelse.xsd","RegnskabAngivelseRevisorforbehold","skat2020:KodeType","2610658_RegnskabAngivelseRevisorforbeholdKode","string",""]
["RegnskabAngivelse.xsd","RegnskabAngivelsePrivateAndeleArt","skat2020:KodeType","2610613_RegnskabAngivelsePrivateAndeleArtKode","string",""]
["RegnskabAngivelse.xsd","RegnskabAngivelseGældseftergivelse","skat2020:MarkeringType","2610580_RegnskabAngivelseGaeldseftergivelseIndikator","boolean",""]
["ReguleretGevinst.xsd","ReguleretGevinstUdenlandsk","skat2020:BeløbDanskType","5555412_ReguleretGevinstUdenlandskBeloeb","decimal",""]
["ReguleretTab.xsd","ReguleretTabKontrakter","skat2020:BeløbDanskType","2547191_ReguleretTabKontrakterBeloeb","decimal",""]
["ReguleretTab.xsd","ReguleretTabKontrakterFremførsel","skat2020:BeløbDanskType","2547209_ReguleretTabKontrakterFremfoerselBeloeb","decimal",""]
["ReguleretTab.xsd","ReguleretTabKontrakterKode","skat2020:FinansielleKontrakterKodeType","2549200_ReguleretTabKontrakterKode","enumeration string \"INGEN\", \"EGEN\", \"BEGGE\"",""]
["ReguleretUdbytte.xsd","ReguleretUdbytteUdenlandsk","skat2020:BeløbDanskType","5556680_ReguleretUdbytteUdenlandskBeloeb","decimal",""]
["ReguleretUdbytte.xsd","ReguleretUdbytteUdenlandskKapitalIndkomst","skat2020:BeløbDanskType","5556695_ReguleretUdbytteUdenlandskKapitalIndkomstBeloeb","decimal",""]
["Renteudgift.xsd","RenteudgiftUdenlandskEjendom","skat2020:BeløbDanskType","5556710_RenteudgiftUdenlandskEjendomBeloeb","decimal",""]
["Renteudgift.xsd","RenteudgiftAndenUdenlandskGæld","skat2020:BeløbDanskType","5556725_RenteudgiftAndenUdenlandskGaeldBeloeb","decimal",""]
["Renteudgift.xsd","RenteudgiftOffentligGæld","skat2020:BeløbDanskType","2547414_RenteudgiftOffentligGaeldBeloeb","decimal",""]
["Renteudgift.xsd","RenteudgiftUdenlandskGældBeløb","skat2020:BeløbDanskType","5775201_RenteudgiftUdenlandskGaeldBeloeb","decimal",""]
["SaerligIndkomst.xsd","SærligIndkomstFlyvningIDanmark","skat2020:Tekst1Type","5556744_SaerligIndkomstFlyvningIDanmarkIndikator","string",""]
["SaerligIndkomst.xsd","SærligIndkomstSejladsIDanmark","skat2020:Tekst1Type","5556759_SaerligIndkomstSejladsIDanmarkIndikator","string",""]
["SaerligIndkomst.xsd","SærligIndkomstKulturaftale","skat2020:Tekst1Type","5556774_SaerligIndkomstKulturaftaleIndikator","string",""]
["SaerligIndkomst.xsd","SærligIndkomstOffentligStøtte","skat2020:Tekst1Type","5556789_SaerligIndkomstOffentligStoetteIndikator","string",""]
["SaerligIndkomst.xsd","SærligIndkomstPræmierPriser","skat2020:Tekst1Type","5558416_SaerligIndkomstPraemierPriserIndikator","string",""]
["SaerligIndkomst.xsd","SærligIndkomstTilfalderPerson","skat2020:Tekst1Type","5558433_SaerligIndkomstTilfalderPersonIndikator","string",""]
["SaerligIndkomst.xsd","SærligIndkomstTurne","skat2020:Tekst1Type","5558463_SaerligIndkomstTurneIndikator","string",""]
["SaerligIndkomst.xsd","SærligIndkomstDanskVelgørende","skat2020:Tekst1Type","5558448_SaerligIndkomstDanskVelgoerendeIndikator","string",""]
["SelvangivelseFeltIndhold.xsd","SelvangivelseFeltIndholdBeløb","skat2020:BeløbPositivNegativ13Decimaler2Type","2610671_SelvangivelseFeltIndholdBeloeb","decimal",{"$f":"IF(AND(D259<>\"\",B259<>\"-\",ISERROR(FIND(\"_\",D259))),CONCATENATE(D259,\".xsd\"),\"\")","v":""}]
["SelvstaendigVirksomhed.xsd","SelvstændigVirksomhedAndenKapitalindkomst","skat2020:BeløbDanskType","5558478_SelvstaendigVirksomhedAndenKapitalindkomstBeloeb","decimal",""]
["SelvstaendigVirksomhed.xsd","SelvstændigVirksomhedBiblioteksafgiftGodtgørelse","skat2020:BeløbDanskType","5558493_SelvstaendigVirksomhedBiblioteksafgiftGodtgoerelseBeloeb","decimal",""]
["SelvstaendigVirksomhed.xsd","SelvstændigVirksomhedBiblioteksafgiftGodtgørelseEfterAMBidrag","skat2020:BeløbDanskType","5558508_SelvstaendigVirksomhedBiblioteksafgiftGodtgoerelseEfterAMBidragBeloeb","decimal",""]
["Servicefradrag.xsd","ServicefradragAngivelseBeløb","skat2020:BeløbPositivNegativ12UdenDecimalerType","2547459_ServicefradragAngivelseBeloeb","decimal",""]
["Servicefradrag.xsd","ServicefradragBetalingDato","skat2020:DatoType","2547468_ServicefradragBetalingDato","date",""]
["Servicefradrag.xsd","ServicefradragArbejdstypeKode","skat2020:Tekst8Type","3335038_ServicefradragArbejdstypeKode","string",""]
["Servicefradrag.xsd","ServicefradragFritidsboligUdlejet","skat2020:MarkeringType","2594835_ServicefradragFritidsboligUdlejetIndikator","boolean",""]
["Servicefradrag.xsd","ServicefradragUdenlandskVirksomhedNummerEllerNavn","skat2020:Tekst30Type","2586324_ServicefradragUdenlandskVirksomhedNummerEllerNavnText","string",""]
["Skib.xsd","SkibGrønlandHeleÅret","skat2020:Tekst1Type","5558523_SkibGroenlandHeleAaretIndikator","string",""]
["Skib.xsd","SkibGrønlandsk","skat2020:Tekst1Type","5558538_SkibGroenlandskIndikator","string",""]
["Skib.xsd","SkibDanmarkHeleÅret","skat2020:Tekst1Type","5558553_SkibDanmarkHeleAaretIndikator","string",""]
["Skib.xsd","SkibFAS","skat2020:Tekst1Type","5558568_SkibFASIndikator","string",""]
["Skib.xsd","SkibRegistreringLand","skat2020:Tekst1Type","5558583_SkibRegistreringLandTekst","string",""]
["Skib.xsd","SkibOpgave","skat2020:Tekst1Type","5558598_SkibOpgaveIndikator","string",""]
["Skib.xsd","SkibSejladsFlereLande","skat2020:Tekst1Type","5558613_SkibSejladsFlereLandeIndikator","string",""]
["Skib.xsd","SkibSejladsIndreVandveje","skat2020:Tekst1Type","5558628_SkibSejladsIndreVandvejeIndikator","string",""]
["Skib.xsd","SkibFastBesætning","skat2020:Tekst1Type","5558643_SkibFastBesaetningIndikator","string",""]
["Topskat.xsd","TopskatTotal","skat2020:BeløbDanskType","5560921_TopskatTotalBeloeb","decimal",""]
["Topskat.xsd","TopskatManueltNettoBeløb","skat2020:BeløbDanskType","5560936_TopskatManueltNettoBeloeb","decimal",""]
["Topskat.xsd","TopskatOverførtFraÆgtefælle","skat2020:BeløbDanskType","5560951_TopskatOverfoertFraAegtefaelleBeloeb","decimal",""]
["Topskat.xsd","TopskatOverførtTilÆgtefælle","skat2020:BeløbDanskType","5560966_TopskatOverfoertTilAegtefaelleBeloeb","decimal",""]
["Topskat.xsd","TopskatDISIndkomstNedslag","skat2020:BeløbDanskType","5561019_TopskatDISIndkomstNedslagBeloeb","decimal",""]
["Topskat.xsd","TopskatUdenlandskIndkomstCreditNedslag","skat2020:BeløbDanskType","5561034_TopskatUdenlandskIndkomstCreditNedslagBeloeb","decimal",""]
["Topskat.xsd","TopskatUdenlandskIndkomstExemptionNedslag","skat2020:BeløbDanskType","5561049_TopskatUdenlandskIndkomstExemptionNedslagBeloeb","decimal",""]
["Topskat.xsd","TopskatUdenlandskIndkomstHalvLempelseNedslag","skat2020:BeløbDanskType","5561064_TopskatUdenlandskIndkomstHalvLempelseNedslagBeloeb","decimal",""]
["Topskat.xsd","TopskatUdenlandskKapitalIndkomstCreditNedslag","skat2020:BeløbDanskType","5561602_TopskatUdenlandskKapitalIndkomstCreditNedslagBeloeb","decimal",""]
["Topskat.xsd","TopskatUdenlandskKapitalIndkomstGammelExemptionNedslag","skat2020:BeløbDanskType","5561617_TopskatUdenlandskKapitalIndkomstGammelExemptionNedslagBeloeb","decimal",""]
["Topskat.xsd","TopskatUdenlandskKapitalIndkomstVirksomhedNedslag","skat2020:BeløbDanskType","5561632_TopskatUdenlandskKapitalIndkomstVirksomhedNedslagBeloeb","decimal",""]
["Topskat.xsd","TopskatUdenlandskPensionCreditNedslag","skat2020:BeløbDanskType","5561647_TopskatUdenlandskPensionCreditNedslagBeloeb","decimal",""]
["Topskat.xsd","TopskatUdenlandskPensionExemptionSærligOrdningNedslag","skat2020:BeløbDanskType","5561663_TopskatUdenlandskPensionExemptionSaerligOrdningNedslagBeloeb","decimal",""]
["Topskat.xsd","TopskatUdenlandskPensionSærligOrdningCreditNedslag","skat2020:BeløbDanskType","5561695_TopskatUdenlandskPensionSaerligOrdningCreditNedslagBeloeb","decimal",""]
["Topskat.xsd","TopskatUdenlandskPersonligIndkomstExemptionNedslag","skat2020:BeløbDanskType","5561710_TopskatUdenlandskPersonligIndkomstExemptionNedslagBeloeb","decimal",""]
["Topskat.xsd","TopskatUdenlandskVirksomhedOverskudNedslag","skat2020:BeløbDanskType","5561725_TopskatUdenlandskVirksomhedOverskudNedslagBeloeb","decimal",""]
["Topskat.xsd","TopskatUdenlandskIndkomst33ANedslag","skat2020:BeløbDanskType","5561740_TopskatUdenlandskIndkomst33ANedslagBeloeb","decimal",""]
["Topskat.xsd","TopskatUdenlandskKapitalIndkomstExemptionNedslag","skat2020:BeløbDanskType","5561755_TopskatUdenlandskKapitalIndkomstExemptionNedslagBeloeb","decimal",""]
["Topskat.xsd","TopskatUdenlandskPersonligIndkomstGammelExemptionNedslag","skat2020:BeløbDanskType","5561770_TopskatUdenlandskPersonligIndkomstGammelExemptionNedslagBeloeb","decimal",""]
["UdenlandskAktie.xsd","UdenlandskAktieObligationsbaseretInvesteringBeløb","skat2020:BeløbDanskType","5775217_UdenlandskAktieObligationsbaseretInvesteringBeloeb","decimal",""]
["UdenlandskAktie.xsd","UdenlandskAktieAktiebaseretInvesteringBeløb","skat2020:BeløbDanskType","5775232_UdenlandskAktieAktiebaseretInvesteringBeloeb","decimal",""]
["UdenlandskAnsaettelse.xsd","UdenlandskAnsættelseOffentligErhverv","skat2020:Tekst1Type","5562409_UdenlandskAnsaettelseOffentligErhvervIndikator","string",""]
["UdenlandskAnsaettelse.xsd","UdenlandskAnsættelseTjenesteforhold","skat2020:Tekst1Type","5562424_UdenlandskAnsaettelseTjenesteforholdIndikator","string",""]
["UdenlandskAnsaettelse.xsd","UdenlandskAnsættelseArbejdsudlejet","skat2020:Tekst1Type","5562439_UdenlandskAnsaettelseArbejdsudlejetIndikator","string",""]
["UdenlandskAnsaettelse.xsd","UdenlandskAnsættelseFormål","skat2020:Tekst1Type","5562454_UdenlandskAnsaettelseFormaalIndikator","string",""]
["UdenlandskAnsaettelse.xsd","UdenlandskAnsættelseFritErhverv","skat2020:Tekst1Type","5562469_UdenlandskAnsaettelseFritErhvervIndikator","string",""]
["UdenlandskAnsaettelse.xsd","UdenlandskAnsættelseSædvanligArbejdsgiver","skat2020:Tekst1Type","5562484_UdenlandskAnsaettelseSaedvanligArbejdsgiverIndikator","string",""]
["UdenlandskAnsaettelse.xsd","UdenlandskAnsættelseTuristorganisation","skat2020:Tekst1Type","5563959_UdenlandskAnsaettelseTuristorganisationIndikator","string",""]
["UdenlandskAnsaettelse.xsd","UdenlandskAnsættelseAnsættelsesforholdType","skat2020:Tekst1Type","5563974_UdenlandskAnsaettelseAnsaettelsesforholdTypeTekst","string",""]
["UdenlandskAnsaettelse.xsd","UdenlandskAnsættelseStatsborgerskabMarkering","skat2020:Tekst1Type","5563989_UdenlandskAnsaettelseStatsborgerskabMarkeringIndikator","string",""]
["UdenlandskAnsaettelse.xsd","UdenlandskAnsættelseArbejdslandLigUdbetalingsland","skat2020:Tekst1Type","5564004_UdenlandskAnsaettelseArbejdslandLigUdbetalingslandTekst","string",""]
["UdenlandskArbejdsgiver.xsd","UdenlandskArbejdsgiverVelgørende","skat2020:Tekst1Type","5564019_UdenlandskArbejdsgiverVelgoerendeIndikator","string",""]
["UdenlandskArbejdsgiver.xsd","UdenlandskArbejdsgiverGrønland","skat2020:Tekst1Type","5564034_UdenlandskArbejdsgiverGroenlandIndikator","string",""]
["UdenlandskArbejdsgiver.xsd","UdenlandskArbejdsgiverLand","skat2020:Tekst1Type","5564049_UdenlandskArbejdsgiverLandTekst","string",""]
["UdenlandskArbejdsgiver.xsd","UdenlandskArbejdsgiverLedelse","skat2020:Tekst1Type","5564064_UdenlandskArbejdsgiverLedelseTekst","string",""]
["UdenlandskArbejdsgiver.xsd","UdenlandskArbejdsgiverLandEjArbejdsland","skat2020:Tekst1Type","5564079_UdenlandskArbejdsgiverLandEjArbejdslandIndikator","string",""]
["UdenlandskArbejdsgiver.xsd","UdenlandskArbejdsgiverFastDriftstedArbejdsland","skat2020:Tekst1Type","5564094_UdenlandskArbejdsgiverFastDriftstedArbejdslandTekst","string",""]
["UdenlandskArbejdsgiver.xsd","UdenlandskArbejdsgiverKonsortie","skat2020:Tekst1Type","5564109_UdenlandskArbejdsgiverKonsortieIndikator","string",""]
["UdenlandskArbejdsgiver.xsd","UdenlandskArbejdsgiverOffentlig","skat2020:Tekst1Type","5564124_UdenlandskArbejdsgiverOffentligIndikator","string",""]
["UdenlandskArbejdsgiver.xsd","UdenlandskArbejdsgiverAmbassade","skat2020:Tekst1Type","5564139_UdenlandskArbejdsgiverAmbassadeIndikator","string",""]
["UdenlandskArbejdsgiver.xsd","UdenlandskArbejdsgiverTuristoriganisationKommerciel","skat2020:Tekst1Type","5564154_UdenlandskArbejdsgiverTuristoriganisationKommercielIndikator","string",""]
["UdenlandskArbejdsgiver.xsd","UdenlandskArbejdsgiverFastRepræsentation","skat2020:Tekst1Type","5564169_UdenlandskArbejdsgiverFastRepraesentationIndikator","string",""]
["UdenlandskArbejdsgiver.xsd","UdenlandskArbejdsgiverKommerciel","skat2020:Tekst1Type","5564184_UdenlandskArbejdsgiverKommercielIndikator","string",""]
["UdenlandskFormue.xsd","UdenlandskFormueIndestående","skat2020:BeløbDanskType","5564199_UdenlandskFormueIndestaaendeBeloeb","decimal",""]
["UdenlandskFormue.xsd","UdenlandskFormueGæld","skat2020:BeløbDanskType","5564214_UdenlandskFormueGaeldBeloeb","decimal",""]
["UdenlandskKapitalIndkomst.xsd","UdenlandskKapitalIndkomstBeløbGammelExemption","skat2020:BeløbDanskType","5564244_UdenlandskKapitalIndkomstBeloebGammelExemptionBeloeb","decimal",""]
["UdenlandskKapitalIndkomst.xsd","UdenlandskKapitalIndkomstLejeindtægt","skat2020:BeløbDanskType","5564259_UdenlandskKapitalIndkomstLejeindtaegtBeloeb","decimal",{"$f":"IF(AND(D323<>\"\",B323<>\"-\",ISERROR(FIND(\"_\",D323))),CONCATENATE(D323,\".xsd\"),\"\")","v":""}]
["UdenlandskKapitalIndkomst.xsd","UdenlandskKapitalIndkomstRenteindtægt","skat2020:BeløbDanskType","5564274_UdenlandskKapitalIndkomstRenteindtaegtBeloeb","decimal",""]
["UdenlandskKapitalIndkomst.xsd","UdenlandskKapitalIndkomstPensionsordningVærdiStigning","skat2020:BeløbType","5564289_UdenlandskKapitalIndkomstPensionsordningVaerdiStigningBeloeb","decimal",""]
["UdenlandskKapitalIndkomst.xsd","UdenlandskKapitalIndkomstAndenKapitalIndkomst","skat2020:BeløbType","5564304_UdenlandskKapitalIndkomstAndenKapitalIndkomstBeloeb","decimal",""]
["UdenlandskLigningmaessigtFradrag.xsd","UdenlandskLigningmæssigtFradragLønindtægt","skat2020:BeløbDanskType","5564319_UdenlandskLigningmaessigtFradragLoenindtaegtBeloeb","decimal",""]
["UdenlandskLigningmaessigtFradrag.xsd","UdenlandskLigningmæssigtFradragPersonligIndkomstHalvLempelse","skat2020:BeløbDanskType","5564334_UdenlandskLigningmaessigtFradragPersonligIndkomstHalvLempelseBeloeb","decimal",""]
["UdenlandskLigningmaessigtFradrag.xsd","UdenlandskLigningmæssigtFradragVirksomhedIndkomst","skat2020:BeløbDanskType","5564349_UdenlandskLigningmaessigtFradragVirksomhedIndkomstBeloeb","decimal",""]
["UdenlandskLigningmaessigtFradrag.xsd","UdenlandskLigningmæssigtFradragPersonligIndkomstGammelExemption","skat2020:BeløbDanskType","5564364_UdenlandskLigningmaessigtFradragPersonligIndkomstGammelExemptionBeloeb","decimal",""]
["UdenlandskPensionUdbetaling.xsd","UdenlandskPensionUdbetalingDanskBeskatning","skat2020:BeløbDanskType","5564379_UdenlandskPensionUdbetalingDanskBeskatningBeloeb","decimal",""]
["UdenlandskPensionUdbetaling.xsd","UdenlandskPensionUdbetalingCredit","skat2020:BeløbDanskType","5564394_UdenlandskPensionUdbetalingCreditBeloeb","decimal",""]
["UdenlandskPensionUdbetaling.xsd","UdenlandskPensionUdbetalingExemption","skat2020:BeløbDanskType","5564409_UdenlandskPensionUdbetalingExemptionBeloeb","decimal",""]
["UdenlandskPensionUdbetaling.xsd","UdenlandskPensionUdbetalingGammelExemption","skat2020:BeløbDanskType","5564424_UdenlandskPensionUdbetalingGammelExemptionBeloeb","decimal",""]
["UdenlandskPensionUdbetaling.xsd","UdenlandskPensionUdbetalingSærligOrdning","skat2020:BeløbDanskType","5564439_UdenlandskPensionUdbetalingSaerligOrdningBeloeb","decimal",""]
["UdenlandskPensionUdbetaling.xsd","UdenlandskPensionUdbetalingSærligOrdningExemption","skat2020:BeløbDanskType","5564454_UdenlandskPensionUdbetalingSaerligOrdningExemptionBeloeb","decimal",""]
["UdenlandskPersonligIndkomst.xsd","UdenlandskPersonligIndkomstLønindtægt","skat2020:BeløbDanskType","5564469_UdenlandskPersonligIndkomstLoenindtaegtBeloeb","decimal",""]
["UdenlandskPersonligIndkomst.xsd","UdenlandskPersonligIndkomstAndenIndkomstFraUdlArbejdsgiver","skat2020:BeløbDanskType","5564484_UdenlandskPersonligIndkomstAndenIndkomstFraUdlArbejdsgiverBeloeb","decimal",""]
["UdenlandskPersonligIndkomst.xsd","UdenlandskPersonligIndkomstBeløbHalvLempelse","skat2020:BeløbDanskType","5564499_UdenlandskPersonligIndkomstBeloebHalvLempelseBeloeb","decimal",""]
["UdenlandskPersonligIndkomst.xsd","UdenlandskPersonligIndkomstBeløbGammelExemption","skat2020:BeløbDanskType","5564514_UdenlandskPersonligIndkomstBeloebGammelExemptionBeloeb","decimal",""]
["UdenlandskPersonligIndkomst.xsd","UdenlandskPersonligIndkomstLempelseBetingelserLigningslov33A","skat2020:Tekst1Type","5564529_UdenlandskPersonligIndkomstLempelseBetingelserLigningslov33AIndikator","string",""]
["UdenlandskPersonligIndkomst.xsd","UdenlandskPersonligIndkomstType","skat2020:Tekst1Type","5564544_UdenlandskPersonligIndkomstTypeTekst","string",""]
["UdenlandskPersonligIndkomst.xsd","UdenlandskPersonligIndkomstSocialtSikretArbejdsland","skat2020:Tekst1Type","5564559_UdenlandskPersonligIndkomstSocialtSikretArbejdslandIndikator","string",""]
["UdenlandskPersonligIndkomst.xsd","UdenlandskPersonligIndkomstOverBeløbGrænse","skat2020:Tekst1Type","5564574_UdenlandskPersonligIndkomstOverBeloebGraenseIndikator","string",""]
["UdenlandskPersonligIndkomst.xsd","UdenlandskPersonligIndkomstDokumentation","skat2020:Tekst1Type","5564589_UdenlandskPersonligIndkomstDokumentationIndikator","string",""]
["UdenlandskPersonligIndkomst.xsd","UdenlandskPersonligIndkomstLønindtægtDanskBeskatning","skat2020:BeløbDanskType","5564604_UdenlandskPersonligIndkomstLoenindtaegtDanskBeskatningBeloeb","decimal",""]
["UdenlandskPersonligIndkomst.xsd","UdenlandskPersonligIndkomstLønindtægtDanskBeskatningEfterAMBidrag","skat2020:BeløbDanskType","5564619_UdenlandskPersonligIndkomstLoenindtaegtDanskBeskatningEfterAMBidragBeloeb","decimal",""]
["UdenlandskPersonligIndkomst.xsd","UdenlandskPersonligIndkomstLønindtægtUdenlandskBeskatning","skat2020:BeløbDanskType","5564634_UdenlandskPersonligIndkomstLoenindtaegtUdenlandskBeskatningBeloeb","decimal",""]
["UdenlandskPersonligIndkomst.xsd","UdenlandskPersonligIndkomstLønindtægtUdenlandskBeskatningEfterAMBidrag","skat2020:BeløbDanskType","5564649_UdenlandskPersonligIndkomstLoenindtaegtUdenlandskBeskatningEfterAMBidragBeloeb","decimal",""]
["UdenlandskPersonligIndkomst.xsd","UdenlandskPersonligIndkomstLønindtægtExemption","skat2020:BeløbDanskType","5564664_UdenlandskPersonligIndkomstLoenindtaegtExemptionBeloeb","decimal",""]
["UdenlandskPersonligIndkomst.xsd","UdenlandskPersonligIndkomstLønindtægtExemptionEfterAMBidrag","skat2020:BeløbDanskType","5564679_UdenlandskPersonligIndkomstLoenindtaegtExemptionEfterAMBidragBeloeb","decimal",""]
["UdenlandskPersonligIndkomst.xsd","UdenlandskPersonligIndkomstLønindtægtCredit","skat2020:BeløbDanskType","5564694_UdenlandskPersonligIndkomstLoenindtaegtCreditBeloeb","decimal",""]
["UdenlandskPersonligIndkomst.xsd","UdenlandskPersonligIndkomstLønindtægtCreditEfterAMBidrag","skat2020:BeløbDanskType","5564709_UdenlandskPersonligIndkomstLoenindtaegtCreditEfterAMBidragBeloeb","decimal",""]
["UdenlandskPersonligIndkomst.xsd","UdenlandskPersonligIndkomstBeløbHalvLempelseEfterAMBidrag","skat2020:BeløbDanskType","5564724_UdenlandskPersonligIndkomstBeloebHalvLempelseEfterAMBidragBeloeb","decimal",""]
["UdenlandskPersonligIndkomst.xsd","UdenlandskPersonligIndkomstBeløbGammelExemptionEfterAMBidrag","skat2020:BeløbDanskType","5564739_UdenlandskPersonligIndkomstBeloebGammelExemptionEfterAMBidragBeloeb","decimal",""]
["UdenlandskPersonligIndkomst.xsd","UdenlandskPersonligIndkomstAndenIndkomstFraUdlArbejdsgiverEfterAMBidrag","skat2020:BeløbDanskType","5564754_UdenlandskPersonligIndkomstAndenIndkomstFraUdlArbejdsgiverEfterAMBidragBeloeb","decimal",""]
["UdenlandskPersonligIndkomst.xsd","UdenlandskPersonligIndkomstPendlerArbejdslandBopælsland","skat2020:Tekst1Type","5775247_UdenlandskPersonligIndkomstPendlerArbejdslandBopaelslandIndikator","string",""]
["UdenlandskSelvstaendigVirksomhed.xsd","UdenlandskSelvstændigVirksomhedOverskud","skat2020:BeløbDanskType","5564769_UdenlandskSelvstaendigVirksomhedOverskudBeloeb","decimal",""]
["UdenlandskSelvstaendigVirksomhed.xsd","UdenlandskSelvstændigVirksomhedNettoRenter","skat2020:BeløbDanskType","5564784_UdenlandskSelvstaendigVirksomhedNettoRenterBeloeb","decimal",""]
["UdenlandskSelvstaendigVirksomhed.xsd","UdenlandskSelvstændigVirksomhedKontingent","skat2020:BeløbDanskType","5564799_UdenlandskSelvstaendigVirksomhedKontingentBeloeb","decimal",""]
["UdenlandskSkat.xsd","UdenlandskSkatBeløb","skat2020:BeløbDanskType","5564814_UdenlandskSkatBeloeb","decimal",""]
["UdenlandskSkat.xsd","UdenlandskSkatVirksomhedsIndkomst","skat2020:BeløbDanskType","5564829_UdenlandskSkatVirksomhedsIndkomstBeloeb","decimal",""]
["UdenlandskSkat.xsd","UdenlandskSkatKapitalIndkomst","skat2020:BeløbDanskType","5564844_UdenlandskSkatKapitalIndkomstBeloeb","decimal",""]
["UdenlandskSkat.xsd","UdenlandskSkatUdbytteskat","skat2020:BeløbDanskType","5564859_UdenlandskSkatUdbytteskatBeloeb","decimal",""]
["UdenlandskSkat.xsd","UdenlandskSkatEjendomskat","skat2020:BeløbDanskType","5564874_UdenlandskSkatEjendomskatBeloeb","decimal",""]
["UdenlandskSkat.xsd","UdenlandskSkatNordiskTræk","skat2020:JaNejType","5564889_UdenlandskSkatNordiskTraekIndikator","boolean",""]
["UdenlandskSkat.xsd","UdenlandskSkatDokumentation","skat2020:Tekst1Type","5564904_UdenlandskSkatDokumentationIndikator","string",""]
["UdenlandskSkat.xsd","UdenlandskSkatArbejdsgiverHjemland","skat2020:Tekst1Type","5564919_UdenlandskSkatArbejdsgiverHjemlandIndikator","string",""]
["UdenlandskSkattepligt.xsd","UdenlandskSkattepligtMarkering","skat2020:Tekst1Type","5564934_UdenlandskSkattepligtMarkeringIndikator","string",""]
["UdenlandskSkattepligt.xsd","UdenlandskSkattepligtHel","skat2020:Tekst1Type","5564949_UdenlandskSkattepligtHelIndikator","string",""]
["UdenlandskSkattepligt.xsd","UdenlandskSkattepligtDelvis","skat2020:Tekst1Type","5564964_UdenlandskSkattepligtDelvisIndikator","string",""]
["UdenlandskSkattepligt.xsd","UdenlandskSkattepligtBundgrænse","skat2020:Tekst1Type","5564979_UdenlandskSkattepligtBundgraenseIndikator","string",""]
["Udligningsskat.xsd","UdligningsskatBeløb","skat2020:BeløbDanskType","5564994_UdligningsskatBeloeb","decimal",""]
["Underhold.xsd","UnderholdAftægtYdelse","skat2020:BeløbType","2547510_UnderholdAftaegtYdelseBeloeb","decimal",""]
["Underhold.xsd","UnderholdÆgtefælleBidragMånedlig","skat2020:BeløbType","2547869_UnderholdAEgtefaelleBidragMaanedligBeloeb","decimal",""]
["Underhold.xsd","UnderholdBørneBidragAftaltBeløbMånedlig","skat2020:BeløbType","2547859_UnderholdBoerneBidragAftaltBeloebMaanedligBeloeb","decimal",""]
["Underhold.xsd","UnderholdBørneBidragNormalbidragProcentTillæg","skat2020:TalHel3Type","2547850_UnderholdBoerneBidragNormalbidragProcentTillaegProcent","integer",""]
["Underhold.xsd","UnderholdBørneBidragDækningPeriodeStart","skat2020:DatoType","2547528_UnderholdBoerneBidragDaekningPeriodeStartDato","date",""]
["Underhold.xsd","UnderholdBørneBidragDækningPeriodeSlut","skat2020:DatoType","2547537_UnderholdBoerneBidragDaekningPeriodeSlutDato","date",""]
["Underhold.xsd","UnderholdBørneBidragBeløbDåb","skat2020:BeløbType","2586350_UnderholdBoerneBidragBeloebDaabBeloeb","decimal",""]
["Underhold.xsd","UnderholdBørneBidragBeløbKonfirmation","skat2020:BeløbType","2586359_UnderholdBoerneBidragBeloebKonfirmationBeloeb","decimal",""]
["Underhold.xsd","UnderholdÆgtefælleBidragPeriodeStart","skat2020:DatoType","2547878_UnderholdAEgtefaelleBidragPeriodeStartDato","date",""]
["Underhold.xsd","UnderholdÆgtefælleBidragPeriodeSlut","skat2020:DatoType","2547887_UnderholdAEgtefaelleBidragPeriodeSlutDato","date",""]
["Virksomhed.xsd","VirksomhedSENummer","skat2020:SENummerType","481_VirksomhedSENummerIdentifikator","integer",""]
["Virksomhed.xsd","VirksomhedCVRNummer","skat2020:CVRNummerType","2547441_VirksomhedCVRNummerIdentifikator","string",""]
["VirksomhedOrdning.xsd","VirksomhedOrdningIndkomstTilVirksomhedsbeskatning","skat2020:BeløbDanskType","5565009_VirksomhedOrdningIndkomstTilVirksomhedsbeskatningBeloeb","decimal",""]
["VirksomhedOrdning.xsd","VirksomhedOrdningRentekorrektion","skat2020:BeløbDanskType","5565033_VirksomhedOrdningRentekorrektionBeloeb","decimal",{"$f":"IF(AND(D387<>\"\",B387<>\"-\",ISERROR(FIND(\"_\",D387))),CONCATENATE(D387,\".xsd\"),\"\")","v":""}]
["VirksomhedOrdning.xsd","VirksomhedOrdningKapitalafkast","skat2020:BeløbDanskType","5565048_VirksomhedOrdningKapitalafkastBeloeb","decimal",""]
["VirksomhedOrdning.xsd","VirksomhedOrdningRentekorrektionEfterAMBidrag","skat2020:BeløbDanskType","5565063_VirksomhedOrdningRentekorrektionEfterAMBidragBeloeb","decimal",""]
["VirksomhedSkattetillaeg.xsd","VirksomhedSkattetillægBeløb","skat2020:BeløbDanskType","5565078_VirksomhedSkattetillaegBeloeb","decimal",""]
["Virksomhedsskat.xsd","VirksomhedsskatBeløb","skat2020:BeløbDanskType","5565093_VirksomhedsskatBeloeb","decimal",""]
["Virksomhedsskat.xsd","VirksomhedsskatNedslagBeløb","skat2020:BeløbDanskType","5565108_VirksomhedsskatNedslagBeloeb","decimal",""]
["AdvisNummer.xsd","AdvisNummer","skat2020:TalHel5Type","4499423_AdvisIdentifier","string",""]
["AdvisTekst.xsd","AdvisTekst","skat2020:TekstLangType","4499403_AdvisTekst","string",""]
["AlderspensionAfgiftsBeloeb20PctOver5AAr.xsd","AlderspensionAfgiftsBeløb20PctOver5År","skat2020:BeløbDanskType","4252746_AlderspensionAfgiftsBeloeb20PctOver5AArBeloeb","decimal",""]
["AlderspensionAfgiftsBeloeb20PctUnder6AAr.xsd","AlderspensionAfgiftsBeløb20PctUnder6År","skat2020:BeløbDanskType","4252769_AlderspensionAfgiftsBeloeb20PctUnder6AArBeloeb","decimal",""]
["AlderspensionAfgiftsBeloeb40PctDiskvalificeret.xsd","AlderspensionAfgiftsBeløb40PctDiskvalificeret","skat2020:BeløbDanskType","4252805_AlderspensionAfgiftsBeloeb40PctDiskvalificeretBeloeb","decimal",""]
["AlderspensionAfgiftsBeloeb4Pct.xsd","AlderspensionAfgiftsBeløb4Pct","skat2020:BeløbDanskType","4252721_AlderspensionAfgiftsBeloeb4PctBeloeb","decimal",""]
["AlderspensionAfgiftsberegning20PctOg40Pct.xsd","AlderspensionAfgiftsberegning20PctOg40Pct","skat2020:BeløbDanskType","4252853_AlderspensionAfgiftsberegning20PctOg40PctBeloeb","decimal",""]
["AlderspensionAfgiftsberegning4Pct.xsd","AlderspensionAfgiftsberegning4Pct","skat2020:BeløbDanskType","4252837_AlderspensionAfgiftsberegning4PctBeloeb","decimal",""]
["AlderspensionDiskvalifikationKode.xsd","AlderspensionDiskvalifikationKode","skat2020:KodeEtTegnType","4252872_AlderspensionDiskvalifikationKode","string",""]
["DelaarSpecifikationBiblioteksAfgift.xsd","DelårSpecifikationBiblioteksAfgift","skat2020:BeløbType","2608706_DelaarSpecifikationBiblioteksafgiftBeloeb","decimal",""]
["DummyMarkering.xsd","DummyMarkering","skat2020:MarkeringType","2547546_DummyMarkeringIndikator","boolean",""]
["EjendomsavanceAngivelseGenanbringelsePlacering.xsd","EjendomsavanceAngivelseGenanbringelsePlacering","skat2020:KodeEtCifferStartNulType","2608733_EjendomsavanceGenanbringelsePlaceringKode","string",""]
["IndberetterautorisationUdloebDato.xsd","IndberetterautorisationUdløbDato","skat2020:DatoType","5074805_IndberetterautorisationUdloebDato","date",""]
["KapitalIndkomstAndenGaeldSURenteudgift.xsd","KapitalIndkomstAndenGældSURenteudgift","skat2020:BeløbType","2609107_KapitalindkomstAndenGaeldSURenteudgiftBeloeb","decimal",""]
["KapitalIndkomstAndenKapitalIndkomstVirksomhed.xsd","KapitalIndkomstAndenKapitalIndkomstVirksomhed","skat2020:BeløbType","2609194_KapitalindkomstAndenKapitalindkomstVirksomhedBeloeb","decimal",""]
["KapitalIndkomstEjendomsAvance.xsd","KapitalIndkomstEjendomsAvance","skat2020:BeløbType","2609205_KapitalindkomstEjendomsavanceBeloeb","decimal",""]
["KapitalIndkomstKapitalafkastOrdningen.xsd","KapitalIndkomstKapitalafkastOrdningen","skat2020:BeløbType","2609271_KapitalindkomstKapitalafkastordningenBeloeb","decimal",""]
["KapitalIndkomstKapitalafkastVirksomhedOrdningen.xsd","KapitalIndkomstKapitalafkastVirksomhedOrdningen","skat2020:BeløbType","2609281_KapitalindkomstKapitalafkastVirksomhedordningenBeloeb","decimal",""]
["KapitalIndkomstOverskudOphoerSkibsVirksomhed.xsd","KapitalIndkomstOverskudOphørSkibsVirksomhed","skat2020:BeløbType","2609302_KapitalindkomstOverskudOphoerSkibsvirksomhedBeloeb","decimal",""]
["KapitalIndkomstOverskudSkibsVirksomhed.xsd","KapitalIndkomstOverskudSkibsVirksomhed","skat2020:BeløbType","2609313_KapitalindkomstOverskudSkibsvirksomhedBeloeb","decimal",""]
["KapitalIndkomstPengeinstitutRenteudgift.xsd","KapitalIndkomstPengeinstitutRenteudgift","skat2020:BeløbType","2609324_KapitalindkomstPengeinstitutRenteudgiftBeloeb","decimal",""]
["KapitalIndkomstRealkreditinstitutRenteudgift.xsd","KapitalIndkomstRealkreditinstitutRenteudgift","skat2020:BeløbType","2609335_KapitalindkomstRealkreditinstitutRenteudgiftBeloeb","decimal",""]
["KapitalIndkomstRentekorrektion.xsd","KapitalIndkomstRentekorrektion","skat2020:BeløbType","2609889_KapitalindkomstRentekorrektionBeloeb","decimal",""]
["KapitalIndkomstStudielaanRenteudgift.xsd","KapitalIndkomstStudielånRenteudgift","skat2020:BeløbType","2610459_KapitalindkomstStudielaanRenteudgiftBeloeb","decimal",""]
["KapitalIndkomstUdlodningInvesteringsForeningVirksomhed.xsd","KapitalIndkomstUdlodningInvesteringsForeningVirksomhed","skat2020:BeløbType","2610470_KapitalindkomstUdlodningInvesteringsforeningVirksomhedBeloeb","decimal",""]
["KapitalIndkomstVirksomhedRenteudgift.xsd","KapitalIndkomstVirksomhedRenteudgift","skat2020:BeløbType","2610481_KapitalindkomstVirksomhedRenteudgiftBeloeb","decimal",""]
["KonjunkturudligningsskatHenlaeggelse.xsd","KonjunkturudligningsskatHenlæggelse","skat2020:BeløbDanskType","5565138_KonjunkturudligningsskatHenlaeggelseBeloeb","decimal",""]
["LigningsmaessigtFradragEkstraPensionsfradragBeloeb.xsd","LigningsmæssigtFradragEkstraPensionsfradragBeløb","skat2020:BeløbDanskType","4253189_LigningsmaessigtFradragEkstraPensionsfradragBeloeb","decimal",""]
["LigningsmaessigtFradragJobFradragBeloeb.xsd","LigningsmæssigtFradragJobFradragBeløb","skat2020:BeløbDanskType","4253172_LigningsmaessigtFradragJobFradragBeloeb","decimal",""]
["MyndighedNummer.xsd","MyndighedNummer","skat2020:MyndighedNummerType","4695_AuthorityCode","integer",""]
["NedslagBundskat.xsd","NedslagBundskatUdenlandskPensionCredit","skat2020:BeløbDanskType","5554701_NedslagBundskatUdenlandskPensionCreditBeloeb","decimal",""]
["PersonligIndkomstAndenPersonligIndkomstEfterAMBidrag.xsd","PersonligIndkomstAndenPersonligIndkomstEfterAMBidrag","skat2020:BeløbType","2609410_PersonligIndkomstAndenPersonligIndkomstEfterAMBidragBeloeb","decimal",""]
["PersonligIndkomstFradragGaesteStuderendeEfter.xsd","PersonligIndkomstFradragGæsteStuderendeEfter","skat2020:BeløbType","2609421_PersonligIndkomstFradragGaesteStuderendeEfterBeloeb","decimal",""]
["PersonligIndkomstFradragGaesteStuderendeFoer.xsd","PersonligIndkomstFradragGæsteStuderendeFør","skat2020:BeløbType","2609432_PersonligIndkomstFradragGaesteStuderendeFoerBeloeb","decimal",""]
["PersonligIndkomstFradragIndskudIvaerksaetterKonto.xsd","PersonligIndkomstFradragIndskudIværksætterKonto","skat2020:BeløbType","2609519_PersonligIndkomstFradragIndskudIvaerksaetterKontoBeloeb","decimal",""]
["PersonligIndkomstFradragMedarbejdendeAEgtefaelle.xsd","PersonligIndkomstFradragMedarbejdendeÆgtefælle","skat2020:BeløbType","2609530_PersonligIndkomstFradragMedarbejdendeAegtefaelleBeloeb","decimal",""]
["PersonligIndkomstHonorarEfterAMBidrag.xsd","PersonligIndkomstHonorarEfterAMBidrag","skat2020:BeløbDanskType","2548330_PersonligIndkomstHonorarEfterAMBidragBeloeb","decimal",""]
["PersonligIndkomstIndkomstVirksomhedsBeskatning.xsd","PersonligIndkomstIndkomstVirksomhedsBeskatning","skat2020:BeløbType","2609578_PersonligIndkomstIndkomstVirksomhedsBeskatningBeloeb","decimal",""]
["PersonligIndkomstJubilaeumsGratialeFratraedelsesGodtgoerelseEfterAMBidrag.xsd","PersonligIndkomstJubilæumsGratialeFratrædelsesGodtgørelseEfterAMBidrag","skat2020:BeløbDanskType","2547423_PersonligIndkomstJubilaeumsGratialeFratraedelsesGodtgoerelseEfterAMBidragBeloeb","decimal",""]
["PersonligIndkomstLoenIndkomstEfterAM.xsd","PersonligIndkomstLønIndkomstEfterAM","skat2020:BeløbType","2609636_PersonligIndkomstLoenIndkomstEfterAMBeloeb","decimal",""]
["PersonligIndkomstOverfoertKonjunkturUdligning.xsd","PersonligIndkomstOverførtKonjunkturUdligning","skat2020:BeløbType","2609748_PersonligIndkomstOverfoertKonjunkturUdligningBeloeb","decimal",""]
["PersonligIndkomstOverfoertKonjunkturUdligningProcent.xsd","PersonligIndkomstOverførtKonjunkturUdligningProcent","skat2020:ProcentType","2609760_PersonligIndkomstOverfoertKonjunkturUdligningProcent","decimal",""]
["PersonligIndkomstOverfoertKonjunkturUdligningSum.xsd","PersonligIndkomstOverførtKonjunkturUdligningSum","skat2020:BeløbType","2609771_PersonligIndkomstOverfoertKonjunkturUdligningSumBeloeb","decimal",""]
["PersonligIndkomstOverfoertOpsparetOverskud.xsd","PersonligIndkomstOverførtOpsparetOverskud","skat2020:BeløbType","2609782_PersonligIndkomstOverfoertOpsparetOverskudBeloeb","decimal",""]
["PersonligIndkomstOverfoertOpsparetOverskudProcent.xsd","PersonligIndkomstOverførtOpsparetOverskudProcent","skat2020:ProcentType","2609793_PersonligIndkomstOverfoertOpsparetOverskudProcent","decimal",""]
["PersonligIndkomstOverfoertOpsparetOverskudSuccession.xsd","PersonligIndkomstOverførtOpsparetOverskudSuccession","skat2020:BeløbType","5565153_PersonligIndkomstOverfoertOpsparetOverskudSuccessionBeloeb","decimal",""]
["PersonligIndkomstOverfoertOpsparetOverskudSuccessionProcent.xsd","PersonligIndkomstOverførtOpsparetOverskudSuccessionProcent","skat2020:ProcentType","5565168_PersonligIndkomstOverfoertOpsparetOverskudSuccessionProcent","decimal",""]
["PersonligIndkomstOverfoertOpsparetOverskudSuccessionSum.xsd","PersonligIndkomstOverførtOpsparetOverskudSuccessionSum","skat2020:BeløbType","5565183_PersonligIndkomstOverfoertOpsparetOverskudSuccessionSumBeloeb","decimal",""]
["PersonligIndkomstOverfoertOpsparetOverskudSum.xsd","PersonligIndkomstOverførtOpsparetOverskudSum","skat2020:BeløbType","2609803_PersonligIndkomstOverfoertOpsparetOverskudSumBeloeb","decimal",""]
["PersonligIndkomstPrivatDagplejeHushjaelpEfterAMBidrag.xsd","PersonligIndkomstPrivatDagplejeHushjælpEfterAMBidrag","skat2020:BeløbDanskType","2548339_PersonligIndkomstPrivatDagplejeHushjaelpEfterAMBidragBeloeb","decimal",""]
["PersonligIndkomstPrivatLivsvarigPensionsOrdning.xsd","PersonligIndkomstPrivatLivsvarigPensionsOrdning","skat2020:BeløbType","2609681_PersonligIndkomstPrivatLivsvarigPensionsOrdningBeloeb","decimal",""]
["PersonligIndkomstRenteIndtaegtVirksomhed.xsd","PersonligIndkomstRenteIndtægtVirksomhed","skat2020:BeløbType","2609692_PersonligIndkomstRenteIndtaegtVirksomhedBeloeb","decimal",""]
["PersonligIndkomstTilbageBetalingKontantHjaelpIntroYdelse.xsd","PersonligIndkomstTilbageBetalingKontantHjælpIntroYdelse","skat2020:BeløbType","2609703_PersonligIndkomstTilbageBetalingKontantHjaelpIntroYdelseBeloeb","decimal",""]
["PersonligIndkomstTotalEfterAMBidrag.xsd","PersonligIndkomstTotalEfterAMBidrag","skat2020:BeløbDanskType","2547432_PersonligIndkomstTotalEfterAMBidragBeloeb","decimal",""]
["PersonligIndkomstUnderskudVirksomhed.xsd","PersonligIndkomstUnderskudVirksomhed","skat2020:BeløbType","2609726_PersonligIndkomstUnderskudVirksomhedBeloeb","decimal",""]
["PersonligIndkomstVirksomhedsBeskatningKonjunktur.xsd","PersonligIndkomstVirksomhedsBeskatningKonjunktur","skat2020:BeløbType","2609737_PersonligIndkomstVirksomhedsBeskatningKonjunkturBeloeb","decimal",""]
["PersonligIndkomstOEvrigeFradragPersonligIndkomst.xsd","PersonligIndkomstØvrigeFradragPersonligIndkomst","skat2020:BeløbType","2609387_PersonligIndkomstOevrigeFradragPersonligIndkomstBeloeb","decimal",""]
["PersonNavnEfterNavn.xsd","PersonNavnEfterNavn","skat2020:NavnType","3363_PersonSurnameName","string",""]
["PersonNavnForNavn.xsd","PersonNavnForNavn","skat2020:NavnType ","1693_PersonGivenName","string",{"$f":"IF(AND(D451<>\"\",B451<>\"-\",ISERROR(FIND(\"_\",D451))),CONCATENATE(D451,\".xsd\"),\"\")","v":""}]
["RenteUdgiftAndenGaeldGaeldTilPrivat.xsd","RenteUdgiftAndenGældGældTilPrivat","skat2020:BeløbType","2547923_RenteUdgiftAndenGaeldGaeldTilPrivatBeloeb","decimal",""]
["RenteUdgiftAndenGaeldLaanMedMereEndToEjere.xsd","RenteUdgiftAndenGældLånMedMereEndToEjere","skat2020:BeløbType","2586368_RenteUdgiftAndenGaeldLaanMedMereEndToEjereBeloeb","decimal",""]
["RenteUdgiftAndenGaeldStatsgarantStudielaanIPengeinstitut.xsd","RenteUdgiftAndenGældStatsgarantStudielånIPengeinstitut","skat2020:BeløbType","2547896_RenteUdgiftAndenGaeldStatsgarantStudielaanIPengeinstitutBeloeb","decimal",""]
["RenteUdgiftAndenGaeldStiftelseProvision.xsd","RenteUdgiftAndenGældStiftelseProvision","skat2020:BeløbType","2547905_RenteUdgiftAndenGaeldStiftelseProvisionBeloeb","decimal",""]
["SagHandlingType.xsd","SagHandlingType","skat2020:Tekst1Type","5565123_SagHandlingTypeTekst","string",""]
["SkibNationalitet.xsd","SkibNationalitet","skat2020:Tekst1Type","5565198_SkibNationalitetIdentifikator","string",""]
["SlutOpgoerelseFilIndhold.xsd","SlutOpgørelseFilIndhold","skat2020:FilType","1624757_OpgoerelseFilIndholdData","base64Binary",""]
["ToFamilieBenyttelseKode.xsd","ToFamilieBenyttelseKode","skat2020:TalHel1Type","4253306_ToFamilieBenyttelseKode","integer",""]
["ToFamilieEnhedsloebeNummer.xsd","ToFamilieEnhedsløbeNummer","skat2020:TalHel1Type","4253237_ToFamilieEnhedsloebeNummerIdentifikator","integer",""]
["UdenlandskFormueAktieBevisKursvaerdi.xsd","UdenlandskFormueAktieBevisKursværdi","skat2020:BeløbDanskType","5565213_UdenlandskFormueAktieBevisKursvaerdiBeloeb","decimal",""]
["UdenlandskFormueFastEjendom.xsd","UdenlandskFormueFastEjendom","skat2020:BeløbDanskType","5565228_UdenlandskFormueFastEjendomBeloeb","decimal",""]
["UdenlandskKapitalIndkomst.xsd","UdenlandskKapitalIndkomstBeløb","skat2020:BeløbDanskType","5564229_UdenlandskKapitalIndkomstBeloeb","decimal",""]
["UdviklerSENummer.xsd","UdviklerSENummer","skat2020:SENummerType","4253447_UdviklerSENummerIdentifikator","integer",""]
["UdviklerUnikIdentifikationskode.xsd","UdviklerUnikIdentifikationskode","skat2020:TekstKortType","5565243_UdviklerUnikIdentifikationskodeIdentifikator","string",""]
["UnikIdentifikationskode.xsd","UnikIdentifikationskode","skat2020:UUIDType","5565258_UnikIdentifikationskodeIdentifikator","string",""]
["AArligSkatteOplysningBeregnetSkat.xsd","ÅrligSkatteOplysningBeregnetSkat","skat2020:BeløbType","1625148_AarligSkatteOplysningBeregnetSkatBeloeb","decimal",""]
["AArligSkatteOplysningForskudSkat.xsd","ÅrligSkatteOplysningForskudSkat","skat2020:BeløbType","2610715_AarligSkatteoplysningForskudSkatBeloeb","decimal",""]
["AArligSkatteOplysningIndkomstAAr.xsd","ÅrligSkatteOplysningIndkomstÅr","skat2020:AarType","7437_AarIdentifikator","integer",""]
["AArligSkatteOplysningKapitalIndkomst.xsd","ÅrligSkatteOplysningKapitalIndkomst","skat2020:BeløbType","1625498_AarligSkatteOplysningKapitalindkomstBeloeb","decimal",""]
["AArligSkatteOplysningLigningsmaessigtFradrag.xsd","ÅrligSkatteOplysningLigningsmæssigtFradrag","skat2020:BeløbType","1625556_AarligSkatteOplysningLigningsmaessigtFradragBeloeb","decimal",""]
["AArligSkatteOplysningOverskydendeSkat.xsd","ÅrligSkatteOplysningOverskydendeSkat","skat2020:BeløbType","1625604_AarligSkatteOplysningOverskydendeSkatBeloeb","decimal",""]
["AArligSkatteOplysningPersonligIndkomst.xsd","ÅrligSkatteOplysningPersonligIndkomst","skat2020:BeløbType","1625752_AarligSkatteOplysningPersonligIndkomstBeloeb","decimal",""]
["AArligSkatteOplysningRestSkat.xsd","ÅrligSkatteOplysningRestSkat","skat2020:BeløbType","1625802_AarligSkatteOplysningRestskatBeloeb","decimal",""]
["AArligSkatteOplysningSkattePligtigIndkomst.xsd","ÅrligSkatteOplysningSkattePligtigIndkomst","skat2020:BeløbType","1625866_AarligSkatteOplysningSkattepligtigIndkomstBeloeb","decimal",""]
["NedslagUdenlandskIndkomst.xsd","NedslagUdenlandskIndkomstVirksomhedsbeskatning","skat2020:BeløbDanskType","5554892_NedslagUdenlandskIndkomstVirksomhedsbeskatningBeloeb","decimal",""]

{"sheet":"DigiResolver","index":1,"n_rows":476,"n_cols":3,"rows_kept":476,"cut":false,"hidden":false,"merged":[]}
["Navn","Namespace","Url"]
["2608580_AktierSpecifikationGevinstTabAktierMarkedBeloeb","urn:oio:skat:selvangivelse:1.0.0","http://digitaliser.dk/resource/2608580/artefact/AktierSpecifikationGevinstTabAktierMarkedBeloeb.xsd"]
["2608615_AktierSpecifikationUdbytteEjDkAktierEjMarkedBeloeb","urn:oio:skat:selvangivelse:1.0.0","http://digitaliser.dk/resource/2608615/artefact/AktierSpecifikationUdbytteEjDkAktierEjMarkedBeloeb.xsd"]
["2608626_AktierSpecifikationUdbytteEjDkAktierMarkedBeloeb","urn:oio:skat:selvangivelse:1.0.0","http://digitaliser.dk/resource/2608626/artefact/AktierSpecifikationUdbytteEjDkAktierMarkedBeloeb.xsd"]
["2608638_AktierSpecifikationUdbytteEjUdbytteSkatBeloeb","urn:oio:skat:selvangivelse:1.0.0","http://digitaliser.dk/resource/2608638/artefact/AktierSpecifikationUdbytteEjUdbytteSkatBeloeb.xsd"]
["2608593_AktierSpecifikationUdbytteDkAktierEjMarkedBeloeb","urn:oio:skat:selvangivelse:1.0.0","http://digitaliser.dk/resource/2608593/artefact/AktierSpecifikationUdbytteDkAktierEjMarkedBeloeb.xsd"]
["2608604_AktierSpecifikationUdbytteDkAktierMarkedBeloeb","urn:oio:skat:selvangivelse:1.0.0","http://digitaliser.dk/resource/2608604/artefact/AktierSpecifikationUdbytteDkAktierMarkedBeloeb.xsd"]
["2608652_AktierSpecifikationUdbytteUdenlandskAktierMarkedBeloeb","urn:oio:skat:selvangivelse:1.0.0","http://digitaliser.dk/resource/2608652/artefact/AktierSpecifikationUdbytteUdenlandskAktierMarkedBeloeb.xsd"]
["2608668_AktierSpecifikationUdbytteUdlodningEjUdbytteSkatBeloeb","urn:oio:skat:selvangivelse:1.0.0","http://digitaliser.dk/resource/2608668/artefact/AktierSpecifikationUdbytteUdlodningEjUdbytteSkatBeloeb.xsd"]
["6121_PostalAddressFirstLineText","http://rep.oio.dk/ebxml/xml/schemas/dkcc/2005/05/19/","http://digitaliser.dk/resource/6448/artefact/DKCC_PostalAddressFirstLineText.xsd"]
["2684_PostalAddressSecondLineText","http://rep.oio.dk/ebxml/xml/schemas/dkcc/2005/05/19/","http://digitaliser.dk/resource/5909/artefact/DKCC_PostalAddressSecondLineText.xsd"]
["5147_PostalAddressThirdLineText","http://rep.oio.dk/ebxml/xml/schemas/dkcc/2005/05/19/","http://digitaliser.dk/resource/1572/artefact/DKCC_PostalAddressThirdLineText.xsd"]
["1889_PostalAddressFourthLineText","http://rep.oio.dk/ebxml/xml/schemas/dkcc/2005/05/19/","http://digitaliser.dk/resource/4045/artefact/DKCC_PostalAddressFourthLineText.xsd"]
["839_PostalAddressFifthLineText","http://rep.oio.dk/ebxml/xml/schemas/dkcc/2005/05/19/","http://digitaliser.dk/resource/6906/artefact/DKCC_PostalAddressFifthLineText.xsd"]
["4803_PostalAddressSixthLineText","http://rep.oio.dk/ebxml/xml/schemas/dkcc/2005/05/19/","http://digitaliser.dk/resource/4722/artefact/DKCC_PostalAddressSixthLineText.xsd"]
["2547941_AlternativAdresseAdresseLinie7Text","urn:oio:skat:selvangivelse:1.0.0","http://digitaliser.dk/resource/2547941/artefact/AlternativAdresseAdresseLinie7Text.xsd"]
["2547236_BefordringsFradragBeloeb","urn:oio:skat:selvangivelse:1.0.0","http://digitaliser.dk/resource/2547236/artefact/BefordringsFradragBeloeb.xsd"]
["2547245_BeskaeftigelsesFradragBeloeb","urn:oio:skat:selvangivelse:1.0.0","http://digitaliser.dk/resource/2547245/artefact/BeskaeftigelsesFradragBeloeb.xsd"]
["2748243_BeskaeftigelsesFradragEnligForsoergerBeloeb","urn:oio:skat:selvangivelse:1.0.0","http://digitaliser.dk/resource/2748243/artefact/BeskaeftigelsesFradragEnligForsoergerBeloeb.xsd"]
["217_BlanketFeltNummerIdentifikator","http://rep.oio.dk/skat.dk/eindkomst/class/blanketfelt/xml/schemas/20071202/","http://digitaliser.dk/resource/2307/artefact/SKAT_BlanketFeltNummerIdentifikator.xsd"]
["2280_MunicipalRealPropertyIdentifier","http://rep.oio.dk/bbr.dk/xml/schemas/2005/03/11/","http://digitaliser.dk/resource/5760/artefact/BBR_MunicipalRealPropertyIdentifier.xsd"]
["2608965_EjendomAngivelseEjendomstypeKode","urn:oio:skat:selvangivelse:1.0.0","http://digitaliser.dk/resource/2608965/artefact/EjendomAngivelseEjendomstypeKode.xsd"]
["2609074_EjendomAngivelseOvertagelseDato","urn:oio:skat:selvangivelse:1.0.0","http://digitaliser.dk/resource/2609074/artefact/EjendomAngivelseOvertagelseDato.xsd"]
["2609041_EjendomAngivelseIndflytningEfterIndkomstaarIndikator","urn:oio:skat:selvangivelse:1.0.0","http://digitaliser.dk/resource/2609041/artefact/EjendomAngivelseIndflytningEfterIndkomstaarIndikator.xsd"]
["2609096_EjendomAngivelseUdflytningDato","urn:oio:skat:selvangivelse:1.0.0","http://digitaliser.dk/resource/2609096/artefact/EjendomAngivelseUdflytningDato.xsd"]
["2609085_EjendomAngivelseUbeboeligdageKvantitet","urn:oio:skat:selvangivelse:1.0.0","http://digitaliser.dk/resource/2609085/artefact/EjendomAngivelseUbeboeligdageKvantitet.xsd"]
["2608954_EjendomAngivelseDelvisUdlejningsdageKvantitet","urn:oio:skat:selvangivelse:1.0.0","http://digitaliser.dk/resource/2608954/artefact/EjendomAngivelseDelvisUdlejningsdageKvantitet.xsd"]
["2608755_EjendomAngivelseDelvisUdlejningsandelProcent","urn:oio:skat:selvangivelse:1.0.0","http://digitaliser.dk/resource/2608755/artefact/EjendomAngivelseDelvisUdlejningsandelProcent.xsd"]
["2609031_EjendomAngivelseHelUdlejningsdageKvantitet","urn:oio:skat:selvangivelse:1.0.0","http://digitaliser.dk/resource/2609031/artefact/EjendomAngivelseHelUdlejningsdageKvantitet.xsd"]
["2608998_EjendomAngivelseErhvervsanvendelsesandelProcent","urn:oio:skat:selvangivelse:1.0.0","http://digitaliser.dk/resource/2608998/artefact/EjendomAngivelseErhvervsanvendelsesandelProcent.xsd"]
["2609009_EjendomAngivelseErhvervsanvendelsesdageKvantitet","urn:oio:skat:selvangivelse:1.0.0","http://digitaliser.dk/resource/2609009/artefact/EjendomAngivelseErhvervsanvendelsesdageKvantitet.xsd"]
["2609020_EjendomAngivelseErhvervsudlejningsdageKvantitet","urn:oio:skat:selvangivelse:1.0.0","http://digitaliser.dk/resource/2609020/artefact/EjendomAngivelseErhvervsudlejningsdageKvantitet.xsd"]
["2547200_FastEjendomTabBeloeb","urn:oio:skat:selvangivelse:1.0.0","http://digitaliser.dk/resource/2547200/artefact/FastEjendomTabBeloeb.xsd"]
["2609183_KapitalIndkomstAndenKapitalIndkomstBeloeb","urn:oio:skat:selvangivelse:1.0.0","http://digitaliser.dk/resource/2609183/artefact/KapitalIndkomstAndenKapitalIndkomstBeloeb.xsd"]
["2609346_KapitalIndkomstRenteIndtaegtBeloeb","urn:oio:skat:selvangivelse:1.0.0","http://digitaliser.dk/resource/2609346/artefact/KapitalIndkomstRenteIndtaegtBeloeb.xsd"]
["2609227_KapitalIndkomstGevinstTabAktierBevisInvesteringsSelskabBeloeb","urn:oio:skat:selvangivelse:1.0.0","http://digitaliser.dk/resource/2609227/artefact/KapitalIndkomstGevinstTabAktierBevisInvesteringsSelskabBeloeb.xsd"]
["2609238_KapitalIndkomstGevinstTabObligationerEjMarkedBeloeb","urn:oio:skat:selvangivelse:1.0.0","http://digitaliser.dk/resource/2609238/artefact/KapitalIndkomstGevinstTabObligationerEjMarkedBeloeb.xsd"]
["2609260_KapitalIndkomstGevinstTabObligationerMarkedBeloeb","urn:oio:skat:selvangivelse:1.0.0","http://digitaliser.dk/resource/2609260/artefact/KapitalIndkomstGevinstTabObligationerMarkedBeloeb.xsd"]
["2609216_KapitalIndkomstFinansielleKontrakterBeloeb","urn:oio:skat:selvangivelse:1.0.0","http://digitaliser.dk/resource/2609216/artefact/KapitalIndkomstFinansielleKontrakterBeloeb.xsd"]
["2609860_KapitalIndkomstReserveFondsUdlodningVaerdiStigningBeloeb","urn:oio:skat:selvangivelse:1.0.0","http://digitaliser.dk/resource/2609860/artefact/KapitalIndkomstReserveFondsUdlodningVaerdiStigningBeloeb.xsd"]
["2609872_KapitalIndkomstUdbytteUdlodningInvesteringsForeningBeloeb","urn:oio:skat:selvangivelse:1.0.0","http://digitaliser.dk/resource/2609872/artefact/KapitalIndkomstUdbytteUdlodningInvesteringsForeningBeloeb.xsd"]
["2609291_KapitalIndkomstNettoLejeIndtaegtBeloeb","urn:oio:skat:selvangivelse:1.0.0","http://digitaliser.dk/resource/2609291/artefact/KapitalIndkomstNettoLejeIndtaegtBeloeb.xsd"]
["2609249_KapitalIndkomstGevinstTabObligationerInvesteringForeningBeloeb","urn:oio:skat:selvangivelse:1.0.0","http://digitaliser.dk/resource/2609249/artefact/KapitalIndkomstGevinstTabObligationerInvesteringForeningBeloeb.xsd"]
["5074713_KapitalIndkomstRenteIndtaegtVirksomhedBeloeb","urn:oio:skat:selvangivelse:1.0.0","http://www.digitaliser.dk/resource/5074713/artefact/KapitalIndkomstRenteIndtaegtVirksomhedBeloeb.xsd"]
["1965_CountryIdentificationCode","http://rep.oio.dk/ebxml/xml/schemas/dkcc/2003/02/13/","http://digitaliser.dk/resource/3166/artefact/DKCC_CountryIdentificationCode.xsd"]
["2547227_LigningsmaessigtFradragAkasseBeloeb","urn:oio:skat:selvangivelse:1.0.0","http://digitaliser.dk/resource/2547227/artefact/LigningsmaessigtFradragAkasseBeloeb.xsd"]
["2547254_LigningsmaessigtFradragBoerneDagplejereFiskereBeloeb","urn:oio:skat:selvangivelse:1.0.0","http://digitaliser.dk/resource/2547254/artefact/LigningsmaessigtFradragBoerneDagplejereFiskereBeloeb.xsd"]
["2547317_LigningsmaessigtFradragRejseUdgifterBeloeb","urn:oio:skat:selvangivelse:1.0.0","http://digitaliser.dk/resource/2547317/artefact/LigningsmaessigtFradragRejseUdgifterBeloeb.xsd"]
["2547263_LigningsmaessigtFradragFagligtKontingentBeloeb","urn:oio:skat:selvangivelse:1.0.0","http://digitaliser.dk/resource/2547263/artefact/LigningsmaessigtFradragFagligtKontingentBeloeb.xsd"]
["2547272_LigningsmaessigtFradragGaverForeningerBeloeb","urn:oio:skat:selvangivelse:1.0.0","http://digitaliser.dk/resource/2547272/artefact/LigningsmaessigtFradragGaverForeningerBeloeb.xsd"]
["2547281_LigningsmaessigtFradragGaverKulturForskningBeloeb","urn:oio:skat:selvangivelse:1.0.0","http://digitaliser.dk/resource/2547281/artefact/LigningsmaessigtFradragGaverKulturForskningBeloeb.xsd"]
["2547290_LigningsmaessigtFradragIndskudEtableringsKontoBeloeb","urn:oio:skat:selvangivelse:1.0.0","http://digitaliser.dk/resource/2547290/artefact/LigningsmaessigtFradragIndskudEtableringsKontoBeloeb.xsd"]
["2547299_LigningsmaessigtFradragKontingentVirksomhedBeloeb","urn:oio:skat:selvangivelse:1.0.0","http://digitaliser.dk/resource/2547299/artefact/LigningsmaessigtFradragKontingentVirksomhedBeloeb.xsd"]
["2547308_LigningsmaessigtFradragLoebendeYdelserForeningerBeloeb","urn:oio:skat:selvangivelse:1.0.0","http://digitaliser.dk/resource/2547308/artefact/LigningsmaessigtFradragLoebendeYdelserForeningerBeloeb.xsd"]
["2547378_LigningsmaessigtFradragUdgifterFrededeBygningerBeloeb","urn:oio:skat:selvangivelse:1.0.0","http://www.digitaliser.dk/resource/2547378/artefact/LigningsmaessigtFradragUdgifterFrededeBygningerBeloeb.xsd"]
["2547387_LigningsmaessigtFradragUdgifterServiceFradragBeloeb","urn:oio:skat:selvangivelse:1.0.0","http://digitaliser.dk/resource/2547387/artefact/LigningsmaessigtFradragUdgifterServiceFradragBeloeb.xsd"]
["2547396_LigningsmaessigtFradragUnderholdsBidragBoerneBidragBeloeb","urn:oio:skat:selvangivelse:1.0.0","http://digitaliser.dk/resource/2547396/artefact/LigningsmaessigtFradragUnderholdsBidragBoerneBidragBeloeb.xsd"]
["2547405_LigningsmaessigtFradragOEvrigeLoenmodtagerUdgifterBeloeb","urn:oio:skat:selvangivelse:1.0.0","http://digitaliser.dk/resource/2547405/artefact/LigningsmaessigtFradragOEvrigeLoenmodtagerUdgifterBeloeb.xsd"]
["2748254_LigningsmaessigtFradragBoerneDagplejereStandardBeloeb","urn:oio:skat:selvangivelse:1.0.0","http://digitaliser.dk/resource/2748254/artefact/LigningsmaessigtFradragBoerneDagplejereStandardBeloeb.xsd"]
["2748265_LigningsmaessigtFradragMedarbejdendeAegtefaelleSygeArbejdsskadeForsikringBeloeb","urn:oio:skat:selvangivelse:1.0.0","http://digitaliser.dk/resource/2748265/artefact/LigningsmaessigtFradragMedarbejdendeAegtefaelleSygeArbejdsskadeForsikringBeloeb.xsd"]
["2610693_OevrigeOplysningerBeregningsgrundlagAcontoSkatBeloeb","urn:oio:skat:selvangivelse:1.0.0","http://digitaliser.dk/resource/2610693/artefact/OevrigeOplysningerBeregningsgrundlagAcontoSkatBeloeb.xsd"]
["2610704_OevrigeOplysningerBeregningsgrundlagAcontoSkatSuccessionBeloeb","urn:oio:skat:selvangivelse:1.0.0","http://digitaliser.dk/resource/2610704/artefact/OevrigeOplysningerBeregningsgrundlagAcontoSkatSuccessionBeloeb.xsd"]
["3070_PersonCivilRegistrationIdentifier","http://rep.oio.dk/cpr.dk/xml/schemas/core/2005/03/18/","http://digitaliser.dk/resource/3541/artefact/CPR_PersonCivilRegistrationIdentifier.xsd"]
["5265_BirthDate","http://rep.oio.dk/ebxml/xml/schemas/dkcc/2005/03/15/","http://digitaliser.dk/resource/6189/artefact/DKCC_BirthDate.xsd"]
["2609624_PersonligIndkomstLoenIndkomstBeloeb","urn:oio:skat:selvangivelse:1.0.0","http://digitaliser.dk/resource/2609624/artefact/PersonligIndkomstLoenIndkomstBeloeb.xsd"]
["2609658_PersonligIndkomstPensionDagpengeStipendieBeloeb","urn:oio:skat:selvangivelse:1.0.0","http://digitaliser.dk/resource/2609658/artefact/PersonligIndkomstPensionDagpengeStipendieBeloeb.xsd"]
["2609670_PersonligIndkomstPrivatDagplejeHushjaelpBeloeb","urn:oio:skat:selvangivelse:1.0.0","http://digitaliser.dk/resource/2609670/artefact/PersonligIndkomstPrivatDagplejeHushjaelpBeloeb.xsd"]
["2608744_PersonligIndkomstHonorarBeloeb","urn:oio:skat:selvangivelse:1.0.0","http://digitaliser.dk/resource/2608744/artefact/PersonligIndkomstHonorarBeloeb.xsd"]
["2609714_PersonligIndkomstUnderholdsbidragBeloeb","urn:oio:skat:selvangivelse:1.0.0","http://digitaliser.dk/resource/2609714/artefact/PersonligIndkomstUnderholdsbidragBeloeb.xsd"]
["2606422_PersonligIndkomstGruppeLivsForsikringLegatPersonaleGoderBeloeb","urn:oio:skat:selvangivelse:1.0.0","http://digitaliser.dk/resource/2606422/artefact/PersonligIndkomstGruppeLivsForsikringLegatPersonaleGoderBeloeb.xsd"]
["2609600_PersonligIndkomstJubilaeumsGratialeFratraedelsesGodtgoerelseBeloeb","urn:oio:skat:selvangivelse:1.0.0","http://digitaliser.dk/resource/2609600/artefact/PersonligIndkomstJubilaeumsGratialeFratraedelsesGodtgoerelseBeloeb.xsd"]
["2609398_PersonligIndkomstAndenPersonligIndkomstBeloeb","urn:oio:skat:selvangivelse:1.0.0","http://digitaliser.dk/resource/2609398/artefact/PersonligIndkomstAndenPersonligIndkomstBeloeb.xsd"]
["2609541_PersonligIndkomstHaedersGaverBeloeb","urn:oio:skat:selvangivelse:1.0.0","http://digitaliser.dk/resource/2609541/artefact/PersonligIndkomstHaedersGaverBeloeb.xsd"]
["2609612_PersonligIndkomstKapitalafkastAktierAnparterBeloeb","urn:oio:skat:selvangivelse:1.0.0","http://digitaliser.dk/resource/2609612/artefact/PersonligIndkomstKapitalafkastAktierAnparterBeloeb.xsd"]
["2609553_PersonligIndkomstHaevningEtableringsKontoBeloeb","urn:oio:skat:selvangivelse:1.0.0","http://digitaliser.dk/resource/2609553/artefact/PersonligIndkomstHaevningEtableringsKontoBeloeb.xsd"]
["2609565_PersonligIndkomstHaevningIvaerksaetterKontoBeloeb","urn:oio:skat:selvangivelse:1.0.0","http://digitaliser.dk/resource/2609565/artefact/PersonligIndkomstHaevningIvaerksaetterKontoBeloeb.xsd"]
["2609647_PersonligIndkomstOverskudVirksomhedUdlejningEjendomBeloeb","urn:oio:skat:selvangivelse:1.0.0","http://digitaliser.dk/resource/2609647/artefact/PersonligIndkomstOverskudVirksomhedUdlejningEjendomBeloeb.xsd"]
["5074727_PersonligIndkomstEjendomsAvanceBeloeb","urn:oio:skat:selvangivelse:1.0.0","http://www.digitaliser.dk/resource/5074727/artefact/PersonligIndkomstEjendomsAvanceBeloeb.xsd"]
["5074740_PersonligIndkomstOverskudVirksomhedUdlejningEjendomEfterAMBidragBeloeb","urn:oio:skat:selvangivelse:1.0.0","http://www.digitaliser.dk/resource/5074740/artefact/PersonligIndkomstOverskudVirksomhedUdlejningEjendomEfterAMBidragBeloeb.xsd"]
["5074753_PersonligIndkomstResultatAfVirksomhedBeloeb","urn:oio:skat:selvangivelse:1.0.0","http://www.digitaliser.dk/resource/5074753/artefact/PersonligIndkomstResultatAfVirksomhedBeloeb.xsd"]
["5074766_PersonligIndkomstResultatAfVirksomhedEfterAMBidragBeloeb","urn:oio:skat:selvangivelse:1.0.0","http://www.digitaliser.dk/resource/5074766/artefact/PersonligIndkomstResultatAfVirksomhedEfterAMBidragBeloeb.xsd"]
["5074792_PersonligIndkomstVirksomhedRenteudgiftBeloeb","urn:oio:skat:selvangivelse:1.0.0","http://www.digitaliser.dk/resource/5074792/artefact/PersonligIndkomstVirksomhedRenteudgiftBeloeb.xsd"]
["7437_AarIdentifikator","http://rep.oio.dk/oib/dato.tid.maal/xml.schema/","http://digitaliser.dk/resource/7439/artefact/AarIdentifikator_20080901.xsd"]
["2610558_PersonSelvangivelseVirksomhedOphoerIndikator","urn:oio:skat:selvangivelse:1.0.0","http://digitaliser.dk/resource/2610558/artefact/PersonSelvangivelseVirksomhedOphoerIndikator.xsd"]
["2610569_PersonSelvangivelseVirksomhedOphoerTidligereIndikator","urn:oio:skat:selvangivelse:1.0.0","http://digitaliser.dk/resource/2610569/artefact/PersonSelvangivelseVirksomhedOphoerTidligereIndikator.xsd"]
["2610536_PersonSelvangivelseHenstandsbegaeringIndikator","urn:oio:skat:selvangivelse:1.0.0","http://digitaliser.dk/resource/2610536/artefact/PersonSelvangivelseHenstandsbegaeringIndikator.xsd"]
["2610492_PersonSelvangivelseBeskatningsordningKode","urn:oio:skat:selvangivelse:1.0.0","http://digitaliser.dk/resource/2610492/artefact/PersonSelvangivelseBeskatningsordningKode.xsd"]
["2610503_PersonSelvangivelseEjendomsoplysningAcceptIndikator","urn:oio:skat:selvangivelse:1.0.0","http://digitaliser.dk/resource/2610503/artefact/PersonSelvangivelseEjendomsoplysningAcceptIndikator.xsd"]
["2610514_PersonSelvangivelseEjendomsoplysningSupplementIndikator","urn:oio:skat:selvangivelse:1.0.0","http://digitaliser.dk/resource/2610514/artefact/PersonSelvangivelseEjendomsoplysningSupplementIndikator.xsd"]
["2610525_PersonSelvangivelseFradragHelaarsomregningIndikator","urn:oio:skat:selvangivelse:1.0.0","http://digitaliser.dk/resource/2610525/artefact/PersonSelvangivelseFradragHelaarsomregningIndikator.xsd"]
["2610591_RegnskabAngivelseOplysningsfritagelseIndikator","urn:oio:skat:selvangivelse:1.0.0","http://digitaliser.dk/resource/2610591/artefact/RegnskabAngivelseOplysningsfritagelseIndikator.xsd"]
["2610602_RegnskabAngivelseOplysningsfritagelseAarsagKode","urn:oio:skat:selvangivelse:1.0.0","http://digitaliser.dk/resource/2610602/artefact/RegnskabAngivelseOplysningsfritagelseAarsagKode.xsd"]
["2610625_RegnskabAngivelseRevisorbistandIndikator","urn:oio:skat:selvangivelse:1.0.0","http://digitaliser.dk/resource/2610625/artefact/RegnskabAngivelseRevisorbistandIndikator.xsd"]
["2610636_RegnskabAngivelseRevisorbistandArtKode","urn:oio:skat:selvangivelse:1.0.0","http://digitaliser.dk/resource/2610636/artefact/RegnskabAngivelseRevisorbistandArtKode.xsd"]
["2610647_RegnskabAngivelseRevisorerklaeringKode","urn:oio:skat:selvangivelse:1.0.0","http://digitaliser.dk/resource/2610647/artefact/RegnskabAngivelseRevisorerklaeringKode.xsd"]
["2610658_RegnskabAngivelseRevisorforbeholdKode","urn:oio:skat:selvangivelse:1.0.0","http://digitaliser.dk/resource/2610658/artefact/RegnskabAngivelseRevisorforbeholdKode.xsd"]
["2610613_RegnskabAngivelsePrivateAndeleArtKode","urn:oio:skat:selvangivelse:1.0.0","http://digitaliser.dk/resource/2610613/artefact/RegnskabAngivelsePrivateAndeleArtKode.xsd"]
["2610580_RegnskabAngivelseGaeldseftergivelseIndikator","urn:oio:skat:selvangivelse:1.0.0","http://digitaliser.dk/resource/2610580/artefact/RegnskabAngivelseGaeldseftergivelseIndikator.xsd"]
["2547191_ReguleretTabKontrakterBeloeb","urn:oio:skat:selvangivelse:1.0.0","http://digitaliser.dk/resource/2547191/artefact/ReguleretTabKontrakterBeloeb.xsd"]
["2547209_ReguleretTabKontrakterFremfoerselBeloeb","urn:oio:skat:selvangivelse:1.0.0","http://digitaliser.dk/resource/2547209/artefact/ReguleretTabKontrakterFremfoerselBeloeb.xsd"]
["2549200_ReguleretTabKontrakterKode","urn:oio:skat:selvangivelse:1.0.0","http://digitaliser.dk/resource/2549200/artefact/ReguleretTabKontrakterKode.xsd"]
["2610671_SelvangivelseFeltIndholdBeloeb","urn:oio:skat:selvangivelse:1.0.0","http://digitaliser.dk/resource/2610671/artefact/SelvangivelseFeltIndholdBeloeb.xsd"]
["2547459_ServicefradragAngivelseBeloeb","urn:oio:skat:selvangivelse:1.0.0","http://digitaliser.dk/resource/2547459/artefact/ServicefradragAngivelseBeloeb.xsd"]
["2547468_ServicefradragBetalingDato","urn:oio:skat:selvangivelse:1.0.0","http://digitaliser.dk/resource/2547468/artefact/ServicefradragBetalingDato.xsd"]
["3335038_ServicefradragArbejdstypeKode","urn:oio:skat:selvangivelse:1.0.0","http://digitaliser.dk/resource/3335038/artefact/ServicefradragArbejdstypeKode.xsd"]
["2594835_ServicefradragFritidsboligUdlejetIndikator","urn:oio:skat:selvangivelse:1.0.0","http://digitaliser.dk/resource/2594835/artefact/ServicefradragFritidsboligUdlejetIndikator.xsd"]
["2586324_ServicefradragUdenlandskVirksomhedNummerEllerNavnText","urn:oio:skat:selvangivelse:1.0.0","http://digitaliser.dk/resource/2586324/artefact/ServicefradragUdenlandskVirksomhedNummerEllerNavnText.xsd"]
["2547510_UnderholdAftaegtYdelseBeloeb","urn:oio:skat:selvangivelse:1.0.0","http://digitaliser.dk/resource/2547510/artefact/UnderholdAftaegtYdelseBeloeb.xsd"]
["2547869_UnderholdAEgtefaelleBidragMaanedligBeloeb","urn:oio:skat:selvangivelse:1.0.0","http://digitaliser.dk/resource/2547869/artefact/UnderholdAEgtefaelleBidragMaanedligBeloeb.xsd"]
["2547859_UnderholdBoerneBidragAftaltBeloebMaanedligBeloeb","urn:oio:skat:selvangivelse:1.0.0","http://digitaliser.dk/resource/2547859/artefact/UnderholdBoerneBidragAftaltBeloebMaanedligBeloeb.xsd"]
["2547850_UnderholdBoerneBidragNormalbidragProcentTillaegProcent","urn:oio:skat:selvangivelse:1.0.0","http://digitaliser.dk/resource/2547850/artefact/UnderholdBoerneBidragNormalbidragProcentTillaegProcent.xsd"]
["2547528_UnderholdBoerneBidragDaekningPeriodeStartDato","urn:oio:skat:selvangivelse:1.0.0","http://digitaliser.dk/resource/2547528/artefact/UnderholdBoerneBidragDaekningPeriodeStartDato.xsd"]
["2547537_UnderholdBoerneBidragDaekningPeriodeSlutDato","urn:oio:skat:selvangivelse:1.0.0","http://digitaliser.dk/resource/2547537/artefact/UnderholdBoerneBidragDaekningPeriodeSlutDato.xsd"]
["2586350_UnderholdBoerneBidragBeloebDaabBeloeb","urn:oio:skat:selvangivelse:1.0.0","http://digitaliser.dk/resource/2586350/artefact/UnderholdBoerneBidragBeloebDaabBeloeb.xsd"]
["2586359_UnderholdBoerneBidragBeloebKonfirmationBeloeb","urn:oio:skat:selvangivelse:1.0.0","http://digitaliser.dk/resource/2586359/artefact/UnderholdBoerneBidragBeloebKonfirmationBeloeb.xsd"]
["2547878_UnderholdAEgtefaelleBidragPeriodeStartDato","urn:oio:skat:selvangivelse:1.0.0","http://digitaliser.dk/resource/2547878/artefact/UnderholdAEgtefaelleBidragPeriodeStartDato.xsd"]
["2547887_UnderholdAEgtefaelleBidragPeriodeSlutDato","urn:oio:skat:selvangivelse:1.0.0","http://digitaliser.dk/resource/2547887/artefact/UnderholdAEgtefaelleBidragPeriodeSlutDato.xsd"]
["481_VirksomhedSENummerIdentifikator","http://rep.oio.dk/skat.dk/motor/class/virksomhed/xml/schemas/20080401/","http://digitaliser.dk/resource/2665/artefact/SKAT_VirksomhedSENummerIdentifikator.xsd"]
["2547441_VirksomhedCVRNummerIdentifikator","urn:oio:skat:selvangivelse:1.0.0","http://digitaliser.dk/resource/2547441/artefact/VirksomhedCVRNummerIdentifikator.xsd"]
["4499423_AdvisIdentifier","urn:oio:skat:selvangivelse:1.0.0","http://www.digitaliser.dk/resource/4499423/artefact/AdvisIdentifier.xsd"]
["4499403_AdvisTekst","urn:oio:skat:selvangivelse:1.0.0","http://www.digitaliser.dk/resource/4499403/artefact/AdvisTekst.xsd"]
["4252853_AlderspensionAfgiftsberegning20PctOg40PctBeloeb","urn:oio:skat:selvangivelse:1.0.0","http://www.digitaliser.dk/resource/4252853/artefact/AlderspensionAfgiftsberegning20PctOg40PctBeloeb.xsd"]
["4252837_AlderspensionAfgiftsberegning4PctBeloeb","urn:oio:skat:selvangivelse:1.0.0","http://www.digitaliser.dk/resource/4252837/artefact/AlderspensionAfgiftsberegning4PctBeloeb.xsd"]
["4252872_AlderspensionDiskvalifikationKode","urn:oio:skat:selvangivelse:1.0.0","http://www.digitaliser.dk/resource/4252872/artefact/AlderspensionDiskvalifikationKode.xsd"]
["2608706_DelaarSpecifikationBiblioteksafgiftBeloeb","urn:oio:skat:selvangivelse:1.0.0","http://digitaliser.dk/resource/2608706/artefact/DelaarSpecifikationBiblioteksafgiftBeloeb.xsd"]
["2547546_DummyMarkeringIndikator","urn:oio:skat:selvangivelse:1.0.0","http://digitaliser.dk/resource/2547546/artefact/DummyMarkeringIndikator.xsd"]
["2608733_EjendomsavanceGenanbringelsePlaceringKode","urn:oio:skat:selvangivelse:1.0.0","http://digitaliser.dk/resource/2608733/artefact/EjendomsavanceGenanbringelsePlaceringKode.xsd"]
["5074805_IndberetterautorisationUdloebDato","urn:oio:skat:selvangivelse:1.0.0","http://www.digitaliser.dk/resource/5074805/artefact/IndberetterautorisationUdloebDato.xsd"]
["2609107_KapitalindkomstAndenGaeldSURenteudgiftBeloeb","urn:oio:skat:selvangivelse:1.0.0","http://digitaliser.dk/resource/2609107/artefact/KapitalindkomstAndenGaeldSURenteudgiftBeloeb.xsd"]
["2609194_KapitalindkomstAndenKapitalindkomstVirksomhedBeloeb","urn:oio:skat:selvangivelse:1.0.0","http://digitaliser.dk/resource/2609194/artefact/KapitalindkomstAndenKapitalindkomstVirksomhedBeloeb.xsd"]
["2609205_KapitalindkomstEjendomsavanceBeloeb","urn:oio:skat:selvangivelse:1.0.0","http://digitaliser.dk/resource/2609205/artefact/KapitalindkomstEjendomsavanceBeloeb.xsd"]
["2609271_KapitalindkomstKapitalafkastordningenBeloeb","urn:oio:skat:selvangivelse:1.0.0","http://digitaliser.dk/resource/2609271/artefact/KapitalindkomstKapitalafkastordningenBeloeb.xsd"]
["2609281_KapitalindkomstKapitalafkastVirksomhedordningenBeloeb","urn:oio:skat:selvangivelse:1.0.0","http://digitaliser.dk/resource/2609281/artefact/KapitalindkomstKapitalafkastVirksomhedordningenBeloeb.xsd"]
["2609302_KapitalindkomstOverskudOphoerSkibsvirksomhedBeloeb","urn:oio:skat:selvangivelse:1.0.0","http://digitaliser.dk/resource/2609302/artefact/KapitalindkomstOverskudOphoerSkibsvirksomhedBeloeb.xsd"]
["2609313_KapitalindkomstOverskudSkibsvirksomhedBeloeb","urn:oio:skat:selvangivelse:1.0.0","http://digitaliser.dk/resource/2609313/artefact/KapitalindkomstOverskudSkibsvirksomhedBeloeb.xsd"]
["2609324_KapitalindkomstPengeinstitutRenteudgiftBeloeb","urn:oio:skat:selvangivelse:1.0.0","http://digitaliser.dk/resource/2609324/artefact/KapitalindkomstPengeinstitutRenteudgiftBeloeb.xsd"]
["2609335_KapitalindkomstRealkreditinstitutRenteudgiftBeloeb","urn:oio:skat:selvangivelse:1.0.0","http://digitaliser.dk/resource/2609335/artefact/KapitalindkomstRealkreditinstitutRenteudgiftBeloeb.xsd"]
["2609889_KapitalindkomstRentekorrektionBeloeb","urn:oio:skat:selvangivelse:1.0.0","http://digitaliser.dk/resource/2609889/artefact/KapitalindkomstRentekorrektionBeloeb.xsd"]
["2610459_KapitalindkomstStudielaanRenteudgiftBeloeb","urn:oio:skat:selvangivelse:1.0.0","http://digitaliser.dk/resource/2610459/artefact/KapitalindkomstStudielaanRenteudgiftBeloeb.xsd"]
["2610481_KapitalindkomstVirksomhedRenteudgiftBeloeb","urn:oio:skat:selvangivelse:1.0.0","http://digitaliser.dk/resource/2610481/artefact/KapitalindkomstVirksomhedRenteudgiftBeloeb.xsd"]
["4253189_LigningsmaessigtFradragEkstraPensionsfradragBeloeb","urn:oio:skat:selvangivelse:1.0.0","http://www.digitaliser.dk/resource/4253189/artefact/LigningsmaessigtFradragEkstraPensionsfradragBeloeb.xsd"]
["4253172_LigningsmaessigtFradragJobFradragBeloeb","urn:oio:skat:selvangivelse:1.0.0","http://www.digitaliser.dk/resource/4253172/artefact/LigningsmaessigtFradragJobFradragBeloeb.xsd"]
["4695_AuthorityCode","http://rep.oio.dk/cpr.dk/xml/schemas/core/2005/03/18/","http://digitaliser.dk/resource/1042/artefact/CPR_AuthorityCode.xsd"]
["2609410_PersonligIndkomstAndenPersonligIndkomstEfterAMBidragBeloeb","urn:oio:skat:selvangivelse:1.0.0","http://digitaliser.dk/resource/2609410/artefact/PersonligIndkomstAndenPersonligIndkomstEfterAMBidragBeloeb.xsd"]
["2609421_PersonligIndkomstFradragGaesteStuderendeEfterBeloeb","urn:oio:skat:selvangivelse:1.0.0","http://digitaliser.dk/resource/2609421/artefact/PersonligIndkomstFradragGaesteStuderendeEfterBeloeb.xsd"]
["2609432_PersonligIndkomstFradragGaesteStuderendeFoerBeloeb","urn:oio:skat:selvangivelse:1.0.0","http://digitaliser.dk/resource/2609432/artefact/PersonligIndkomstFradragGaesteStuderendeFoerBeloeb.xsd"]
["2609519_PersonligIndkomstFradragIndskudIvaerksaetterKontoBeloeb","urn:oio:skat:selvangivelse:1.0.0","http://digitaliser.dk/resource/2609519/artefact/PersonligIndkomstFradragIndskudIvaerksaetterKontoBeloeb.xsd"]
["2609530_PersonligIndkomstFradragMedarbejdendeAegtefaelleBeloeb","urn:oio:skat:selvangivelse:1.0.0","http://digitaliser.dk/resource/2609530/artefact/PersonligIndkomstFradragMedarbejdendeAegtefaelleBeloeb.xsd"]
["2548330_PersonligIndkomstHonorarEfterAMBidragBeloeb","urn:oio:skat:selvangivelse:1.0.0","http://digitaliser.dk/resource/2548330/artefact/PersonligIndkomstHonorarEfterAMBidragBeloeb.xsd"]
["2609578_PersonligIndkomstIndkomstVirksomhedsBeskatningBeloeb","urn:oio:skat:selvangivelse:1.0.0","http://digitaliser.dk/resource/2609578/artefact/PersonligIndkomstIndkomstVirksomhedsBeskatningBeloeb.xsd"]
["2547423_PersonligIndkomstJubilaeumsGratialeFratraedelsesGodtgoerelseEfterAMBidragBeloeb","urn:oio:skat:selvangivelse:1.0.0","http://digitaliser.dk/resource/2547423/artefact/PersonligIndkomstJubilaeumsGratialeFratraedelsesGodtgoerelseEfterAMBidragBeloeb.xsd"]
["2609636_PersonligIndkomstLoenIndkomstEfterAMBeloeb","urn:oio:skat:selvangivelse:1.0.0","http://digitaliser.dk/resource/2609636/artefact/PersonligIndkomstLoenIndkomstEfterAMBeloeb.xsd"]
["2609748_PersonligIndkomstOverfoertKonjunkturUdligningBeloeb","urn:oio:skat:selvangivelse:1.0.0","http://digitaliser.dk/resource/2609748/artefact/PersonligIndkomstOverfoertKonjunkturUdligningBeloeb.xsd"]
["2609771_PersonligIndkomstOverfoertKonjunkturUdligningSumBeloeb","urn:oio:skat:selvangivelse:1.0.0","http://digitaliser.dk/resource/2609771/artefact/PersonligIndkomstOverfoertKonjunkturUdligningSumBeloeb.xsd"]
["2609782_PersonligIndkomstOverfoertOpsparetOverskudBeloeb","urn:oio:skat:selvangivelse:1.0.0","http://digitaliser.dk/resource/2609782/artefact/PersonligIndkomstOverfoertOpsparetOverskudBeloeb.xsd"]
["2609793_PersonligIndkomstOverfoertOpsparetOverskudProcent","urn:oio:skat:selvangivelse:1.0.0","http://digitaliser.dk/resource/2609793/artefact/PersonligIndkomstOverfoertOpsparetOverskudProcent.xsd"]
["2609803_PersonligIndkomstOverfoertOpsparetOverskudSumBeloeb","urn:oio:skat:selvangivelse:1.0.0","http://digitaliser.dk/resource/2609803/artefact/PersonligIndkomstOverfoertOpsparetOverskudSumBeloeb.xsd"]
["2548339_PersonligIndkomstPrivatDagplejeHushjaelpEfterAMBidragBeloeb","urn:oio:skat:selvangivelse:1.0.0","http://digitaliser.dk/resource/2548339/artefact/PersonligIndkomstPrivatDagplejeHushjaelpEfterAMBidragBeloeb.xsd"]
["2609681_PersonligIndkomstPrivatLivsvarigPensionsOrdningBeloeb","urn:oio:skat:selvangivelse:1.0.0","http://digitaliser.dk/resource/2609681/artefact/PersonligIndkomstPrivatLivsvarigPensionsOrdningBeloeb.xsd"]
["2609692_PersonligIndkomstRenteIndtaegtVirksomhedBeloeb","urn:oio:skat:selvangivelse:1.0.0","http://digitaliser.dk/resource/2609692/artefact/PersonligIndkomstRenteIndtaegtVirksomhedBeloeb.xsd"]
["2609703_PersonligIndkomstTilbageBetalingKontantHjaelpIntroYdelseBeloeb","urn:oio:skat:selvangivelse:1.0.0","http://digitaliser.dk/resource/2609703/artefact/PersonligIndkomstTilbageBetalingKontantHjaelpIntroYdelseBeloeb.xsd"]
["2547432_PersonligIndkomstTotalEfterAMBidragBeloeb","urn:oio:skat:selvangivelse:1.0.0","http://digitaliser.dk/resource/2547432/artefact/PersonligIndkomstTotalEfterAMBidragBeloeb.xsd"]
["2609726_PersonligIndkomstUnderskudVirksomhedBeloeb","urn:oio:skat:selvangivelse:1.0.0","http://digitaliser.dk/resource/2609726/artefact/PersonligIndkomstUnderskudVirksomhedBeloeb.xsd"]
["2609737_PersonligIndkomstVirksomhedsBeskatningKonjunkturBeloeb","urn:oio:skat:selvangivelse:1.0.0","http://digitaliser.dk/resource/2609737/artefact/PersonligIndkomstVirksomhedsBeskatningKonjunkturBeloeb.xsd"]
["2609387_PersonligIndkomstOevrigeFradragPersonligIndkomstBeloeb","urn:oio:skat:selvangivelse:1.0.0","http://digitaliser.dk/resource/2609387/artefact/PersonligIndkomstOevrigeFradragPersonligIndkomstBeloeb.xsd"]
["3363_PersonSurnameName","http://rep.oio.dk/ebxml/xml/schemas/dkcc/2003/02/13/","http://digitaliser.dk/resource/1123/artefact/DKCC_PersonSurnameName.xsd"]
["1693_PersonGivenName","http://rep.oio.dk/ebxml/xml/schemas/dkcc/2003/02/13/","http://digitaliser.dk/resource/4823/artefact/DKCC_PersonGivenName.xsd"]
["2547923_RenteUdgiftAndenGaeldGaeldTilPrivatBeloeb","urn:oio:skat:selvangivelse:1.0.0","http://digitaliser.dk/resource/2547923/artefact/RenteUdgiftAndenGaeldGaeldTilPrivatBeloeb.xsd"]
["2586368_RenteUdgiftAndenGaeldLaanMedMereEndToEjereBeloeb","urn:oio:skat:selvangivelse:1.0.0","http://digitaliser.dk/resource/2586368/artefact/RenteUdgiftAndenGaeldLaanMedMereEndToEjereBeloeb.xsd"]
["2547896_RenteUdgiftAndenGaeldStatsgarantStudielaanIPengeinstitutBeloeb","urn:oio:skat:selvangivelse:1.0.0","http://digitaliser.dk/resource/2547896/artefact/RenteUdgiftAndenGaeldStatsgarantStudielaanIPengeinstitutBeloeb.xsd"]
["2547905_RenteUdgiftAndenGaeldStiftelseProvisionBeloeb","urn:oio:skat:selvangivelse:1.0.0","http://digitaliser.dk/resource/2547905/artefact/RenteUdgiftAndenGaeldStiftelseProvisionBeloeb.xsd"]
["1624757_OpgoerelseFilIndholdData","urn:oio:skat:hentselv:1.0.0","http://digitaliser.dk/resource/1624757/artefact/OpgoerelseFilIndholdData.xsd"]
["4253306_ToFamilieBenyttelseKode","urn:oio:skat:selvangivelse:1.0.0","http://www.digitaliser.dk/resource/4253306/artefact/ToFamilieBenyttelseKode.xsd"]
["4253237_ToFamilieEnhedsloebeNummerIdentifikator","urn:oio:skat:selvangivelse:1.0.0","http://www.digitaliser.dk/resource/4253237/artefact/ToFamilieEnhedsloebeNummerIdentifikator.xsd"]
["4253447_UdviklerSENummerIdentifikator","urn:oio:skat:selvangivelse:1.0.0","http://www.digitaliser.dk/resource/4253447/artefact/UdviklerSENummerIdentifikator.xsd"]
["1625148_AarligSkatteOplysningBeregnetSkatBeloeb","urn:oio:skat:hentselv:1.0.0","http://digitaliser.dk/resource/1625148/artefact/AarligSkatteOplysningBeregnetSkatBeloeb.xsd"]
["2610715_AarligSkatteoplysningForskudSkatBeloeb","urn:oio:skat:selvangivelse:1.0.0","http://digitaliser.dk/resource/2610715/artefact/AarligSkatteoplysningForskudSkatBeloeb.xsd"]
["7437_AarIdentifikator","http://rep.oio.dk/oib/dato.tid.maal/xml.schema/","http://digitaliser.dk/resource/7439/artefact/AarIdentifikator_20080901.xsd"]
["1625498_AarligSkatteOplysningKapitalindkomstBeloeb","urn:oio:skat:hentselv:1.0.0","http://digitaliser.dk/resource/1625498/artefact/AarligSkatteOplysningKapitalindkomstBeloeb.xsd"]
["1625556_AarligSkatteOplysningLigningsmaessigtFradragBeloeb","urn:oio:skat:hentselv:1.0.0","http://digitaliser.dk/resource/1625556/artefact/AarligSkatteOplysningLigningsmaessigtFradragBeloeb.xsd"]
["1625604_AarligSkatteOplysningOverskydendeSkatBeloeb","urn:oio:skat:hentselv:1.0.0","http://digitaliser.dk/resource/1625604/artefact/AarligSkatteOplysningOverskydendeSkatBeloeb.xsd"]
["1625752_AarligSkatteOplysningPersonligIndkomstBeloeb","urn:oio:skat:hentselv:1.0.0","http://digitaliser.dk/resource/1625752/artefact/AarligSkatteOplysningPersonligIndkomstBeloeb.xsd"]
["1625802_AarligSkatteOplysningRestskatBeloeb","urn:oio:skat:hentselv:1.0.0","http://digitaliser.dk/resource/1625802/artefact/AarligSkatteOplysningRestskatBeloeb.xsd"]
["1625866_AarligSkatteOplysningSkattepligtigIndkomstBeloeb","urn:oio:skat:hentselv:1.0.0","http://digitaliser.dk/resource/1625866/artefact/AarligSkatteOplysningSkattepligtigIndkomstBeloeb.xsd"]
["5544082_AktieskatBeloeb","urn:oio:skat:selvangivelse:1.0.0","http://www.digitaliser.dk/resource/5544082/artefact/AktieskatBeloeb.xsd"]
["5545518_AktieskatGrundBeloeb","urn:oio:skat:selvangivelse:1.0.0","http://www.digitaliser.dk/resource/5545518/artefact/AktieskatGrundBeloeb.xsd"]
["5545533_AktieskatManueltNettoBeloeb","urn:oio:skat:selvangivelse:1.0.0","http://www.digitaliser.dk/resource/5545533/artefact/AktieskatManueltNettoBeloeb.xsd"]
["5545563_AMBidragBeloeb","urn:oio:skat:selvangivelse:1.0.0","http://www.digitaliser.dk/resource/5545563/artefact/AMBidragBeloeb.xsd"]
["5545578_AMBidragNettoBeloeb","urn:oio:skat:selvangivelse:1.0.0","http://www.digitaliser.dk/resource/5545578/artefact/AMBidragNettoBeloeb.xsd"]
["5545593_BefordringsFradragBeregnetBeloeb","urn:oio:skat:selvangivelse:1.0.0","http://www.digitaliser.dk/resource/5545593/artefact/BefordringsFradragBeregnetBeloeb.xsd"]
["5545608_BegraensetSkattepligtigDISNedslagBeloeb","urn:oio:skat:selvangivelse:1.0.0","http://www.digitaliser.dk/resource/5545608/artefact/BegraensetSkattepligtigDISNedslagBeloeb.xsd"]
["5545638_BeregnetKapitalIndkomstOverskydendeTotalNedslagGraenseBeloeb","urn:oio:skat:selvangivelse:1.0.0","http://www.digitaliser.dk/resource/5545638/artefact/BeregnetKapitalIndkomstOverskydendeTotalNedslagGraenseBeloeb.xsd"]
["5545653_BeregnetPersonligIndkomstGraenseBeloeb","urn:oio:skat:selvangivelse:1.0.0","http://www.digitaliser.dk/resource/5545653/artefact/BeregnetPersonligIndkomstGraenseBeloeb.xsd"]
["5545668_BeregningsgrundlagGammel2001Beloeb","urn:oio:skat:selvangivelse:1.0.0","http://www.digitaliser.dk/resource/5545668/artefact/BeregningsgrundlagGammel2001Beloeb.xsd"]
["5545683_BeregningsgrundlagNy2002Beloeb","urn:oio:skat:selvangivelse:1.0.0","http://www.digitaliser.dk/resource/5545683/artefact/BeregningsgrundlagNy2002Beloeb.xsd"]
["5545698_BeregningsgrundlagBeloebBeloeb","urn:oio:skat:selvangivelse:1.0.0","http://www.digitaliser.dk/resource/5545698/artefact/BeregningsgrundlagBeloebBeloeb.xsd"]
["5545713_BeregningsgrundlagSamletGammel2001Beloeb","urn:oio:skat:selvangivelse:1.0.0","http://www.digitaliser.dk/resource/5545713/artefact/BeregningsgrundlagSamletGammel2001Beloeb.xsd"]
["5545728_BeregningsgrundlagSamletNy2002Beloeb","urn:oio:skat:selvangivelse:1.0.0","http://www.digitaliser.dk/resource/5545728/artefact/BeregningsgrundlagSamletNy2002Beloeb.xsd"]
["5545818_BundskatTotalBeloeb","urn:oio:skat:selvangivelse:1.0.0","http://www.digitaliser.dk/resource/5545818/artefact/BundskatTotalBeloeb.xsd"]
["5545833_BundskatManueltNettoBeloeb","urn:oio:skat:selvangivelse:1.0.0","http://www.digitaliser.dk/resource/5545833/artefact/BundskatManueltNettoBeloeb.xsd"]
["5545848_BundskatFradragBeloeb","urn:oio:skat:selvangivelse:1.0.0","http://www.digitaliser.dk/resource/5545848/artefact/BundskatFradragBeloeb.xsd"]
["5545863_BundskatFradragModregnetvaerdiBeloeb","urn:oio:skat:selvangivelse:1.0.0","http://www.digitaliser.dk/resource/5545863/artefact/BundskatFradragModregnetvaerdiBeloeb.xsd"]
["5546578_CFCIndkomstBeloeb","urn:oio:skat:selvangivelse:1.0.0","http://www.digitaliser.dk/resource/5546578/artefact/CFCIndkomstBeloeb.xsd"]
["5546593_CFCIndkomstNedslagBeloeb","urn:oio:skat:selvangivelse:1.0.0","http://www.digitaliser.dk/resource/5546593/artefact/CFCIndkomstNedslagBeloeb.xsd"]
["5546608_CFCskatBeloeb","urn:oio:skat:selvangivelse:1.0.0","http://www.digitaliser.dk/resource/5546608/artefact/CFCskatBeloeb.xsd"]
["5546623_CFCskatManueltNettoBeloeb","urn:oio:skat:selvangivelse:1.0.0","http://www.digitaliser.dk/resource/5546623/artefact/CFCskatManueltNettoBeloeb.xsd"]
["5546662_DISIndkomstBundskatNedslagBeloeb","urn:oio:skat:selvangivelse:1.0.0","http://www.digitaliser.dk/resource/5546662/artefact/DISIndkomstBundskatNedslagBeloeb.xsd"]
["5546683_DISIndkomstNedslagBeloeb","urn:oio:skat:selvangivelse:1.0.0","http://www.digitaliser.dk/resource/5546683/artefact/DISIndkomstNedslagBeloeb.xsd"]
["5546698_EjendomAngivelseOvertagelsesdatoDato","urn:oio:skat:selvangivelse:1.0.0","http://www.digitaliser.dk/resource/5546698/artefact/EjendomAngivelseOvertagelsesdatoDato.xsd"]
["5546728_EjendomAngivelseKoeberOvertagelsesdatoDato","urn:oio:skat:selvangivelse:1.0.0","http://www.digitaliser.dk/resource/5546728/artefact/EjendomAngivelseKoeberOvertagelsesdatoDato.xsd"]
["5546713_EjendomEjerskabErhvervetFoer1998Indikator","urn:oio:skat:selvangivelse:1.0.0","http://www.digitaliser.dk/resource/5546713/artefact/EjendomEjerskabErhvervetFoer1998Indikator.xsd"]
["5546917_EjendomEjerskabEjerandelProcent","urn:oio:skat:selvangivelse:1.0.0","http://www.digitaliser.dk/resource/5546917/artefact/EjendomEjerskabEjerandelProcent.xsd"]
["5546932_EjendomEjerskabErhvervetFoer2007Indikator","urn:oio:skat:selvangivelse:1.0.0","http://www.digitaliser.dk/resource/5546932/artefact/EjendomEjerskabErhvervetFoer2007Indikator.xsd"]
["5546947_EjendomsvaerdiSamletBeloeb","urn:oio:skat:selvangivelse:1.0.0","http://www.digitaliser.dk/resource/5546947/artefact/EjendomsvaerdiSamletBeloeb.xsd"]
["5546962_EjendomvaerdiskatBeloeb","urn:oio:skat:selvangivelse:1.0.0","http://www.digitaliser.dk/resource/5546962/artefact/EjendomvaerdiskatBeloeb.xsd"]
["5546977_EjendomvaerdiskatBeregnetSumBeloeb","urn:oio:skat:selvangivelse:1.0.0","http://www.digitaliser.dk/resource/5546977/artefact/EjendomvaerdiskatBeregnetSumBeloeb.xsd"]
["5546992_EjReguleretGevinstUdenlandskBeloeb","urn:oio:skat:selvangivelse:1.0.0","http://www.digitaliser.dk/resource/5546992/artefact/EjReguleretGevinstUdenlandskBeloeb.xsd"]
["5547007_EjReguleretUdbytteUdenlandskBeloeb","urn:oio:skat:selvangivelse:1.0.0","http://www.digitaliser.dk/resource/5547007/artefact/EjReguleretUdbytteUdenlandskBeloeb.xsd"]
["5548836_FlySelskabNavnTekst","urn:oio:skat:selvangivelse:1.0.0","http://www.digitaliser.dk/resource/5548836/artefact/FlySelskabNavnTekst.xsd"]
["5548881_ForskerskatBeloeb","urn:oio:skat:selvangivelse:1.0.0","http://www.digitaliser.dk/resource/5548881/artefact/ForskerskatBeloeb.xsd"]
["5548896_ForskerskatManueltNettoBeloeb","urn:oio:skat:selvangivelse:1.0.0","http://www.digitaliser.dk/resource/5548896/artefact/ForskerskatManueltNettoBeloeb.xsd"]
["5548926_IndkomstskatFradragBeloeb","urn:oio:skat:selvangivelse:1.0.0","http://www.digitaliser.dk/resource/5548926/artefact/IndkomstskatFradragBeloeb.xsd"]
["5548941_IndkomstskatFradragModregnetvaerdiBeloeb","urn:oio:skat:selvangivelse:1.0.0","http://www.digitaliser.dk/resource/5548941/artefact/IndkomstskatFradragModregnetvaerdiBeloeb.xsd"]
["5549514_KapitalafkastOrdningKapitalafkastBeloeb","urn:oio:skat:selvangivelse:1.0.0","http://www.digitaliser.dk/resource/5549514/artefact/KapitalafkastOrdningKapitalafkastBeloeb.xsd"]
["5549529_KirkeskatBeloeb","urn:oio:skat:selvangivelse:1.0.0","http://www.digitaliser.dk/resource/5549529/artefact/KirkeskatBeloeb.xsd"]
["5549545_KirkeskatManueltNettoBeloeb","urn:oio:skat:selvangivelse:1.0.0","http://www.digitaliser.dk/resource/5549545/artefact/KirkeskatManueltNettoBeloeb.xsd"]
["5549567_KirkeskatNedslagPeriodeBeloeb","urn:oio:skat:selvangivelse:1.0.0","http://www.digitaliser.dk/resource/5549567/artefact/KirkeskatNedslagPeriodeBeloeb.xsd"]
["5549584_KommunalIndkomstskatBeloeb","urn:oio:skat:selvangivelse:1.0.0","http://www.digitaliser.dk/resource/5549584/artefact/KommunalIndkomstskatBeloeb.xsd"]
["5550362_KommunalIndkomstskatManueltNettoBeloeb","urn:oio:skat:selvangivelse:1.0.0","http://www.digitaliser.dk/resource/5550362/artefact/KommunalIndkomstskatManueltNettoBeloeb.xsd"]
["5550377_KommuneskatFradragBeloeb","urn:oio:skat:selvangivelse:1.0.0","http://www.digitaliser.dk/resource/5550377/artefact/KommuneskatFradragBeloeb.xsd"]
["5550392_KommuneskatFradragModregnetvaerdiBeloeb","urn:oio:skat:selvangivelse:1.0.0","http://www.digitaliser.dk/resource/5550392/artefact/KommuneskatFradragModregnetvaerdiBeloeb.xsd"]
["5550407_KonkursskatBeloeb","urn:oio:skat:selvangivelse:1.0.0","http://www.digitaliser.dk/resource/5550407/artefact/KonkursskatBeloeb.xsd"]
["5550422_KonkursskatManueltNettoBeloeb","urn:oio:skat:selvangivelse:1.0.0","http://www.digitaliser.dk/resource/5550422/artefact/KonkursskatManueltNettoBeloeb.xsd"]
["5550437_KunstnerVirksomhedOrdningIndkomstTilBeskatningBeloeb","urn:oio:skat:selvangivelse:1.0.0","http://www.digitaliser.dk/resource/5550437/artefact/KunstnerVirksomhedOrdningIndkomstTilBeskatningBeloeb.xsd"]
["5550452_KunstnerVirksomhedOrdningBeloebOverfoertFraKontoBeloeb","urn:oio:skat:selvangivelse:1.0.0","http://www.digitaliser.dk/resource/5550452/artefact/KunstnerVirksomhedOrdningBeloebOverfoertFraKontoBeloeb.xsd"]
["5550467_LigningsmaessigtFradragEfterloensbidragGraensegaengerBeloeb","urn:oio:skat:selvangivelse:1.0.0","http://www.digitaliser.dk/resource/5550467/artefact/LigningsmaessigtFradragEfterloensbidragGraensegaengerBeloeb.xsd"]
["5550482_LigningsmaessigtFradragSoefradragBeloeb","urn:oio:skat:selvangivelse:1.0.0","http://www.digitaliser.dk/resource/5550482/artefact/LigningsmaessigtFradragSoefradragBeloeb.xsd"]
["5550497_LigningsmaessigtFradragDISFradragAndenFartBeloeb","urn:oio:skat:selvangivelse:1.0.0","http://www.digitaliser.dk/resource/5550497/artefact/LigningsmaessigtFradragDISFradragAndenFartBeloeb.xsd"]
["5551004_LigningsmaessigtFradragUdenlandskExemptionBeloeb","urn:oio:skat:selvangivelse:1.0.0","http://www.digitaliser.dk/resource/5551004/artefact/LigningsmaessigtFradragUdenlandskExemptionBeloeb.xsd"]
["5551019_LigningmaessigtFradragUdenlandskCreditBeloeb","urn:oio:skat:selvangivelse:1.0.0","http://www.digitaliser.dk/resource/5551019/artefact/LigningmaessigtFradragUdenlandskCreditBeloeb.xsd"]
["5567064_MedarbejdendeAegtefaelleIndkomstBeloeb","urn:oio:skat:selvangivelse:1.0.0","http://www.digitaliser.dk/resource/5567064/artefact/MedarbejdendeAegtefaelleIndkomstBeloeb.xsd"]
["5554434_NedslagAktieskatDBOUnderOgOverBeloeb","urn:oio:skat:selvangivelse:1.0.0","http://www.digitaliser.dk/resource/5554434/artefact/NedslagAktieskatDBOUnderOgOverBeloeb.xsd"]
["5554458_NedslagAktieskatUdenlandskEjReguleretUnderOgOverGrundBeloeb","urn:oio:skat:selvangivelse:1.0.0","http://www.digitaliser.dk/resource/5554458/artefact/NedslagAktieskatUdenlandskEjReguleretUnderOgOverGrundBeloeb.xsd"]
["5554473_NedslagAktieskatDBOBeloeb","urn:oio:skat:selvangivelse:1.0.0","http://www.digitaliser.dk/resource/5554473/artefact/NedslagAktieskatDBOBeloeb.xsd"]
["5554488_NedslagAktieskatReguleretUdenlandskGrundBeloeb","urn:oio:skat:selvangivelse:1.0.0","http://www.digitaliser.dk/resource/5554488/artefact/NedslagAktieskatReguleretUdenlandskGrundBeloeb.xsd"]
["5554503_NedslagAktieskatUdenlandskOverGrundBeloeb","urn:oio:skat:selvangivelse:1.0.0","http://www.digitaliser.dk/resource/5554503/artefact/NedslagAktieskatUdenlandskOverGrundBeloeb.xsd"]
["5554518_NedslagAktieskatEjReguleretGrundBeloeb","urn:oio:skat:selvangivelse:1.0.0","http://www.digitaliser.dk/resource/5554518/artefact/NedslagAktieskatEjReguleretGrundBeloeb.xsd"]
["5554533_NedslagAktieskatUdenlandskEjReguleretBeloeb","urn:oio:skat:selvangivelse:1.0.0","http://www.digitaliser.dk/resource/5554533/artefact/NedslagAktieskatUdenlandskEjReguleretBeloeb.xsd"]
["5554549_NedslagBundskatUdenlandskVirksomhedOverskudBeloeb","urn:oio:skat:selvangivelse:1.0.0","http://www.digitaliser.dk/resource/5554549/artefact/NedslagBundskatUdenlandskVirksomhedOverskudBeloeb.xsd"]
["5554564_NedslagBundskatUdenlandskPersonligIndkomstGammelExemptionBeloeb","urn:oio:skat:selvangivelse:1.0.0","http://www.digitaliser.dk/resource/5554564/artefact/NedslagBundskatUdenlandskPersonligIndkomstGammelExemptionBeloeb.xsd"]
["5554579_NedslagBundskatUdenlandskPersonligIndkomstExemptionBeloeb","urn:oio:skat:selvangivelse:1.0.0","http://www.digitaliser.dk/resource/5554579/artefact/NedslagBundskatUdenlandskPersonligIndkomstExemptionBeloeb.xsd"]
["5554594_NedslagBundskatUdenlandskKapitalIndkomstVirksomhedBeloeb","urn:oio:skat:selvangivelse:1.0.0","http://www.digitaliser.dk/resource/5554594/artefact/NedslagBundskatUdenlandskKapitalIndkomstVirksomhedBeloeb.xsd"]
["5554609_NedslagBundskatUdenlandskKapitalIndkomstGammelExemptionBeloeb","urn:oio:skat:selvangivelse:1.0.0","http://www.digitaliser.dk/resource/5554609/artefact/NedslagBundskatUdenlandskKapitalIndkomstGammelExemptionBeloeb.xsd"]
["5554624_NedslagBundskatUdenlandskKapitalIndkomstCreditBeloeb","urn:oio:skat:selvangivelse:1.0.0","http://www.digitaliser.dk/resource/5554624/artefact/NedslagBundskatUdenlandskKapitalIndkomstCreditBeloeb.xsd"]
["5554656_NedslagBundskatUdenlandskIndkomstHalvLempelseBeloeb","urn:oio:skat:selvangivelse:1.0.0","http://www.digitaliser.dk/resource/5554656/artefact/NedslagBundskatUdenlandskIndkomstHalvLempelseBeloeb.xsd"]
["5554671_NedslagBundskatUdenlandskIndkomst33ABeloeb","urn:oio:skat:selvangivelse:1.0.0","http://www.digitaliser.dk/resource/5554671/artefact/NedslagBundskatUdenlandskIndkomst33ABeloeb.xsd"]
["5554686_NedslagBundskatUdenlandskIndkomstCreditBeloeb","urn:oio:skat:selvangivelse:1.0.0","http://www.digitaliser.dk/resource/5554686/artefact/NedslagBundskatUdenlandskIndkomstCreditBeloeb.xsd"]
["5554701_NedslagBundskatUdenlandskPensionCreditBeloeb","urn:oio:skat:selvangivelse:1.0.0","http://www.digitaliser.dk/resource/5554701/artefact/NedslagBundskatUdenlandskPensionCreditBeloeb.xsd"]
["5554720_NedslagBundskatUdenlandskIndkomstExemptionBeloeb","urn:oio:skat:selvangivelse:1.0.0","http://www.digitaliser.dk/resource/5554720/artefact/NedslagBundskatUdenlandskIndkomstExemptionBeloeb.xsd"]
["5554735_NedslagBundskatUdenlandskPensionSaerligOrdningCreditBeloeb","urn:oio:skat:selvangivelse:1.0.0","http://www.digitaliser.dk/resource/5554735/artefact/NedslagBundskatUdenlandskPensionSaerligOrdningCreditBeloeb.xsd"]
["5554750_NedslagBundskatUndelandskKapitalindkomstExemtionBeloeb","urn:oio:skat:selvangivelse:1.0.0","http://www.digitaliser.dk/resource/5554750/artefact/NedslagBundskatUndelandskKapitalindkomstExemtionBeloeb.xsd"]
["5554765_NedslagNegativKapitalIndkomstBeloeb","urn:oio:skat:selvangivelse:1.0.0","http://www.digitaliser.dk/resource/5554765/artefact/NedslagNegativKapitalIndkomstBeloeb.xsd"]
["5554780_NedslagNegativKapitalIndkomstAegtefaelleBeloeb","urn:oio:skat:selvangivelse:1.0.0","http://www.digitaliser.dk/resource/5554780/artefact/NedslagNegativKapitalIndkomstAegtefaelleBeloeb.xsd"]
["5554795_NedslagUdenlandskAktieudbytteCreditBeloeb","urn:oio:skat:selvangivelse:1.0.0","http://www.digitaliser.dk/resource/5554795/artefact/NedslagUdenlandskAktieudbytteCreditBeloeb.xsd"]
["5554810_NedslagUdenlandskIndkomstHalvLempelseBeloeb","urn:oio:skat:selvangivelse:1.0.0","http://www.digitaliser.dk/resource/5554810/artefact/NedslagUdenlandskIndkomstHalvLempelseBeloeb.xsd"]
["5554825_NedslagUdenlandskIndkomst33ABeloeb","urn:oio:skat:selvangivelse:1.0.0","http://www.digitaliser.dk/resource/5554825/artefact/NedslagUdenlandskIndkomst33ABeloeb.xsd"]
["5554840_NedslagUdenlandskIndkomstGammelExemptionBeloeb","urn:oio:skat:selvangivelse:1.0.0","http://www.digitaliser.dk/resource/5554840/artefact/NedslagUdenlandskIndkomstGammelExemptionBeloeb.xsd"]
["5554856_NedslagUdenlandskIndkomstPersonligIndkomstCreditBeloeb","urn:oio:skat:selvangivelse:1.0.0","http://www.digitaliser.dk/resource/5554856/artefact/NedslagUdenlandskIndkomstPersonligIndkomstCreditBeloeb.xsd"]
["5554876_NedslagUdenlandskIndkomstVirksomhedsbeskatningCreditBeloeb","urn:oio:skat:selvangivelse:1.0.0","http://www.digitaliser.dk/resource/5554876/artefact/NedslagUdenlandskIndkomstVirksomhedsbeskatningCreditBeloeb.xsd"]
["5554892_NedslagUdenlandskIndkomstVirksomhedsbeskatningBeloeb","urn:oio:skat:selvangivelse:1.0.0","http://www.digitaliser.dk/resource/5554892/artefact/NedslagUdenlandskIndkomstVirksomhedsbeskatningBeloeb.xsd"]
["5554922_NedslagUdenlandskKapitalIndkomstCreditBeloeb","urn:oio:skat:selvangivelse:1.0.0","http://www.digitaliser.dk/resource/5554922/artefact/NedslagUdenlandskKapitalIndkomstCreditBeloeb.xsd"]
["5554937_NedslagUdenlandskKapitalIndkomstBeloeb","urn:oio:skat:selvangivelse:1.0.0","http://www.digitaliser.dk/resource/5554937/artefact/NedslagUdenlandskKapitalIndkomstBeloeb.xsd"]
["5554952_NedslagUdenlandskKapitalIndkomst33GBeloeb","urn:oio:skat:selvangivelse:1.0.0","http://www.digitaliser.dk/resource/5554952/artefact/NedslagUdenlandskKapitalIndkomst33GBeloeb.xsd"]
["5554967_NedslagUdenlandskKapitalIndkomstGammelExemptionBeloeb","urn:oio:skat:selvangivelse:1.0.0","http://www.digitaliser.dk/resource/5554967/artefact/NedslagUdenlandskKapitalIndkomstGammelExemptionBeloeb.xsd"]
["5554982_NedslagUdenlandskKapitalIndkomstVirksomhedBeloeb","urn:oio:skat:selvangivelse:1.0.0","http://www.digitaliser.dk/resource/5554982/artefact/NedslagUdenlandskKapitalIndkomstVirksomhedBeloeb.xsd"]
["5554997_NedslagUdenlandskKapitalIndkomstVirksomhedCreditBeloeb","urn:oio:skat:selvangivelse:1.0.0","http://www.digitaliser.dk/resource/5554997/artefact/NedslagUdenlandskKapitalIndkomstVirksomhedCreditBeloeb.xsd"]
["5555012_NedslagUdenlandskPensionCreditBeloeb","urn:oio:skat:selvangivelse:1.0.0","http://www.digitaliser.dk/resource/5555012/artefact/NedslagUdenlandskPensionCreditBeloeb.xsd"]
["5555087_NedslagUdenlandskPensionSaerligOrdningExemptionBeloeb","urn:oio:skat:selvangivelse:1.0.0","http://www.digitaliser.dk/resource/5555087/artefact/NedslagUdenlandskPensionSaerligOrdningExemptionBeloeb.xsd"]
["5555102_NedslagUdenlandskPensionFranskskatCreditBeloeb","urn:oio:skat:selvangivelse:1.0.0","http://www.digitaliser.dk/resource/5555102/artefact/NedslagUdenlandskPensionFranskskatCreditBeloeb.xsd"]
["5555117_NedslagUdenlandskPersonligIndkomstLoenindtaegtAMBidragBeloeb","urn:oio:skat:selvangivelse:1.0.0","http://www.digitaliser.dk/resource/5555117/artefact/NedslagUdenlandskPersonligIndkomstLoenindtaegtAMBidragBeloeb.xsd"]
["5555134_NedslagUdenlandskPersonligIndkomstGammelExemptionAMBidragBeloeb","urn:oio:skat:selvangivelse:1.0.0","http://www.digitaliser.dk/resource/5555134/artefact/NedslagUdenlandskPersonligIndkomstGammelExemptionAMBidragBeloeb.xsd"]
["5555149_NedslagUdenlandskPersonligIndkomstExemptionBeloeb","urn:oio:skat:selvangivelse:1.0.0","http://www.digitaliser.dk/resource/5555149/artefact/NedslagUdenlandskPersonligIndkomstExemptionBeloeb.xsd"]
["5555164_NedslagUdenlandskVirksomhedBeloeb","urn:oio:skat:selvangivelse:1.0.0","http://www.digitaliser.dk/resource/5555164/artefact/NedslagUdenlandskVirksomhedBeloeb.xsd"]
["5555179_NedslagUdenlandskVirksomhedCreditBeloeb","urn:oio:skat:selvangivelse:1.0.0","http://www.digitaliser.dk/resource/5555179/artefact/NedslagUdenlandskVirksomhedCreditBeloeb.xsd"]
["5555194_NedslagUdenlandskVirksomhedOverskudAMBidragBeloeb","urn:oio:skat:selvangivelse:1.0.0","http://www.digitaliser.dk/resource/5555194/artefact/NedslagUdenlandskVirksomhedOverskudAMBidragBeloeb.xsd"]
["5555209_NedslagUdenlandskVirksomhedOverskudRentekorrektionBidragAMBidragBeloeb","urn:oio:skat:selvangivelse:1.0.0","http://www.digitaliser.dk/resource/5555209/artefact/NedslagUdenlandskVirksomhedOverskudRentekorrektionBidragAMBidragBeloeb.xsd"]
["5555361_PersonSkattepligtigIndkomstSkatBeloeb","urn:oio:skat:selvangivelse:1.0.0","http://www.digitaliser.dk/resource/5555361/artefact/PersonSkattepligtigIndkomstSkatBeloeb.xsd"]
["5555376_PersonSkattepligtigIndkomstSkatManueltNettoBeloeb","urn:oio:skat:selvangivelse:1.0.0","http://www.digitaliser.dk/resource/5555376/artefact/PersonSkattepligtigIndkomstSkatManueltNettoBeloeb.xsd"]
["5555391_PersonSkattepligtigIndkomstBeloebPeriodeNedslagBeloeb","urn:oio:skat:selvangivelse:1.0.0","http://www.digitaliser.dk/resource/5555391/artefact/PersonSkattepligtigIndkomstBeloebPeriodeNedslagBeloeb.xsd"]
["5555412_ReguleretGevinstUdenlandskBeloeb","urn:oio:skat:selvangivelse:1.0.0","http://www.digitaliser.dk/resource/5555412/artefact/ReguleretGevinstUdenlandskBeloeb.xsd"]
["5556680_ReguleretUdbytteUdenlandskBeloeb","urn:oio:skat:selvangivelse:1.0.0","http://www.digitaliser.dk/resource/5556680/artefact/ReguleretUdbytteUdenlandskBeloeb.xsd"]
["5556695_ReguleretUdbytteUdenlandskKapitalIndkomstBeloeb","urn:oio:skat:selvangivelse:1.0.0","http://www.digitaliser.dk/resource/5556695/artefact/ReguleretUdbytteUdenlandskKapitalIndkomstBeloeb.xsd"]
["5556710_RenteudgiftUdenlandskEjendomBeloeb","urn:oio:skat:selvangivelse:1.0.0","http://www.digitaliser.dk/resource/5556710/artefact/RenteudgiftUdenlandskEjendomBeloeb.xsd"]
["5558493_SelvstaendigVirksomhedBiblioteksafgiftGodtgoerelseBeloeb","urn:oio:skat:selvangivelse:1.0.0","http://www.digitaliser.dk/resource/5558493/artefact/SelvstaendigVirksomhedBiblioteksafgiftGodtgoerelseBeloeb.xsd"]
["5558583_SkibRegistreringLandTekst","urn:oio:skat:selvangivelse:1.0.0","http://www.digitaliser.dk/resource/5558583/artefact/SkibRegistreringLandTekst.xsd"]
["5560921_TopskatTotalBeloeb","urn:oio:skat:selvangivelse:1.0.0","http://www.digitaliser.dk/resource/5560921/artefact/TopskatTotalBeloeb.xsd"]
["5560936_TopskatManueltNettoBeloeb","urn:oio:skat:selvangivelse:1.0.0","http://www.digitaliser.dk/resource/5560936/artefact/TopskatManueltNettoBeloeb.xsd"]
["5560951_TopskatOverfoertFraAegtefaelleBeloeb","urn:oio:skat:selvangivelse:1.0.0","http://www.digitaliser.dk/resource/5560951/artefact/TopskatOverfoertFraAegtefaelleBeloeb.xsd"]
["5560966_TopskatOverfoertTilAegtefaelleBeloeb","urn:oio:skat:selvangivelse:1.0.0","http://www.digitaliser.dk/resource/5560966/artefact/TopskatOverfoertTilAegtefaelleBeloeb.xsd"]
["5561019_TopskatDISIndkomstNedslagBeloeb","urn:oio:skat:selvangivelse:1.0.0","http://www.digitaliser.dk/resource/5561019/artefact/TopskatDISIndkomstNedslagBeloeb.xsd"]
["5561034_TopskatUdenlandskIndkomstCreditNedslagBeloeb","urn:oio:skat:selvangivelse:1.0.0","http://www.digitaliser.dk/resource/5561034/artefact/TopskatUdenlandskIndkomstCreditNedslagBeloeb.xsd"]
["5561049_TopskatUdenlandskIndkomstExemptionNedslagBeloeb","urn:oio:skat:selvangivelse:1.0.0","http://www.digitaliser.dk/resource/5561049/artefact/TopskatUdenlandskIndkomstExemptionNedslagBeloeb.xsd"]
["5561064_TopskatUdenlandskIndkomstHalvLempelseNedslagBeloeb","urn:oio:skat:selvangivelse:1.0.0","http://www.digitaliser.dk/resource/5561064/artefact/TopskatUdenlandskIndkomstHalvLempelseNedslagBeloeb.xsd"]
["5561602_TopskatUdenlandskKapitalIndkomstCreditNedslagBeloeb","urn:oio:skat:selvangivelse:1.0.0","http://www.digitaliser.dk/resource/5561602/artefact/TopskatUdenlandskKapitalIndkomstCreditNedslagBeloeb.xsd"]
["5561617_TopskatUdenlandskKapitalIndkomstGammelExemptionNedslagBeloeb","urn:oio:skat:selvangivelse:1.0.0","http://www.digitaliser.dk/resource/5561617/artefact/TopskatUdenlandskKapitalIndkomstGammelExemptionNedslagBeloeb.xsd"]
["5561632_TopskatUdenlandskKapitalIndkomstVirksomhedNedslagBeloeb","urn:oio:skat:selvangivelse:1.0.0","http://www.digitaliser.dk/resource/5561632/artefact/TopskatUdenlandskKapitalIndkomstVirksomhedNedslagBeloeb.xsd"]
["5561647_TopskatUdenlandskPensionCreditNedslagBeloeb","urn:oio:skat:selvangivelse:1.0.0","http://www.digitaliser.dk/resource/5561647/artefact/TopskatUdenlandskPensionCreditNedslagBeloeb.xsd"]
["5561710_TopskatUdenlandskPersonligIndkomstExemptionNedslagBeloeb","urn:oio:skat:selvangivelse:1.0.0","http://www.digitaliser.dk/resource/5561710/artefact/TopskatUdenlandskPersonligIndkomstExemptionNedslagBeloeb.xsd"]
["5561725_TopskatUdenlandskVirksomhedOverskudNedslagBeloeb","urn:oio:skat:selvangivelse:1.0.0","http://www.digitaliser.dk/resource/5561725/artefact/TopskatUdenlandskVirksomhedOverskudNedslagBeloeb.xsd"]
["5561740_TopskatUdenlandskIndkomst33ANedslagBeloeb","urn:oio:skat:selvangivelse:1.0.0","http://www.digitaliser.dk/resource/5561740/artefact/TopskatUdenlandskIndkomst33ANedslagBeloeb.xsd"]
["5561755_TopskatUdenlandskKapitalIndkomstExemptionNedslagBeloeb","urn:oio:skat:selvangivelse:1.0.0","http://www.digitaliser.dk/resource/5561755/artefact/TopskatUdenlandskKapitalIndkomstExemptionNedslagBeloeb.xsd"]
["5561770_TopskatUdenlandskPersonligIndkomstGammelExemptionNedslagBeloeb","urn:oio:skat:selvangivelse:1.0.0","http://www.digitaliser.dk/resource/5561770/artefact/TopskatUdenlandskPersonligIndkomstGammelExemptionNedslagBeloeb.xsd"]
["5563974_UdenlandskAnsaettelseAnsaettelsesforholdTypeTekst","urn:oio:skat:selvangivelse:1.0.0","http://www.digitaliser.dk/resource/5563974/artefact/UdenlandskAnsaettelseAnsaettelsesforholdTypeTekst.xsd"]
["5564004_UdenlandskAnsaettelseArbejdslandLigUdbetalingslandTekst","urn:oio:skat:selvangivelse:1.0.0","http://www.digitaliser.dk/resource/5564004/artefact/UdenlandskAnsaettelseArbejdslandLigUdbetalingslandTekst.xsd"]
["5564049_UdenlandskArbejdsgiverLandTekst","urn:oio:skat:selvangivelse:1.0.0","http://www.digitaliser.dk/resource/5564049/artefact/UdenlandskArbejdsgiverLandTekst.xsd"]
["5564064_UdenlandskArbejdsgiverLedelseTekst","urn:oio:skat:selvangivelse:1.0.0","http://www.digitaliser.dk/resource/5564064/artefact/UdenlandskArbejdsgiverLedelseTekst.xsd"]
["5564199_UdenlandskFormueIndestaaendeBeloeb","urn:oio:skat:selvangivelse:1.0.0","http://www.digitaliser.dk/resource/5564199/artefact/UdenlandskFormueIndestaaendeBeloeb.xsd"]
["5564214_UdenlandskFormueGaeldBeloeb","urn:oio:skat:selvangivelse:1.0.0","http://www.digitaliser.dk/resource/5564214/artefact/UdenlandskFormueGaeldBeloeb.xsd"]
["5564259_UdenlandskKapitalIndkomstLejeindtaegtBeloeb","urn:oio:skat:selvangivelse:1.0.0","http://www.digitaliser.dk/resource/5564259/artefact/UdenlandskKapitalIndkomstLejeindtaegtBeloeb.xsd"]
["5564289_UdenlandskKapitalIndkomstPensionsordningVaerdiStigningBeloeb","urn:oio:skat:selvangivelse:1.0.0","http://www.digitaliser.dk/resource/5564289/artefact/UdenlandskKapitalIndkomstPensionsordningVaerdiStigningBeloeb.xsd"]
["5564349_UdenlandskLigningmaessigtFradragVirksomhedIndkomstBeloeb","urn:oio:skat:selvangivelse:1.0.0","http://www.digitaliser.dk/resource/5564349/artefact/UdenlandskLigningmaessigtFradragVirksomhedIndkomstBeloeb.xsd"]
["5564604_UdenlandskPersonligIndkomstLoenindtaegtDanskBeskatningBeloeb","urn:oio:skat:selvangivelse:1.0.0","http://www.digitaliser.dk/resource/5564604/artefact/UdenlandskPersonligIndkomstLoenindtaegtDanskBeskatningBeloeb.xsd"]
["5564619_UdenlandskPersonligIndkomstLoenindtaegtDanskBeskatningEfterAMBidragBeloeb","urn:oio:skat:selvangivelse:1.0.0","http://www.digitaliser.dk/resource/5564619/artefact/UdenlandskPersonligIndkomstLoenindtaegtDanskBeskatningEfterAMBidragBeloeb.xsd"]
["5564634_UdenlandskPersonligIndkomstLoenindtaegtUdenlandskBeskatningBeloeb","urn:oio:skat:selvangivelse:1.0.0","http://www.digitaliser.dk/resource/5564634/artefact/UdenlandskPersonligIndkomstLoenindtaegtUdenlandskBeskatningBeloeb.xsd"]
["5564649_UdenlandskPersonligIndkomstLoenindtaegtUdenlandskBeskatningEfterAMBidragBeloeb","urn:oio:skat:selvangivelse:1.0.0","http://www.digitaliser.dk/resource/5564649/artefact/UdenlandskPersonligIndkomstLoenindtaegtUdenlandskBeskatningEfterAMBidragBeloeb.xsd"]
["5564664_UdenlandskPersonligIndkomstLoenindtaegtExemptionBeloeb","urn:oio:skat:selvangivelse:1.0.0","http://www.digitaliser.dk/resource/5564664/artefact/UdenlandskPersonligIndkomstLoenindtaegtExemptionBeloeb.xsd"]
["5564679_UdenlandskPersonligIndkomstLoenindtaegtExemptionEfterAMBidragBeloeb","urn:oio:skat:selvangivelse:1.0.0","http://www.digitaliser.dk/resource/5564679/artefact/UdenlandskPersonligIndkomstLoenindtaegtExemptionEfterAMBidragBeloeb.xsd"]
["5564694_UdenlandskPersonligIndkomstLoenindtaegtCreditBeloeb","urn:oio:skat:selvangivelse:1.0.0","http://www.digitaliser.dk/resource/5564694/artefact/UdenlandskPersonligIndkomstLoenindtaegtCreditBeloeb.xsd"]
["5564709_UdenlandskPersonligIndkomstLoenindtaegtCreditEfterAMBidragBeloeb","urn:oio:skat:selvangivelse:1.0.0","http://www.digitaliser.dk/resource/5564709/artefact/UdenlandskPersonligIndkomstLoenindtaegtCreditEfterAMBidragBeloeb.xsd"]
["5564769_UdenlandskSelvstaendigVirksomhedOverskudBeloeb","urn:oio:skat:selvangivelse:1.0.0","http://www.digitaliser.dk/resource/5564769/artefact/UdenlandskSelvstaendigVirksomhedOverskudBeloeb.xsd"]
["5564784_UdenlandskSelvstaendigVirksomhedNettoRenterBeloeb","urn:oio:skat:selvangivelse:1.0.0","http://www.digitaliser.dk/resource/5564784/artefact/UdenlandskSelvstaendigVirksomhedNettoRenterBeloeb.xsd"]
["5564799_UdenlandskSelvstaendigVirksomhedKontingentBeloeb","urn:oio:skat:selvangivelse:1.0.0","http://www.digitaliser.dk/resource/5564799/artefact/UdenlandskSelvstaendigVirksomhedKontingentBeloeb.xsd"]
["5564829_UdenlandskSkatVirksomhedsIndkomstBeloeb","urn:oio:skat:selvangivelse:1.0.0","http://www.digitaliser.dk/resource/5564829/artefact/UdenlandskSkatVirksomhedsIndkomstBeloeb.xsd"]
["5564874_UdenlandskSkatEjendomskatBeloeb","urn:oio:skat:selvangivelse:1.0.0","http://www.digitaliser.dk/resource/5564874/artefact/UdenlandskSkatEjendomskatBeloeb.xsd"]
["5564889_UdenlandskSkatNordiskTraekIndikator","urn:oio:skat:selvangivelse:1.0.0","http://www.digitaliser.dk/resource/5564889/artefact/UdenlandskSkatNordiskTraekIndikator.xsd"]
["5564994_UdligningsskatBeloeb","urn:oio:skat:selvangivelse:1.0.0","http://www.digitaliser.dk/resource/5564994/artefact/UdligningsskatBeloeb.xsd"]
["5565048_VirksomhedOrdningKapitalafkastBeloeb","urn:oio:skat:selvangivelse:1.0.0","http://www.digitaliser.dk/resource/5565048/artefact/VirksomhedOrdningKapitalafkastBeloeb.xsd"]
["5565078_VirksomhedSkattetillaegBeloeb","urn:oio:skat:selvangivelse:1.0.0","http://www.digitaliser.dk/resource/5565078/artefact/VirksomhedSkattetillaegBeloeb.xsd"]
["5565093_VirksomhedsskatBeloeb","urn:oio:skat:selvangivelse:1.0.0","http://www.digitaliser.dk/resource/5565093/artefact/VirksomhedsskatBeloeb.xsd"]
["5565108_VirksomhedsskatNedslagBeloeb","urn:oio:skat:selvangivelse:1.0.0","http://www.digitaliser.dk/resource/5565108/artefact/VirksomhedsskatNedslagBeloeb.xsd"]
["5565138_KonjunkturudligningsskatHenlaeggelseBeloeb","urn:oio:skat:selvangivelse:1.0.0","http://www.digitaliser.dk/resource/5565138/artefact/KonjunkturudligningsskatHenlaeggelseBeloeb.xsd"]
["5565153_PersonligIndkomstOverfoertOpsparetOverskudSuccessionBeloeb","urn:oio:skat:selvangivelse:1.0.0","http://www.digitaliser.dk/resource/5565153/artefact/PersonligIndkomstOverfoertOpsparetOverskudSuccessionBeloeb.xsd"]
["5565183_PersonligIndkomstOverfoertOpsparetOverskudSuccessionSumBeloeb","urn:oio:skat:selvangivelse:1.0.0","http://www.digitaliser.dk/resource/5565183/artefact/PersonligIndkomstOverfoertOpsparetOverskudSuccessionSumBeloeb.xsd"]
["5565228_UdenlandskFormueFastEjendomBeloeb","urn:oio:skat:selvangivelse:1.0.0","http://www.digitaliser.dk/resource/5565228/artefact/UdenlandskFormueFastEjendomBeloeb.xsd"]
["5565243_UdviklerUnikIdentifikationskodeIdentifikator","urn:oio:skat:selvangivelse:1.0.0","http://www.digitaliser.dk/resource/5565243/artefact/UdviklerUnikIdentifikationskodeIdentifikator.xsd"]
["5565258_UnikIdentifikationskodeIdentifikator","urn:oio:skat:selvangivelse:1.0.0","http://www.digitaliser.dk/resource/5565258/artefact/UnikIdentifikationskodeIdentifikator.xsd"]
["5564169_UdenlandskArbejdsgiverFastRepraesentationIndikator","urn:oio:skat:selvangivelse:1.0.0","http://www.digitaliser.dk/resource/5564169/artefact/UdenlandskArbejdsgiverFastRepraesentationIndikator.xsd"]
["5548866_FlySelskabKodeTekst","urn:oio:skat:selvangivelse:1.0.0","http://www.digitaliser.dk/resource/5548866/artefact/FlySelskabKodeTekst.xsd"]
["5565123_SagHandlingTypeTekst","urn:oio:skat:selvangivelse:1.0.0","http://www.digitaliser.dk/resource/5565123/artefact/SagHandlingTypeTekst.xsd"]
["5564544_UdenlandskPersonligIndkomstTypeTekst","urn:oio:skat:selvangivelse:1.0.0","http://www.digitaliser.dk/resource/5564544/artefact/UdenlandskPersonligIndkomstTypeTekst.xsd"]
["5545548_AktieskatDBOGrundBeloeb","urn:oio:skat:selvangivelse:1.0.0","http://www.digitaliser.dk/resource/5545548/artefact/AktieskatDBOGrundBeloeb.xsd"]
["5545623_BegraensetSkattepligtigUdenlandskIndkomstHalvLempelseNedslagBeloeb","urn:oio:skat:selvangivelse:1.0.0","http://www.digitaliser.dk/resource/5545623/artefact/BegraensetSkattepligtigUdenlandskIndkomstHalvLempelseNedslagBeloeb.xsd"]
["5549498_KapitalafkastOrdningVirksomhedsbeskatningKonjunkturBeloeb","urn:oio:skat:selvangivelse:1.0.0","http://www.digitaliser.dk/resource/5549498/artefact/KapitalafkastOrdningVirksomhedsbeskatningKonjunkturBeloeb.xsd"]
["5550211_KommunalIndkomstskatNedslagBeloeb","urn:oio:skat:selvangivelse:1.0.0","http://www.digitaliser.dk/resource/5550211/artefact/KommunalIndkomstskatNedslagBeloeb.xsd"]
["5551035_MedarbejdendeAegtefaelleIndkomstEfterAMBidragBeloeb","urn:oio:skat:selvangivelse:1.0.0","http://www.digitaliser.dk/resource/5551035/artefact/MedarbejdendeAegtefaelleIndkomstEfterAMBidragBeloeb.xsd"]
["5554907_NedslagUdenlandskIndkomstHalvLempelseMedAcontoAMBidragBeloeb","urn:oio:skat:selvangivelse:1.0.0","http://www.digitaliser.dk/resource/5554907/artefact/NedslagUdenlandskIndkomstHalvLempelseMedAcontoAMBidragBeloeb.xsd"]
["5556725_RenteudgiftAndenUdenlandskGaeldBeloeb","urn:oio:skat:selvangivelse:1.0.0","http://www.digitaliser.dk/resource/5556725/artefact/RenteudgiftAndenUdenlandskGaeldBeloeb.xsd"]
["5558478_SelvstaendigVirksomhedAndenKapitalindkomstBeloeb","urn:oio:skat:selvangivelse:1.0.0","http://www.digitaliser.dk/resource/5558478/artefact/SelvstaendigVirksomhedAndenKapitalindkomstBeloeb.xsd"]
["5558508_SelvstaendigVirksomhedBiblioteksafgiftGodtgoerelseEfterAMBidragBeloeb","urn:oio:skat:selvangivelse:1.0.0","http://www.digitaliser.dk/resource/5558508/artefact/SelvstaendigVirksomhedBiblioteksafgiftGodtgoerelseEfterAMBidragBeloeb.xsd"]
["5565213_UdenlandskFormueAktieBevisKursvaerdiBeloeb","urn:oio:skat:selvangivelse:1.0.0","http://www.digitaliser.dk/resource/5565213/artefact/UdenlandskFormueAktieBevisKursvaerdiBeloeb.xsd"]
["5564304_UdenlandskKapitalIndkomstAndenKapitalIndkomstBeloeb","urn:oio:skat:selvangivelse:1.0.0","http://www.digitaliser.dk/resource/5564304/artefact/UdenlandskKapitalIndkomstAndenKapitalIndkomstBeloeb.xsd"]
["5564274_UdenlandskKapitalIndkomstRenteindtaegtBeloeb","urn:oio:skat:selvangivelse:1.0.0","http://www.digitaliser.dk/resource/5564274/artefact/UdenlandskKapitalIndkomstRenteindtaegtBeloeb.xsd"]
["5564454_UdenlandskPensionUdbetalingSaerligOrdningExemptionBeloeb","urn:oio:skat:selvangivelse:1.0.0","http://www.digitaliser.dk/resource/5564454/artefact/UdenlandskPensionUdbetalingSaerligOrdningExemptionBeloeb.xsd"]
["5564439_UdenlandskPensionUdbetalingSaerligOrdningBeloeb","urn:oio:skat:selvangivelse:1.0.0","http://www.digitaliser.dk/resource/5564439/artefact/UdenlandskPensionUdbetalingSaerligOrdningBeloeb.xsd"]
["5564754_UdenlandskPersonligIndkomstAndenIndkomstFraUdlArbejdsgiverEfterAMBidragBeloeb","urn:oio:skat:selvangivelse:1.0.0","http://www.digitaliser.dk/resource/5564754/artefact/UdenlandskPersonligIndkomstAndenIndkomstFraUdlArbejdsgiverEfterAMBidragBeloeb.xsd"]
["5564739_UdenlandskPersonligIndkomstBeloebGammelExemptionEfterAMBidragBeloeb","urn:oio:skat:selvangivelse:1.0.0","http://www.digitaliser.dk/resource/5564739/artefact/UdenlandskPersonligIndkomstBeloebGammelExemptionEfterAMBidragBeloeb.xsd"]
["5564724_UdenlandskPersonligIndkomstBeloebHalvLempelseEfterAMBidragBeloeb","urn:oio:skat:selvangivelse:1.0.0","http://www.digitaliser.dk/resource/5564724/artefact/UdenlandskPersonligIndkomstBeloebHalvLempelseEfterAMBidragBeloeb.xsd"]
["5565009_VirksomhedOrdningIndkomstTilVirksomhedsbeskatningBeloeb","urn:oio:skat:selvangivelse:1.0.0","http://www.digitaliser.dk/resource/5565009/artefact/VirksomhedOrdningIndkomstTilVirksomhedsbeskatningBeloeb.xsd"]
["5565033_VirksomhedOrdningRentekorrektionBeloeb","urn:oio:skat:selvangivelse:1.0.0","http://www.digitaliser.dk/resource/5565033/artefact/VirksomhedOrdningRentekorrektionBeloeb.xsd"]
["5565063_VirksomhedOrdningRentekorrektionEfterAMBidragBeloeb","urn:oio:skat:selvangivelse:1.0.0","http://www.digitaliser.dk/resource/5565063/artefact/VirksomhedOrdningRentekorrektionEfterAMBidragBeloeb.xsd"]
["5775091_AktierSpecifikationAktiebaseretInvesteringBeloeb","urn:oio:skat:selvangivelse:1.0.0","http://www.digitaliser.dk/resource/5775091/artefact/AktierSpecifikationAktiebaseretInvesteringBeloeb.xsd"]
["5775126_AktierSpecifikationUdenlandskAktiebaseretInvesteringBeloeb","urn:oio:skat:selvangivelse:1.0.0","http://www.digitaliser.dk/resource/5775126/artefact/AktierSpecifikationUdenlandskAktiebaseretInvesteringBeloeb.xsd"]
["5775141_AktierSpecifikationTabUdenlandskAktiebaseretInvesteringTilAegtefaelleBeloeb","urn:oio:skat:selvangivelse:1.0.0","http://www.digitaliser.dk/resource/5775141/artefact/AktierSpecifikationTabUdenlandskAktiebaseretInvesteringTilAegtefaelleBeloeb.xsd"]
["5775156_AktierSpecifikationTabUdenlandskAktiebaseretInvesteringFraAegtefaelleBeloeb","urn:oio:skat:selvangivelse:1.0.0","http://www.digitaliser.dk/resource/5775156/artefact/AktierSpecifikationTabUdenlandskAktiebaseretInvesteringFraAegtefaelleBeloeb.xsd"]
["5775171_ArbejdsgiverAdministreretBidragIndskudAldersopsparingDISBeloeb","urn:oio:skat:selvangivelse:1.0.0","http://www.digitaliser.dk/resource/5775171/artefact/ArbejdsgiverAdministreretBidragIndskudAldersopsparingDISBeloeb.xsd"]
["5775186_EjendomAngivelseUdlejningBundfradragIndikator","urn:oio:skat:selvangivelse:1.0.0","http://www.digitaliser.dk/resource/5775186/artefact/EjendomAngivelseUdlejningBundfradragIndikator.xsd"]
["5775201_RenteudgiftUdenlandskGaeldBeloeb","urn:oio:skat:selvangivelse:1.0.0","http://www.digitaliser.dk/resource/5775201/artefact/RenteudgiftUdenlandskGaeldBeloeb.xsd"]
["5775217_UdenlandskAktieObligationsbaseretInvesteringBeloeb","urn:oio:skat:selvangivelse:1.0.0","http://www.digitaliser.dk/resource/5775217/artefact/UdenlandskAktieObligationsbaseretInvesteringBeloeb.xsd"]
["5775232_UdenlandskAktieAktiebaseretInvesteringBeloeb","urn:oio:skat:selvangivelse:1.0.0","http://www.digitaliser.dk/resource/5775232/artefact/UdenlandskAktieAktiebaseretInvesteringBeloeb.xsd"]
["5775247_UdenlandskPersonligIndkomstPendlerArbejdslandBopaelslandIndikator","urn:oio:skat:selvangivelse:1.0.0","http://www.digitaliser.dk/resource/5775247/artefact/UdenlandskPersonligIndkomstPendlerArbejdslandBopaelslandIndikator.xsd"]
["2606411_ArbejdsgiverAdministreretBidragIndskudPaaAlderpensionBeloeb","urn:oio:skat:selvangivelse:1.0.0","http://digitaliser.dk/resource/2606411/artefact/ArbejdsgiverAdministreretBidragIndskudPaaAlderpensionBeloeb.xsd"]
["4252746_AlderspensionAfgiftsBeloeb20PctOver5AArBeloeb","urn:oio:skat:selvangivelse:1.0.0","http://www.digitaliser.dk/resource/4252746/artefact/AlderspensionAfgiftsBeloeb20PctOver5AArBeloeb.xsd"]
["4252769_AlderspensionAfgiftsBeloeb20PctUnder6AArBeloeb","urn:oio:skat:selvangivelse:1.0.0","http://www.digitaliser.dk/resource/4252769/artefact/AlderspensionAfgiftsBeloeb20PctUnder6AArBeloeb.xsd"]
["4252805_AlderspensionAfgiftsBeloeb40PctDiskvalificeretBeloeb","urn:oio:skat:selvangivelse:1.0.0","http://www.digitaliser.dk/resource/4252805/artefact/AlderspensionAfgiftsBeloeb40PctDiskvalificeretBeloeb.xsd"]
["4252721_AlderspensionAfgiftsBeloeb4PctBeloeb","urn:oio:skat:selvangivelse:1.0.0","http://www.digitaliser.dk/resource/4252721/artefact/AlderspensionAfgiftsBeloeb4PctBeloeb.xsd"]
["5545743_BeskaeftigelseByggeAnlaegMonteringIndikator","urn:oio:skat:selvangivelse:1.0.0","http://www.digitaliser.dk/resource/5545743/artefact/BeskaeftigelseByggeAnlaegMonteringIndikator.xsd"]
["5545758_BeskaeftigelseJournalistIndikator","urn:oio:skat:selvangivelse:1.0.0","http://www.digitaliser.dk/resource/5545758/artefact/BeskaeftigelseJournalistIndikator.xsd"]
["5545773_BeskaeftigelseMyndighedIndikator","urn:oio:skat:selvangivelse:1.0.0","http://www.digitaliser.dk/resource/5545773/artefact/BeskaeftigelseMyndighedIndikator.xsd"]
["5545788_BeskaeftigelseSystemeksportIndikator","urn:oio:skat:selvangivelse:1.0.0","http://www.digitaliser.dk/resource/5545788/artefact/BeskaeftigelseSystemeksportIndikator.xsd"]
["5545803_BeskaeftigelseTekniskEkspertIndikator","urn:oio:skat:selvangivelse:1.0.0","http://www.digitaliser.dk/resource/5545803/artefact/BeskaeftigelseTekniskEkspertIndikator.xsd"]
["5547022_FlyOpgaveIndikator","urn:oio:skat:selvangivelse:1.0.0","http://www.digitaliser.dk/resource/5547022/artefact/FlyOpgaveIndikator.xsd"]
["5547037_FlyInternationaltIndikator","urn:oio:skat:selvangivelse:1.0.0","http://www.digitaliser.dk/resource/5547037/artefact/FlyInternationaltIndikator.xsd"]
["5548851_FlyFastBesaetningIndikator","urn:oio:skat:selvangivelse:1.0.0","http://www.digitaliser.dk/resource/5548851/artefact/FlyFastBesaetningIndikator.xsd"]
["3700058_IndkomstPeriodeFraDato","urn:oio:skat:selvangivelse:1.0.0","http://www.digitaliser.dk/resource/3700058/artefact/IndkomstPeriodeFraDato.xsd"]
["3700082_IndkomstPeriodeTilDato","urn:oio:skat:selvangivelse:1.0.0","http://www.digitaliser.dk/resource/3700082/artefact/IndkomstPeriodeTilDato.xsd"]
["2610470_KapitalindkomstUdlodningInvesteringsforeningVirksomhedBeloeb","urn:oio:skat:selvangivelse:1.0.0","http://www.digitaliser.dk/resource/2610470/artefact/KapitalindkomstUdlodningInvesteringsforeningVirksomhedBeloeb.xsd"]
["5554639_NedslagBundkskatUdenlandskPensionExemptionSaerligOrdningBeloeb","urn:oio:skat:selvangivelse:1.0.0","http://www.digitaliser.dk/resource/5554639/artefact/NedslagBundkskatUdenlandskPensionExemptionSaerligOrdningBeloeb.xsd"]
["5555027_NedslagUdenlandskPensionSaerligOrdningCreditBeloeb","urn:oio:skat:selvangivelse:1.0.0","http://www.digitaliser.dk/resource/5555027/artefact/NedslagUdenlandskPensionSaerligOrdningCreditBeloeb.xsd"]
["5555042_NedslagUdenlandskPensionSaerligOrdningBeloeb","urn:oio:skat:selvangivelse:1.0.0","http://www.digitaliser.dk/resource/5555042/artefact/NedslagUdenlandskPensionSaerligOrdningBeloeb.xsd"]
["5555072_NedslagUdenlandskPensionExemptionBeloeb","urn:oio:skat:selvangivelse:1.0.0","http://www.digitaliser.dk/resource/5555072/artefact/NedslagUdenlandskPensionExemptionBeloeb.xsd"]
["5555224_OpholdUdlandAntalDageMereEnd183Indikator","urn:oio:skat:selvangivelse:1.0.0","http://www.digitaliser.dk/resource/5555224/artefact/OpholdUdlandAntalDageMereEnd183Indikator.xsd"]
["5555239_OpholdUdlandPeriodeOver30DageIndikator","urn:oio:skat:selvangivelse:1.0.0","http://www.digitaliser.dk/resource/5555239/artefact/OpholdUdlandPeriodeOver30DageIndikator.xsd"]
["5555254_OpholdUdlandPeriodeOver120DageIndikator","urn:oio:skat:selvangivelse:1.0.0","http://www.digitaliser.dk/resource/5555254/artefact/OpholdUdlandPeriodeOver120DageIndikator.xsd"]
["5555269_OpholdUdlandPeriodeOver60DageIndikator","urn:oio:skat:selvangivelse:1.0.0","http://www.digitaliser.dk/resource/5555269/artefact/OpholdUdlandPeriodeOver60DageIndikator.xsd"]
["5555284_OpholdUdlandMereEnd6MaanederIndikator","urn:oio:skat:selvangivelse:1.0.0","http://www.digitaliser.dk/resource/5555284/artefact/OpholdUdlandMereEnd6MaanederIndikator.xsd"]
["5555299_OpholdUdlandByggeAnlaegMonteringPeriodeIndikator","urn:oio:skat:selvangivelse:1.0.0","http://www.digitaliser.dk/resource/5555299/artefact/OpholdUdlandByggeAnlaegMonteringPeriodeIndikator.xsd"]
["5555314_OpholdUdlandByggeAnlaegMonteringPeriode2Indikator","urn:oio:skat:selvangivelse:1.0.0","http://www.digitaliser.dk/resource/5555314/artefact/OpholdUdlandByggeAnlaegMonteringPeriode2Indikator.xsd"]
["5555331_OpholdUdlandOver365DageIndikator","urn:oio:skat:selvangivelse:1.0.0","http://www.digitaliser.dk/resource/5555331/artefact/OpholdUdlandOver365DageIndikator.xsd"]
["5074779_PersonligIndkomstUdlodningInvesteringsForeningVirksomhedBeloeb","urn:oio:skat:selvangivelse:1.0.0","http://www.digitaliser.dk/resource/5074779/artefact/PersonligIndkomstUdlodningInvesteringsForeningVirksomhedBeloeb.xsd"]
["5555346_PersonligIndkomstFradragUdenlandskeSocialeBidragBeloeb","urn:oio:skat:selvangivelse:1.0.0","http://www.digitaliser.dk/resource/5555346/artefact/PersonligIndkomstFradragUdenlandskeSocialeBidragBeloeb.xsd"]
["2609760_PersonligIndkomstOverfoertKonjunkturUdligningProcent","urn:oio:skat:selvangivelse:1.0.0","http://digitaliser.dk/resource/2609760/artefact/PersonligIndkomstOverfoertKonjunkturUdligningProcent.xsd"]
["5565168_PersonligIndkomstOverfoertOpsparetOverskudSuccessionProcent","urn:oio:skat:selvangivelse:1.0.0","http://www.digitaliser.dk/resource/5565168/artefact/PersonligIndkomstOverfoertOpsparetOverskudSuccessionProcent.xsd"]
["5077004_PersonSelvangivelseRevisorindberetningTekst","urn:oio:skat:selvangivelse:1.0.0","http://www.digitaliser.dk/resource/5077004/artefact/PersonSelvangivelseRevisorindberetningTekst.xsd"]
["2547414_RenteudgiftOffentligGaeldBeloeb","urn:oio:skat:selvangivelse:1.0.0","http://digitaliser.dk/resource/2547414/artefact/RenteudgiftOffentligGaeldBeloeb.xsd"]
["5556744_SaerligIndkomstFlyvningIDanmarkIndikator","urn:oio:skat:selvangivelse:1.0.0","http://www.digitaliser.dk/resource/5556744/artefact/SaerligIndkomstFlyvningIDanmarkIndikator.xsd"]
["5556759_SaerligIndkomstSejladsIDanmarkIndikator","urn:oio:skat:selvangivelse:1.0.0","http://www.digitaliser.dk/resource/5556759/artefact/SaerligIndkomstSejladsIDanmarkIndikator.xsd"]
["5556774_SaerligIndkomstKulturaftaleIndikator","urn:oio:skat:selvangivelse:1.0.0","http://www.digitaliser.dk/resource/5556774/artefact/SaerligIndkomstKulturaftaleIndikator.xsd"]
["5556789_SaerligIndkomstOffentligStoetteIndikator","urn:oio:skat:selvangivelse:1.0.0","http://www.digitaliser.dk/resource/5556789/artefact/SaerligIndkomstOffentligStoetteIndikator.xsd"]
["5558416_SaerligIndkomstPraemierPriserIndikator","urn:oio:skat:selvangivelse:1.0.0","http://www.digitaliser.dk/resource/5558416/artefact/SaerligIndkomstPraemierPriserIndikator.xsd"]
["5558433_SaerligIndkomstTilfalderPersonIndikator","urn:oio:skat:selvangivelse:1.0.0","http://www.digitaliser.dk/resource/5558433/artefact/SaerligIndkomstTilfalderPersonIndikator.xsd"]
["5558463_SaerligIndkomstTurneIndikator","urn:oio:skat:selvangivelse:1.0.0","http://www.digitaliser.dk/resource/5558463/artefact/SaerligIndkomstTurneIndikator.xsd"]
["5558448_SaerligIndkomstDanskVelgoerendeIndikator","urn:oio:skat:selvangivelse:1.0.0","http://www.digitaliser.dk/resource/5558448/artefact/SaerligIndkomstDanskVelgoerendeIndikator.xsd"]
["5558523_SkibGroenlandHeleAaretIndikator","urn:oio:skat:selvangivelse:1.0.0","http://www.digitaliser.dk/resource/5558523/artefact/SkibGroenlandHeleAaretIndikator.xsd"]
["5558538_SkibGroenlandskIndikator","urn:oio:skat:selvangivelse:1.0.0","http://www.digitaliser.dk/resource/5558538/artefact/SkibGroenlandskIndikator.xsd"]
["5558553_SkibDanmarkHeleAaretIndikator","urn:oio:skat:selvangivelse:1.0.0","http://www.digitaliser.dk/resource/5558553/artefact/SkibDanmarkHeleAaretIndikator.xsd"]
["5558568_SkibFASIndikator","urn:oio:skat:selvangivelse:1.0.0","http://www.digitaliser.dk/resource/5558568/artefact/SkibFASIndikator.xsd"]
["5565198_SkibNationalitetIdentifikator","urn:oio:skat:selvangivelse:1.0.0","http://www.digitaliser.dk/resource/5565198/artefact/SkibNationalitetIdentifikator.xsd"]
["5558598_SkibOpgaveIndikator","urn:oio:skat:selvangivelse:1.0.0","http://www.digitaliser.dk/resource/5558598/artefact/SkibOpgaveIndikator.xsd"]
["5558613_SkibSejladsFlereLandeIndikator","urn:oio:skat:selvangivelse:1.0.0","http://www.digitaliser.dk/resource/5558613/artefact/SkibSejladsFlereLandeIndikator.xsd"]
["5558628_SkibSejladsIndreVandvejeIndikator","urn:oio:skat:selvangivelse:1.0.0","http://www.digitaliser.dk/resource/5558628/artefact/SkibSejladsIndreVandvejeIndikator.xsd"]
["5558643_SkibFastBesaetningIndikator","urn:oio:skat:selvangivelse:1.0.0","http://www.digitaliser.dk/resource/5558643/artefact/SkibFastBesaetningIndikator.xsd"]
["5561663_TopskatUdenlandskPensionExemptionSaerligOrdningNedslagBeloeb","urn:oio:skat:selvangivelse:1.0.0","http://www.digitaliser.dk/resource/5561663/artefact/TopskatUdenlandskPensionExemptionSaerligOrdningNedslagBeloeb.xsd"]
["5561695_TopskatUdenlandskPensionSaerligOrdningCreditNedslagBeloeb","urn:oio:skat:selvangivelse:1.0.0","http://www.digitaliser.dk/resource/5561695/artefact/TopskatUdenlandskPensionSaerligOrdningCreditNedslagBeloeb.xsd"]
["5562409_UdenlandskAnsaettelseOffentligErhvervIndikator","urn:oio:skat:selvangivelse:1.0.0","http://www.digitaliser.dk/resource/5562409/artefact/UdenlandskAnsaettelseOffentligErhvervIndikator.xsd"]
["5562424_UdenlandskAnsaettelseTjenesteforholdIndikator","urn:oio:skat:selvangivelse:1.0.0","http://www.digitaliser.dk/resource/5562424/artefact/UdenlandskAnsaettelseTjenesteforholdIndikator.xsd"]
["5562439_UdenlandskAnsaettelseArbejdsudlejetIndikator","urn:oio:skat:selvangivelse:1.0.0","http://www.digitaliser.dk/resource/5562439/artefact/UdenlandskAnsaettelseArbejdsudlejetIndikator.xsd"]
["5562454_UdenlandskAnsaettelseFormaalIndikator","urn:oio:skat:selvangivelse:1.0.0","http://www.digitaliser.dk/resource/5562454/artefact/UdenlandskAnsaettelseFormaalIndikator.xsd"]
["5562469_UdenlandskAnsaettelseFritErhvervIndikator","urn:oio:skat:selvangivelse:1.0.0","http://www.digitaliser.dk/resource/5562469/artefact/UdenlandskAnsaettelseFritErhvervIndikator.xsd"]
["5562484_UdenlandskAnsaettelseSaedvanligArbejdsgiverIndikator","urn:oio:skat:selvangivelse:1.0.0","http://www.digitaliser.dk/resource/5562484/artefact/UdenlandskAnsaettelseSaedvanligArbejdsgiverIndikator.xsd"]
["5563959_UdenlandskAnsaettelseTuristorganisationIndikator","urn:oio:skat:selvangivelse:1.0.0","http://www.digitaliser.dk/resource/5563959/artefact/UdenlandskAnsaettelseTuristorganisationIndikator.xsd"]
["5563989_UdenlandskAnsaettelseStatsborgerskabMarkeringIndikator","urn:oio:skat:selvangivelse:1.0.0","http://www.digitaliser.dk/resource/5563989/artefact/UdenlandskAnsaettelseStatsborgerskabMarkeringIndikator.xsd"]
["5564019_UdenlandskArbejdsgiverVelgoerendeIndikator","urn:oio:skat:selvangivelse:1.0.0","http://www.digitaliser.dk/resource/5564019/artefact/UdenlandskArbejdsgiverVelgoerendeIndikator.xsd"]
["5564034_UdenlandskArbejdsgiverGroenlandIndikator","urn:oio:skat:selvangivelse:1.0.0","http://www.digitaliser.dk/resource/5564034/artefact/UdenlandskArbejdsgiverGroenlandIndikator.xsd"]
["5564079_UdenlandskArbejdsgiverLandEjArbejdslandIndikator","urn:oio:skat:selvangivelse:1.0.0","http://www.digitaliser.dk/resource/5564079/artefact/UdenlandskArbejdsgiverLandEjArbejdslandIndikator.xsd"]
["5564094_UdenlandskArbejdsgiverFastDriftstedArbejdslandTekst","urn:oio:skat:selvangivelse:1.0.0","http://www.digitaliser.dk/resource/5564094/artefact/UdenlandskArbejdsgiverFastDriftstedArbejdslandTekst.xsd"]
["5564109_UdenlandskArbejdsgiverKonsortieIndikator","urn:oio:skat:selvangivelse:1.0.0","http://www.digitaliser.dk/resource/5564109/artefact/UdenlandskArbejdsgiverKonsortieIndikator.xsd"]
["5564124_UdenlandskArbejdsgiverOffentligIndikator","urn:oio:skat:selvangivelse:1.0.0","http://www.digitaliser.dk/resource/5564124/artefact/UdenlandskArbejdsgiverOffentligIndikator.xsd"]
["5564139_UdenlandskArbejdsgiverAmbassadeIndikator","urn:oio:skat:selvangivelse:1.0.0","http://www.digitaliser.dk/resource/5564139/artefact/UdenlandskArbejdsgiverAmbassadeIndikator.xsd"]
["5564154_UdenlandskArbejdsgiverTuristoriganisationKommercielIndikator","urn:oio:skat:selvangivelse:1.0.0","http://www.digitaliser.dk/resource/5564154/artefact/UdenlandskArbejdsgiverTuristoriganisationKommercielIndikator.xsd"]
["5564244_UdenlandskKapitalIndkomstBeloebGammelExemptionBeloeb","urn:oio:skat:selvangivelse:1.0.0","http://www.digitaliser.dk/resource/5564244/artefact/UdenlandskKapitalIndkomstBeloebGammelExemptionBeloeb.xsd"]
["5564229_UdenlandskKapitalIndkomstBeloeb","urn:oio:skat:selvangivelse:1.0.0","http://www.digitaliser.dk/resource/5564229/artefact/UdenlandskKapitalIndkomstBeloeb.xsd"]
["5564319_UdenlandskLigningmaessigtFradragLoenindtaegtBeloeb","urn:oio:skat:selvangivelse:1.0.0","http://www.digitaliser.dk/resource/5564319/artefact/UdenlandskLigningmaessigtFradragLoenindtaegtBeloeb.xsd"]
["5564334_UdenlandskLigningmaessigtFradragPersonligIndkomstHalvLempelseBeloeb","urn:oio:skat:selvangivelse:1.0.0","http://www.digitaliser.dk/resource/5564334/artefact/UdenlandskLigningmaessigtFradragPersonligIndkomstHalvLempelseBeloeb.xsd"]
["5564364_UdenlandskLigningmaessigtFradragPersonligIndkomstGammelExemptionBeloeb","urn:oio:skat:selvangivelse:1.0.0","http://www.digitaliser.dk/resource/5564364/artefact/UdenlandskLigningmaessigtFradragPersonligIndkomstGammelExemptionBeloeb.xsd"]
["5564379_UdenlandskPensionUdbetalingDanskBeskatningBeloeb","urn:oio:skat:selvangivelse:1.0.0","http://www.digitaliser.dk/resource/5564379/artefact/UdenlandskPensionUdbetalingDanskBeskatningBeloeb.xsd"]
["5564394_UdenlandskPensionUdbetalingCreditBeloeb","urn:oio:skat:selvangivelse:1.0.0","http://www.digitaliser.dk/resource/5564394/artefact/UdenlandskPensionUdbetalingCreditBeloeb.xsd"]
["5564409_UdenlandskPensionUdbetalingExemptionBeloeb","urn:oio:skat:selvangivelse:1.0.0","http://www.digitaliser.dk/resource/5564409/artefact/UdenlandskPensionUdbetalingExemptionBeloeb.xsd"]
["5564424_UdenlandskPensionUdbetalingGammelExemptionBeloeb","urn:oio:skat:selvangivelse:1.0.0","http://www.digitaliser.dk/resource/5564424/artefact/UdenlandskPensionUdbetalingGammelExemptionBeloeb.xsd"]
["5564469_UdenlandskPersonligIndkomstLoenindtaegtBeloeb","urn:oio:skat:selvangivelse:1.0.0","http://www.digitaliser.dk/resource/5564469/artefact/UdenlandskPersonligIndkomstLoenindtaegtBeloeb.xsd"]
["5564484_UdenlandskPersonligIndkomstAndenIndkomstFraUdlArbejdsgiverBeloeb","urn:oio:skat:selvangivelse:1.0.0","http://www.digitaliser.dk/resource/5564484/artefact/UdenlandskPersonligIndkomstAndenIndkomstFraUdlArbejdsgiverBeloeb.xsd"]
["5564499_UdenlandskPersonligIndkomstBeloebHalvLempelseBeloeb","urn:oio:skat:selvangivelse:1.0.0","http://www.digitaliser.dk/resource/5564499/artefact/UdenlandskPersonligIndkomstBeloebHalvLempelseBeloeb.xsd"]
["5564514_UdenlandskPersonligIndkomstBeloebGammelExemptionBeloeb","urn:oio:skat:selvangivelse:1.0.0","http://www.digitaliser.dk/resource/5564514/artefact/UdenlandskPersonligIndkomstBeloebGammelExemptionBeloeb.xsd"]
["5564529_UdenlandskPersonligIndkomstLempelseBetingelserLigningslov33AIndikator","urn:oio:skat:selvangivelse:1.0.0","http://www.digitaliser.dk/resource/5564529/artefact/UdenlandskPersonligIndkomstLempelseBetingelserLigningslov33AIndikator.xsd"]
["5564559_UdenlandskPersonligIndkomstSocialtSikretArbejdslandIndikator","urn:oio:skat:selvangivelse:1.0.0","http://www.digitaliser.dk/resource/5564559/artefact/UdenlandskPersonligIndkomstSocialtSikretArbejdslandIndikator.xsd"]
["5564574_UdenlandskPersonligIndkomstOverBeloebGraenseIndikator","urn:oio:skat:selvangivelse:1.0.0","http://www.digitaliser.dk/resource/5564574/artefact/UdenlandskPersonligIndkomstOverBeloebGraenseIndikator.xsd"]
["5564589_UdenlandskPersonligIndkomstDokumentationIndikator","urn:oio:skat:selvangivelse:1.0.0","http://www.digitaliser.dk/resource/5564589/artefact/UdenlandskPersonligIndkomstDokumentationIndikator.xsd"]
["5564814_UdenlandskSkatBeloeb","urn:oio:skat:selvangivelse:1.0.0","http://www.digitaliser.dk/resource/5564814/artefact/UdenlandskSkatBeloeb.xsd"]
["5564844_UdenlandskSkatKapitalIndkomstBeloeb","urn:oio:skat:selvangivelse:1.0.0","http://www.digitaliser.dk/resource/5564844/artefact/UdenlandskSkatKapitalIndkomstBeloeb.xsd"]
["5564859_UdenlandskSkatUdbytteskatBeloeb","urn:oio:skat:selvangivelse:1.0.0","http://www.digitaliser.dk/resource/5564859/artefact/UdenlandskSkatUdbytteskatBeloeb.xsd"]
["5564904_UdenlandskSkatDokumentationIndikator","urn:oio:skat:selvangivelse:1.0.0","http://www.digitaliser.dk/resource/5564904/artefact/UdenlandskSkatDokumentationIndikator.xsd"]
["5564919_UdenlandskSkatArbejdsgiverHjemlandIndikator","urn:oio:skat:selvangivelse:1.0.0","http://www.digitaliser.dk/resource/5564919/artefact/UdenlandskSkatArbejdsgiverHjemlandIndikator.xsd"]
["5564934_UdenlandskSkattepligtMarkeringIndikator","urn:oio:skat:selvangivelse:1.0.0","http://www.digitaliser.dk/resource/5564934/artefact/UdenlandskSkattepligtMarkeringIndikator.xsd"]
["5564949_UdenlandskSkattepligtHelIndikator","urn:oio:skat:selvangivelse:1.0.0","http://www.digitaliser.dk/resource/5564949/artefact/UdenlandskSkattepligtHelIndikator.xsd"]
["5564964_UdenlandskSkattepligtDelvisIndikator","urn:oio:skat:selvangivelse:1.0.0","http://www.digitaliser.dk/resource/5564964/artefact/UdenlandskSkattepligtDelvisIndikator.xsd"]
["5564979_UdenlandskSkattepligtBundgraenseIndikator","urn:oio:skat:selvangivelse:1.0.0","http://www.digitaliser.dk/resource/5564979/artefact/UdenlandskSkattepligtBundgraenseIndikator.xsd"]
["5564184_UdenlandskArbejdsgiverKommercielIndikator","urn:oio:skat:selvangivelse:1.0.0","http://www.digitaliser.dk/resource/5564184/artefact/UdenlandskArbejdsgiverKommercielIndikator.xsd"]

{"sheet":"Setup","index":2,"n_rows":21,"n_cols":2,"rows_kept":21,"cut":false,"hidden":false,"merged":[]}
["Makro-konfigurationsværdier"]
["Genererede schemaer følger NDR 3.2/4!"]
[]
[]
["Projekt","Load fra foldere"]
["selvangivelse","C:\\Users\\w24383\\Desktop\\OIOPersonSelvangivelseOpret2020vs3\\OIO_Startpakke\\Skat2020PersonSkat.r21205_NYESTE\\package\\class"]
[]
["Generer i path"]
["C:\\Users\\w24383\\Desktop\\OIOPersonSelvangivelseOpret2020vs3\\OIO_Startpakke\\generate","Verificer datastrukturer"]
[null,"C:\\Users\\w24383\\Desktop\\OIOPersonSelvangivelseOpret2020vs3\\OIO_Startpakke\\Skat2020PersonSkat.r21205_NYESTE\\package\\view"]
[]
[]
[]
["Target namespace (afledt af projektnavn)"]
[{"$f":"CONCATENATE(\"urn:oio:skat:\",LOWER(projekt),\":1.0.0\")","v":"urn:oio:skat:selvangivelse:1.0.0"}]
[]
["SKAT namespace"]
["http://skat.dk/begrebsmodel/2020/01/01/"]
[]
["Bruger på digitaliser.dk"]
["Aaen"]

{"sheet":"Feltmapning","index":3,"n_rows":28,"n_cols":1,"rows_kept":28,"cut":false,"hidden":false,"merged":[]}
["Tilladte OIO-postfixes"]
["Amount"]
["Beloeb"]
["Code"]
["Kode"]
["Date"]
["Dato"]
["DateTime"]
["DatoTid"]
["Identifier"]
["Identifikator"]
["Reference"]
["Indicator"]
["Indikator"]
["Measure"]
["Maal"]
["Name"]
["Navn"]
["Percent"]
["Procent"]
["Quantity"]
["Kvantitet"]
["Rate"]
["Text"]
["Tekst"]
["Periode"]
["Data"]
["Interval"]

{"sheet":"Dokumentation","index":4,"n_rows":476,"n_cols":4,"rows_kept":476,"cut":false,"hidden":false,"merged":[]}
["SKATXML element","SKATXML type","OIO elementnavn","OIOXML type"]
["AktierSpecifikationGevinstTabAktierMarked","skat2020:BeløbType","AktierSpecifikationGevinstTabAktierMarkedBeloeb.xsd","xs:decimal"]
["AktierSpecifikationUdbytteEjDkAktierEjMarked","skat2020:BeløbType","AktierSpecifikationUdbytteEjDkAktierEjMarkedBeloeb.xsd","xs:decimal"]
["AktierSpecifikationUdbytteEjDkAktierMarked","skat2020:BeløbType","AktierSpecifikationUdbytteEjDkAktierMarkedBeloeb.xsd","xs:decimal"]
["AktierSpecifikationUdbytteEjUdbytteSkat","skat2020:BeløbType","AktierSpecifikationUdbytteEjUdbytteSkatBeloeb.xsd","xs:decimal"]
["AktierSpecifikationUdbytteDkAktierEjMarked","skat2020:BeløbType","AktierSpecifikationUdbytteDkAktierEjMarkedBeloeb.xsd","xs:decimal"]
["AktierSpecifikationUdbytteDkAktierMarked","skat2020:BeløbType","AktierSpecifikationUdbytteDkAktierMarkedBeloeb.xsd","xs:decimal"]
["AktierSpecifikationUdbytteUdenlandskAktierMarked","skat2020:BeløbType","AktierSpecifikationUdbytteUdenlandskAktierMarkedBeloeb.xsd","xs:decimal"]
["AktierSpecifikationUdbytteUdlodningEjUdbytteSkat","skat2020:BeløbType","AktierSpecifikationUdbytteUdlodningEjUdbytteSkatBeloeb.xsd","xs:decimal"]
["AktierSpecifikationAktiebaseretInvesteringBeløb","skat2020:BeløbDanskType","AktierSpecifikationAktiebaseretInvesteringBeloeb.xsd","xs:decimal"]
["AktierSpecifikationUdenlandskAktiebaseretInvesteringBeløb","skat2020:BeløbDanskType","AktierSpecifikationUdenlandskAktiebaseretInvesteringBeloeb.xsd","xs:decimal"]
["AktierSpecifikationTabUdenlandskAktiebaseretInvesteringTilÆgtefælleBeløb","skat2020:BeløbDanskType","AktierSpecifikationTabUdenlandskAktiebaseretInvesteringTilAegtefaelleBeloeb.xsd","xs:decimal"]
["AktierSpecifikationTabUdenlandskAktiebaseretInvesteringFraÆgtefælleBeløb","skat2020:BeløbDanskType","AktierSpecifikationTabUdenlandskAktiebaseretInvesteringFraAegtefaelleBeloeb.xsd","xs:decimal"]
["AktieskatBeløb","skat2020:BeløbDanskType","AktieskatBeloeb.xsd","xs:decimal"]
["AktieskatGrundBeløb","skat2020:BeløbDanskType","AktieskatGrundBeloeb.xsd","xs:decimal"]
["AktieskatManueltNettoBeløb","skat2020:BeløbDanskType","AktieskatManueltNettoBeloeb.xsd","xs:decimal"]
["AktieskatDBOGrundBeløb","skat2020:BeløbDanskType","AktieskatDBOGrundBeloeb.xsd","xs:decimal"]
["AlternativAdresseAdresseLinie1","skat2020:AdresseLinieType","DKCC_PostalAddressFirstLineText.xsd","cpr:CompletePostalLabelTextType"]
["AlternativAdresseAdresseLinie2","skat2020:AdresseLinieType","DKCC_PostalAddressSecondLineText.xsd","cpr:CompletePostalLabelTextType"]
["AlternativAdresseAdresseLinie3","skat2020:AdresseLinieType","DKCC_PostalAddressThirdLineText.xsd","cpr:CompletePostalLabelTextType"]
["AlternativAdresseAdresseLinie4","skat2020:AdresseLinieType","DKCC_PostalAddressFourthLineText.xsd","cpr:CompletePostalLabelTextType"]
["AlternativAdresseAdresseLinie5","skat2020:AdresseLinieType","DKCC_PostalAddressFifthLineText.xsd","cpr:CompletePostalLabelTextType"]
["AlternativAdresseAdresseLinie6","skat2020:AdresseLinieType","DKCC_PostalAddressSixthLineText.xsd","cpr:CompletePostalLabelTextType"]
["AlternativAdresseAdresseLinie7","skat2020:AdresseLinieType","AlternativAdresseAdresseLinie7Text.xsd","xs:string"]
["AMBidragBeløb","skat2020:BeløbDanskType","AMBidragBeloeb.xsd","xs:decimal"]
["AMBidragNettoBeløb","skat2020:BeløbDanskType","AMBidragNettoBeloeb.xsd","xs:decimal"]
["ArbejdsgiverAdministreretBidragIndskudPåAlderpension","skat2020:BeløbDanskType","ArbejdsgiverAdministreretBidragIndskudPaaAlderpensionBeloeb.xsd","xs:decimal"]
["ArbejdsgiverAdministreretBidragIndskudAldersopsparingDISBeløb","skat2020:BeløbDanskType","ArbejdsgiverAdministreretBidragIndskudAldersopsparingDISBeloeb.xsd","xs:decimal"]
["BefordringsFradragBeløb","skat2020:BeløbDanskType","BefordringsFradragBeloeb.xsd","xs:decimal"]
["BefordringsFradragBeregnet","skat2020:BeløbDanskType","BefordringsFradragBeregnetBeloeb.xsd","xs:decimal"]
["BegrænsetSkattepligtigDISNedslag","skat2020:BeløbDanskType","BegraensetSkattepligtigDISNedslagBeloeb.xsd","xs:decimal"]
["BegrænsetSkattepligtigUdenlandskIndkomstHalvLempelseNedslag","skat2020:BeløbDanskType","BegraensetSkattepligtigUdenlandskIndkomstHalvLempelseNedslagBeloeb.xsd","xs:decimal"]
["BeregnetKapitalIndkomstOverskydendeTotalNedslagGrænse","skat2020:BeløbDanskType","BeregnetKapitalIndkomstOverskydendeTotalNedslagGraenseBeloeb.xsd","xs:decimal"]
["BeregnetPersonligIndkomstGrænse","skat2020:BeløbDanskType","BeregnetPersonligIndkomstGraenseBeloeb.xsd","xs:decimal"]
["BeregningsgrundlagGammel2001","skat2020:BeløbDanskType","BeregningsgrundlagGammel2001Beloeb.xsd","xs:decimal"]
["BeregningsgrundlagNy2002","skat2020:BeløbDanskType","BeregningsgrundlagNy2002Beloeb.xsd","xs:decimal"]
["BeregningsgrundlagBeløb","skat2020:BeløbDanskType","BeregningsgrundlagBeloebBeloeb.xsd","xs:decimal"]
["BeregningsgrundlagSamletGammel2001","skat2020:BeløbDanskType","BeregningsgrundlagSamletGammel2001Beloeb.xsd","xs:decimal"]
["BeregningsgrundlagSamletNy2002","skat2020:BeløbDanskType","BeregningsgrundlagSamletNy2002Beloeb.xsd","xs:decimal"]
["BeskæftigelseByggeAnlægMontering","skat2020:Tekst1Type","BeskaeftigelseByggeAnlaegMonteringIndikator.xsd","xs:string"]
["BeskæftigelseJournalist","skat2020:Tekst1Type","BeskaeftigelseJournalistIndikator.xsd","xs:string"]
["BeskæftigelseMyndighed","skat2020:Tekst1Type","BeskaeftigelseMyndighedIndikator.xsd","xs:string"]
["BeskæftigelseSystemeksport","skat2020:Tekst1Type","BeskaeftigelseSystemeksportIndikator.xsd","xs:string"]
["BeskæftigelseTekniskEkspert","skat2020:Tekst1Type","BeskaeftigelseTekniskEkspertIndikator.xsd","xs:string"]
["BeskæftigelsesFradragBeløb","skat2020:BeløbDanskType","BeskaeftigelsesFradragBeloeb.xsd","xs:decimal"]
["BeskæftigelsesFradragEnligForsørger","skat2020:BeløbDanskType","BeskaeftigelsesFradragEnligForsoergerBeloeb.xsd","xs:decimal"]
["BlanketFeltNummer","skat2020:TalHelType","SKAT_BlanketFeltNummerIdentifikator.xsd","xs:integer"]
["BundskatTotal","skat2020:BeløbDanskType","BundskatTotalBeloeb.xsd","xs:decimal"]
["BundskatManueltNettoBeløb","skat2020:BeløbDanskType","BundskatManueltNettoBeloeb.xsd","xs:decimal"]
["BundskatFradragBeløb","skat2020:BeløbDanskType","BundskatFradragBeloeb.xsd","xs:decimal"]
["BundskatFradragModregnetværdi","skat2020:BeløbDanskType","BundskatFradragModregnetvaerdiBeloeb.xsd","xs:decimal"]
["CFCIndkomstBeløb","skat2020:BeløbDanskType","CFCIndkomstBeloeb.xsd","xs:decimal"]
["CFCIndkomstNedslagBeløb","skat2020:BeløbDanskType","CFCIndkomstNedslagBeloeb.xsd","xs:decimal"]
["CFCskatBeløb","skat2020:BeløbDanskType","CFCskatBeloeb.xsd","xs:decimal"]
["CFCskatManueltNettoBeløb","skat2020:BeløbDanskType","CFCskatManueltNettoBeloeb.xsd","xs:decimal"]
["DISIndkomstBundskatNedslag","skat2020:BeløbDanskType","DISIndkomstBundskatNedslagBeloeb.xsd","xs:decimal"]
["DISIndkomstNedslagBeløb","skat2020:BeløbDanskType","DISIndkomstNedslagBeloeb.xsd","xs:decimal"]
["EjendomNummer","skat2020:EjendomNummerType","BBR_MunicipalRealPropertyIdentifier.xsd","bbr:MunicipalRealPropertyIdentifierType"]
["EjendomAngivelseEjendomstype","skat2020:KodeEtCifferStartNulType","EjendomAngivelseEjendomstypeKode.xsd","xs:string"]
["EjendomAngivelseOvertagelsesdato","skat2020:DatoType","EjendomAngivelseOvertagelsesdatoDato.xsd","xs:date"]
["EjendomAngivelseIndflytningsdato","skat2020:DatoType","EjendomAngivelseOvertagelseDato.xsd","xs:date"]
["EjendomAngivelseIndflytningEfterIndkomstår","skat2020:MarkeringType","EjendomAngivelseIndflytningEfterIndkomstaarIndikator.xsd","xs:boolean"]
["EjendomAngivelseUdflytningsdato","skat2020:DatoType","EjendomAngivelseUdflytningDato.xsd","xs:date"]
["EjendomAngivelseKøberOvertagelsesdato","skat2020:DatoType","EjendomAngivelseKoeberOvertagelsesdatoDato.xsd","xs:date"]
["EjendomAngivelseUbeboeligdage","skat2020:TalHel5Type","EjendomAngivelseUbeboeligdageKvantitet.xsd","xs:integer"]
["EjendomAngivelseDelvisUdlejningsdage","skat2020:TalHel3Type","EjendomAngivelseDelvisUdlejningsdageKvantitet.xsd","xs:integer"]
["EjendomAngivelseDelvisUdlejningsandel","skat2020:VærdiProcentType","EjendomAngivelseDelvisUdlejningsandelProcent.xsd","xs:decimal"]
["EjendomAngivelseHelUdlejningsdage","skat2020:TalHel3Type","EjendomAngivelseHelUdlejningsdageKvantitet.xsd","xs:integer"]
["EjendomAngivelseErhvervsanvendelsesandel","skat2020:VærdiProcentType","EjendomAngivelseErhvervsanvendelsesandelProcent.xsd","xs:decimal"]
["EjendomAngivelseErhvervsanvendelsesdage","skat2020:TalHel3Type","EjendomAngivelseErhvervsanvendelsesdageKvantitet.xsd","xs:integer"]
["EjendomAngivelseErhvervsudlejningsdage","skat2020:TalHel3Type","EjendomAngivelseErhvervsudlejningsdageKvantitet.xsd","xs:integer"]
["EjendomAngivelseUdlejningBundfradrag","skat2020:MarkeringType","EjendomAngivelseUdlejningBundfradragIndikator.xsd","xs:boolean"]
["EjendomEjerskabErhvervetFør1998","skat2020:MarkeringType","EjendomEjerskabErhvervetFoer1998Indikator.xsd","xs:boolean"]
["EjendomEjerskabEjerandel","skat2020:VærdiProcentType","EjendomEjerskabEjerandelProcent.xsd","xs:decimal"]
["EjendomEjerskabErhvervetFør2007","skat2020:MarkeringType","EjendomEjerskabErhvervetFoer2007Indikator.xsd","xs:boolean"]
["EjendomsværdiSamlet","skat2020:BeløbDanskType","EjendomsvaerdiSamletBeloeb.xsd","xs:decimal"]
["EjendomværdiskatBeløb","skat2020:BeløbDanskType","EjendomvaerdiskatBeloeb.xsd","xs:decimal"]
["EjendomværdiskatBeregnetSum","skat2020:BeløbDanskType","EjendomvaerdiskatBeregnetSumBeloeb.xsd","xs:decimal"]
["EjReguleretGevinstUdenlandsk","skat2020:BeløbDanskType","EjReguleretGevinstUdenlandskBeloeb.xsd","xs:decimal"]
["EjReguleretUdbytteUdenlandsk","skat2020:BeløbDanskType","EjReguleretUdbytteUdenlandskBeloeb.xsd","xs:decimal"]
["FastEjendomTabBeløb","skat2020:BeløbDanskType","FastEjendomTabBeloeb.xsd","xs:decimal"]
["FlyOpgave","skat2020:Tekst1Type","FlyOpgaveIndikator.xsd","xs:string"]
["FlyInternationalt","skat2020:Tekst1Type","FlyInternationaltIndikator.xsd","xs:string"]
["FlySelskabNavn","skat2020:TekstLangType","FlySelskabNavnTekst.xsd","xs:string"]
["FlyFastBesætning","skat2020:Tekst1Type","FlyFastBesaetningIndikator.xsd","xs:string"]
["FlySelskabKode","skat2020:TekstKortType","FlySelskabKodeTekst.xsd","xs:string"]
["ForskerskatBeløb","skat2020:BeløbDanskType","ForskerskatBeloeb.xsd","xs:decimal"]
["ForskerskatManueltNettoBeløb","skat2020:BeløbDanskType","ForskerskatManueltNettoBeloeb.xsd","xs:decimal"]
["IndkomstPeriodeFra","skat2020:DatoType","IndkomstPeriodeFraDato.xsd","xs:date"]
["IndkomstPeriodeTil","skat2020:DatoType","IndkomstPeriodeTilDato.xsd","xs:date"]
["IndkomstskatFradragBeløb","skat2020:BeløbDanskType","IndkomstskatFradragBeloeb.xsd","xs:decimal"]
["IndkomstskatFradragModregnetværdi","skat2020:BeløbDanskType","IndkomstskatFradragModregnetvaerdiBeloeb.xsd","xs:decimal"]
["KapitalafkastOrdningVirksomhedsbeskatningKonjunktur","skat2020:BeløbDanskType","KapitalafkastOrdningVirksomhedsbeskatningKonjunkturBeloeb.xsd","xs:decimal"]
["KapitalafkastOrdningKapitalafkast","skat2020:BeløbDanskType","KapitalafkastOrdningKapitalafkastBeloeb.xsd","xs:decimal"]
["KapitalIndkomstAndenKapitalIndkomst","skat2020:BeløbDanskType","KapitalIndkomstAndenKapitalIndkomstBeloeb.xsd","xs:decimal"]
["KapitalIndkomstRenteIndtægt","skat2020:BeløbDanskType","KapitalIndkomstRenteIndtaegtBeloeb.xsd","xs:decimal"]
["KapitalIndkomstGevinstTabAktierBevisInvesteringsSelskab","skat2020:BeløbDanskType","KapitalIndkomstGevinstTabAktierBevisInvesteringsSelskabBeloeb.xsd","xs:decimal"]
["KapitalIndkomstGevinstTabObligationerEjMarked","skat2020:BeløbDanskType","KapitalIndkomstGevinstTabObligationerEjMarkedBeloeb.xsd","xs:decimal"]
["KapitalIndkomstGevinstTabObligationerMarked","skat2020:BeløbDanskType","KapitalIndkomstGevinstTabObligationerMarkedBeloeb.xsd","xs:decimal"]
["KapitalIndkomstFinansielleKontrakter","skat2020:BeløbDanskType","KapitalIndkomstFinansielleKontrakterBeloeb.xsd","xs:decimal"]
["KapitalIndkomstReserveFondsUdlodningVærdiStigning","skat2020:BeløbDanskType","KapitalIndkomstReserveFondsUdlodningVaerdiStigningBeloeb.xsd","xs:decimal"]
["KapitalIndkomstUdbytteUdlodningInvesteringsForening","skat2020:BeløbDanskType","KapitalIndkomstUdbytteUdlodningInvesteringsForeningBeloeb.xsd","xs:decimal"]
["KapitalIndkomstNettoLejeIndtægt","skat2020:BeløbDanskType","KapitalIndkomstNettoLejeIndtaegtBeloeb.xsd","xs:decimal"]
["KapitalIndkomstGevinstTabObligationerInvesteringForening","skat2020:BeløbDanskType","KapitalIndkomstGevinstTabObligationerInvesteringForeningBeloeb.xsd","xs:decimal"]
["KapitalIndkomstRenteIndtægtVirksomhed","skat2020:BeløbType","KapitalIndkomstRenteIndtaegtVirksomhedBeloeb.xsd","xs:decimal"]
["KirkeskatBeløb","skat2020:BeløbDanskType","KirkeskatBeloeb.xsd","xs:decimal"]
["KirkeskatManueltNettoBeløb","skat2020:BeløbDanskType","KirkeskatManueltNettoBeloeb.xsd","xs:decimal"]
["KirkeskatNedslagPeriodeBeløb","skat2020:BeløbDanskType","KirkeskatNedslagPeriodeBeloeb.xsd","xs:decimal"]
["KommunalIndkomstskatBeløb","skat2020:BeløbDanskType","KommunalIndkomstskatBeloeb.xsd","xs:decimal"]
["KommunalIndkomstskatNedslagBeløb","skat2020:BeløbType","KommunalIndkomstskatNedslagBeloeb.xsd","xs:decimal"]
["KommunalIndkomstskatManueltNettoBeløb","skat2020:BeløbDanskType","KommunalIndkomstskatManueltNettoBeloeb.xsd","xs:decimal"]
["KommuneskatFradragBeløb","skat2020:BeløbDanskType","KommuneskatFradragBeloeb.xsd","xs:decimal"]
["KommuneskatFradragModregnetværdi","skat2020:BeløbDanskType","KommuneskatFradragModregnetvaerdiBeloeb.xsd","xs:decimal"]
["KonkursskatBeløb","skat2020:BeløbDanskType","KonkursskatBeloeb.xsd","xs:decimal"]
["KonkursskatManueltNettoBeløb","skat2020:BeløbDanskType","KonkursskatManueltNettoBeloeb.xsd","xs:decimal"]
["KunstnerVirksomhedOrdningIndkomstTilBeskatning","skat2020:BeløbDanskType","KunstnerVirksomhedOrdningIndkomstTilBeskatningBeloeb.xsd","xs:decimal"]
["KunstnerVirksomhedOrdningBeløbOverførtFraKonto","skat2020:BeløbDanskType","KunstnerVirksomhedOrdningBeloebOverfoertFraKontoBeloeb.xsd","xs:decimal"]
["LandKode","skat2020:AdresseLandKodeType","DKCC_CountryIdentificationCode.xsd","dkcc:CountryIdentificationCodeType"]
["LigningsmæssigtFradragAkasse","skat2020:BeløbDanskType","LigningsmaessigtFradragAkasseBeloeb.xsd","xs:decimal"]
["LigningsmæssigtFradragBørneDagplejereFiskere","skat2020:BeløbDanskType","LigningsmaessigtFradragBoerneDagplejereFiskereBeloeb.xsd","xs:decimal"]
["LigningsmæssigtFradragRejseUdgifter","skat2020:BeløbDanskType","LigningsmaessigtFradragRejseUdgifterBeloeb.xsd","xs:decimal"]
["LigningsmæssigtFradragFagligtKontingent","skat2020:BeløbDanskType","LigningsmaessigtFradragFagligtKontingentBeloeb.xsd","xs:decimal"]
["LigningsmæssigtFradragGaverForeninger","skat2020:BeløbDanskType","LigningsmaessigtFradragGaverForeningerBeloeb.xsd","xs:decimal"]
["LigningsmæssigtFradragGaverKulturForskning","skat2020:BeløbDanskType","LigningsmaessigtFradragGaverKulturForskningBeloeb.xsd","xs:decimal"]
["LigningsmæssigtFradragIndskudEtableringsKonto","skat2020:BeløbDanskType","LigningsmaessigtFradragIndskudEtableringsKontoBeloeb.xsd","xs:decimal"]
["LigningsmæssigtFradragKontingentVirksomhed","skat2020:BeløbDanskType","LigningsmaessigtFradragKontingentVirksomhedBeloeb.xsd","xs:decimal"]
["LigningsmæssigtFradragLøbendeYdelserForeninger","skat2020:BeløbDanskType","LigningsmaessigtFradragLoebendeYdelserForeningerBeloeb.xsd","xs:decimal"]
["LigningsmæssigtFradragUdgifterFrededeBygninger","skat2020:BeløbDanskType","LigningsmaessigtFradragUdgifterFrededeBygningerBeloeb.xsd","xs:decimal"]
["LigningsmæssigtFradragUdgifterServiceFradrag","skat2020:BeløbDanskType","LigningsmaessigtFradragUdgifterServiceFradragBeloeb.xsd","xs:decimal"]
["LigningsmæssigtFradragUnderholdsBidragBørneBidrag","skat2020:BeløbDanskType","LigningsmaessigtFradragUnderholdsBidragBoerneBidragBeloeb.xsd","xs:decimal"]
["LigningsmæssigtFradragØvrigeLønmodtagerUdgifter","skat2020:BeløbDanskType","LigningsmaessigtFradragOEvrigeLoenmodtagerUdgifterBeloeb.xsd","xs:decimal"]
["LigningsmæssigtFradragEfterlønsbidragGrænsegænger","skat2020:BeløbDanskType","LigningsmaessigtFradragEfterloensbidragGraensegaengerBeloeb.xsd","xs:decimal"]
["LigningsmæssigtFradragSøfradrag","skat2020:BeløbDanskType","LigningsmaessigtFradragSoefradragBeloeb.xsd","xs:decimal"]
["LigningsmæssigtFradragDISFradragAndenFart","skat2020:BeløbDanskType","LigningsmaessigtFradragDISFradragAndenFartBeloeb.xsd","xs:decimal"]
["LigningsmæssigtFradragBørneDagplejereStandard","skat2020:BeløbDanskType","LigningsmaessigtFradragBoerneDagplejereStandardBeloeb.xsd","xs:decimal"]
["LigningsmæssigtFradragMedarbejdendeÆgtefælleSygeArbejdsskadeForsikring","skat2020:BeløbDanskType","LigningsmaessigtFradragMedarbejdendeAegtefaelleSygeArbejdsskadeForsikringBeloeb.xsd","xs:decimal"]
["LigningsmæssigtFradragUdenlandskExemption","skat2020:BeløbDanskType","LigningsmaessigtFradragUdenlandskExemptionBeloeb.xsd","xs:decimal"]
["LigningmæssigtFradragUdenlandskCredit","skat2020:BeløbDanskType","LigningmaessigtFradragUdenlandskCreditBeloeb.xsd","xs:decimal"]
["MedarbejdendeÆgtefælleIndkomst","skat2020:BeløbDanskType","MedarbejdendeAegtefaelleIndkomstBeloeb.xsd","xs:decimal"]
["MedarbejdendeÆgtefælleIndkomstEfterAMBidrag","skat2020:BeløbDanskType","MedarbejdendeAegtefaelleIndkomstEfterAMBidragBeloeb.xsd","xs:decimal"]
["NedslagAktieskatDBOUnderOgOverBeløb","skat2020:BeløbDanskType","NedslagAktieskatDBOUnderOgOverBeloeb.xsd","xs:decimal"]
["NedslagAktieskatUdenlandskEjReguleretUnderOgOverGrundBeløb","skat2020:BeløbDanskType","NedslagAktieskatUdenlandskEjReguleretUnderOgOverGrundBeloeb.xsd","xs:decimal"]
["NedslagAktieskatDBOBeløb","skat2020:BeløbDanskType","NedslagAktieskatDBOBeloeb.xsd","xs:decimal"]
["NedslagAktieskatReguleretUdenlandskGrundBeløb","skat2020:BeløbDanskType","NedslagAktieskatReguleretUdenlandskGrundBeloeb.xsd","xs:decimal"]
["NedslagAktieskatUdenlandskOverGrundBeløb","skat2020:BeløbDanskType","NedslagAktieskatUdenlandskOverGrundBeloeb.xsd","xs:decimal"]
["NedslagAktieskatEjReguleretGrundBeløb","skat2020:BeløbDanskType","NedslagAktieskatEjReguleretGrundBeloeb.xsd","xs:decimal"]
["NedslagAktieskatUdenlandskEjReguleretBeløb","skat2020:BeløbDanskType","NedslagAktieskatUdenlandskEjReguleretBeloeb.xsd","xs:decimal"]
["NedslagBundskatUdenlandskVirksomhedOverskud","skat2020:BeløbDanskType","NedslagBundskatUdenlandskVirksomhedOverskudBeloeb.xsd","xs:decimal"]
["NedslagBundskatUdenlandskPersonligIndkomstGammelExemption","skat2020:BeløbDanskType","NedslagBundskatUdenlandskPersonligIndkomstGammelExemptionBeloeb.xsd","xs:decimal"]
["NedslagBundskatUdenlandskPersonligIndkomstExemption","skat2020:BeløbDanskType","NedslagBundskatUdenlandskPersonligIndkomstExemptionBeloeb.xsd","xs:decimal"]
["NedslagBundskatUdenlandskKapitalIndkomstVirksomhed","skat2020:BeløbDanskType","NedslagBundskatUdenlandskKapitalIndkomstVirksomhedBeloeb.xsd","xs:decimal"]
["NedslagBundskatUdenlandskKapitalIndkomstGammelExemption","skat2020:BeløbDanskType","NedslagBundskatUdenlandskKapitalIndkomstGammelExemptionBeloeb.xsd","xs:decimal"]
["NedslagBundskatUdenlandskKapitalIndkomstCredit","skat2020:BeløbDanskType","NedslagBundskatUdenlandskKapitalIndkomstCreditBeloeb.xsd","xs:decimal"]
["NedslagBundkskatUdenlandskPensionExemptionSærligOrdning","skat2020:BeløbDanskType","NedslagBundkskatUdenlandskPensionExemptionSaerligOrdningBeloeb.xsd","xs:decimal"]
["NedslagBundskatUdenlandskIndkomstHalvLempelse","skat2020:BeløbDanskType","NedslagBundskatUdenlandskIndkomstHalvLempelseBeloeb.xsd","xs:decimal"]
["NedslagBundskatUdenlandskIndkomst33A","skat2020:BeløbDanskType","NedslagBundskatUdenlandskIndkomst33ABeloeb.xsd","xs:decimal"]
["NedslagBundskatUdenlandskIndkomstCredit","skat2020:BeløbDanskType","NedslagBundskatUdenlandskIndkomstCreditBeloeb.xsd","xs:decimal"]
["NedslagBundskatUdenlandskIndkomstExemption","skat2020:BeløbDanskType","NedslagBundskatUdenlandskIndkomstExemptionBeloeb.xsd","xs:decimal"]
["NedslagBundskatUdenlandskPensionSærligOrdningCredit","skat2020:BeløbDanskType","NedslagBundskatUdenlandskPensionSaerligOrdningCreditBeloeb.xsd","xs:decimal"]
["NedslagBundskatUndelandskKapitalindkomstExemtion","skat2020:BeløbDanskType","NedslagBundskatUndelandskKapitalindkomstExemtionBeloeb.xsd","xs:decimal"]
["NedslagNegativKapitalIndkomstBeløb","skat2020:BeløbDanskType","NedslagNegativKapitalIndkomstBeloeb.xsd","xs:decimal"]
["NedslagNegativKapitalIndkomstÆgtefælle","skat2020:BeløbDanskType","NedslagNegativKapitalIndkomstAegtefaelleBeloeb.xsd","xs:decimal"]
["NedslagUdenlandskAktieudbytteCredit","skat2020:BeløbDanskType","NedslagUdenlandskAktieudbytteCreditBeloeb.xsd","xs:decimal"]
["NedslagUdenlandskIndkomst33A","skat2020:BeløbDanskType","NedslagUdenlandskIndkomst33ABeloeb.xsd","xs:decimal"]
["NedslagUdenlandskIndkomstGammelExemption","skat2020:BeløbDanskType","NedslagUdenlandskIndkomstGammelExemptionBeloeb.xsd","xs:decimal"]
["NedslagUdenlandskIndkomstPersonligIndkomstCredit","skat2020:BeløbDanskType","NedslagUdenlandskIndkomstPersonligIndkomstCreditBeloeb.xsd","xs:decimal"]
["NedslagUdenlandskIndkomstVirksomhedsbeskatningCredit","skat2020:BeløbDanskType","NedslagUdenlandskIndkomstVirksomhedsbeskatningCreditBeloeb.xsd","xs:decimal"]
["NedslagUdenlandskIndkomstHalvLempelse","skat2020:BeløbDanskType","NedslagUdenlandskIndkomstHalvLempelseBeloeb.xsd","xs:decimal"]
["NedslagUdenlandskIndkomstHalvLempelseMedAcontoAMBidrag","skat2020:BeløbDanskType","NedslagUdenlandskIndkomstHalvLempelseMedAcontoAMBidragBeloeb.xsd","xs:decimal"]
["NedslagUdenlandskKapitalIndkomstCredit","skat2020:BeløbDanskType","NedslagUdenlandskKapitalIndkomstCreditBeloeb.xsd","xs:decimal"]
["NedslagUdenlandskKapitalIndkomstBeløb","skat2020:BeløbDanskType","NedslagUdenlandskKapitalIndkomstBeloeb.xsd","xs:decimal"]
["NedslagUdenlandskKapitalIndkomst33G","skat2020:BeløbDanskType","NedslagUdenlandskKapitalIndkomst33GBeloeb.xsd","xs:decimal"]
["NedslagUdenlandskKapitalIndkomstGammelExemption","skat2020:BeløbDanskType","NedslagUdenlandskKapitalIndkomstGammelExemptionBeloeb.xsd","xs:decimal"]
["NedslagUdenlandskKapitalIndkomstVirksomhed","skat2020:BeløbDanskType","NedslagUdenlandskKapitalIndkomstVirksomhedBeloeb.xsd","xs:decimal"]
["NedslagUdenlandskKapitalIndkomstVirksomhedCredit","skat2020:BeløbDanskType","NedslagUdenlandskKapitalIndkomstVirksomhedCreditBeloeb.xsd","xs:decimal"]
["NedslagUdenlandskPensionCredit","skat2020:BeløbDanskType","NedslagUdenlandskPensionCreditBeloeb.xsd","xs:decimal"]
["NedslagUdenlandskPensionSærligOrdningCredit","skat2020:BeløbDanskType","NedslagUdenlandskPensionSaerligOrdningCreditBeloeb.xsd","xs:decimal"]
["NedslagUdenlandskPensionSærligOrdning","skat2020:BeløbDanskType","NedslagUdenlandskPensionSaerligOrdningBeloeb.xsd","xs:decimal"]
["NedslagUdenlandskPensionExemption","skat2020:BeløbDanskType","NedslagUdenlandskPensionExemptionBeloeb.xsd","xs:decimal"]
["NedslagUdenlandskPensionSærligOrdningExemption","skat2020:BeløbDanskType","NedslagUdenlandskPensionSaerligOrdningExemptionBeloeb.xsd","xs:decimal"]
["NedslagUdenlandskPensionFranskskatCredit","skat2020:BeløbDanskType","NedslagUdenlandskPensionFranskskatCreditBeloeb.xsd","xs:decimal"]
["NedslagUdenlandskPersonligIndkomstLønindtægtAMBidrag","skat2020:BeløbDanskType","NedslagUdenlandskPersonligIndkomstLoenindtaegtAMBidragBeloeb.xsd","xs:decimal"]
["NedslagUdenlandskPersonligIndkomstGammelExemptionAMBidrag","skat2020:BeløbDanskType","NedslagUdenlandskPersonligIndkomstGammelExemptionAMBidragBeloeb.xsd","xs:decimal"]
["NedslagUdenlandskPersonligIndkomstExemption","skat2020:BeløbDanskType","NedslagUdenlandskPersonligIndkomstExemptionBeloeb.xsd","xs:decimal"]
["NedslagUdenlandskVirksomhedBeløb","skat2020:BeløbDanskType","NedslagUdenlandskVirksomhedBeloeb.xsd","xs:decimal"]
["NedslagUdenlandskVirksomhedCredit","skat2020:BeløbDanskType","NedslagUdenlandskVirksomhedCreditBeloeb.xsd","xs:decimal"]
["NedslagUdenlandskVirksomhedOverskudAMBidrag","skat2020:BeløbDanskType","NedslagUdenlandskVirksomhedOverskudAMBidragBeloeb.xsd","xs:decimal"]
["NedslagUdenlandskVirksomhedOverskudRentekorrektionBidragAMBidrag","skat2020:BeløbDanskType","NedslagUdenlandskVirksomhedOverskudRentekorrektionBidragAMBidragBeloeb.xsd","xs:decimal"]
["ØvrigeOplysningerBeregningsGrundlagAcontoSkat","skat2020:BeløbType","OevrigeOplysningerBeregningsgrundlagAcontoSkatBeloeb.xsd","xs:decimal"]
["ØvrigeOplysningerBeregningsGrundlagAcontoSkatSuccession","skat2020:BeløbType","OevrigeOplysningerBeregningsgrundlagAcontoSkatSuccessionBeloeb.xsd","xs:decimal"]
["OpholdUdlandAntalDageMereEnd183","skat2020:Tekst1Type","OpholdUdlandAntalDageMereEnd183Indikator.xsd","xs:string"]
["OpholdUdlandPeriodeOver30Dage","skat2020:Tekst1Type","OpholdUdlandPeriodeOver30DageIndikator.xsd","xs:string"]
["OpholdUdlandPeriodeOver120Dage","skat2020:Tekst1Type","OpholdUdlandPeriodeOver120DageIndikator.xsd","xs:string"]
["OpholdUdlandPeriodeOver60Dage","skat2020:Tekst1Type","OpholdUdlandPeriodeOver60DageIndikator.xsd","xs:string"]
["OpholdUdlandMereEnd6Måneder","skat2020:Tekst1Type","OpholdUdlandMereEnd6MaanederIndikator.xsd","xs:string"]
["OpholdUdlandByggeAnlægMonteringPeriode","skat2020:Tekst1Type","OpholdUdlandByggeAnlaegMonteringPeriodeIndikator.xsd","xs:string"]
["OpholdUdlandByggeAnlægMonteringPeriode2","skat2020:Tekst1Type","OpholdUdlandByggeAnlaegMonteringPeriode2Indikator.xsd","xs:string"]
["OpholdUdlandOver365Dage","skat2020:Tekst1Type","OpholdUdlandOver365DageIndikator.xsd","xs:string"]
["PersonCPRNummer","skat2020:CPRNummerType","CPR_PersonCivilRegistrationIdentifier.xsd","cpr:PersonCivilRegistrationIdentifierType"]
["PersonFødselDato","skat2020:DatoType","DKCC_BirthDate.xsd","xs:date"]
["PersonligIndkomstLønIndkomst","skat2020:BeløbDanskType","PersonligIndkomstLoenIndkomstBeloeb.xsd","xs:decimal"]
["PersonligIndkomstPensionDagpengeStipendie","skat2020:BeløbDanskType","PersonligIndkomstPensionDagpengeStipendieBeloeb.xsd","xs:decimal"]
["PersonligIndkomstPrivatDagplejeHushjælp","skat2020:BeløbDanskType","PersonligIndkomstPrivatDagplejeHushjaelpBeloeb.xsd","xs:decimal"]
["PersonligIndkomstHonorar","skat2020:BeløbDanskType","PersonligIndkomstHonorarBeloeb.xsd","xs:decimal"]
["PersonligIndkomstUnderholdsbidrag","skat2020:BeløbDanskType","PersonligIndkomstUnderholdsbidragBeloeb.xsd","xs:decimal"]
["PersonligIndkomstGruppeLivsForsikringLegatPersonaleGoder","skat2020:BeløbDanskType","PersonligIndkomstGruppeLivsForsikringLegatPersonaleGoderBeloeb.xsd","xs:decimal"]
["PersonligIndkomstJubilæumsGratialeFratrædelsesGodtgørelse","skat2020:BeløbDanskType","PersonligIndkomstJubilaeumsGratialeFratraedelsesGodtgoerelseBeloeb.xsd","xs:decimal"]
["PersonligIndkomstAndenPersonligIndkomst","skat2020:BeløbDanskType","PersonligIndkomstAndenPersonligIndkomstBeloeb.xsd","xs:decimal"]
["PersonligIndkomstHædersGaver","skat2020:BeløbDanskType","PersonligIndkomstHaedersGaverBeloeb.xsd","xs:decimal"]
["PersonligIndkomstKapitalafkastAktierAnparter","skat2020:BeløbDanskType","PersonligIndkomstKapitalafkastAktierAnparterBeloeb.xsd","xs:decimal"]
["PersonligIndkomstHævningEtableringsKonto","skat2020:BeløbDanskType","PersonligIndkomstHaevningEtableringsKontoBeloeb.xsd","xs:decimal"]
["PersonligIndkomstHævningIværksætterKonto","skat2020:BeløbDanskType","PersonligIndkomstHaevningIvaerksaetterKontoBeloeb.xsd","xs:decimal"]
["PersonligIndkomstOverskudVirksomhedUdlejningEjendom","skat2020:BeløbType","PersonligIndkomstOverskudVirksomhedUdlejningEjendomBeloeb.xsd","xs:decimal"]
["PersonligIndkomstEjendomsAvance","skat2020:BeløbType","PersonligIndkomstEjendomsAvanceBeloeb.xsd","xs:decimal"]
["PersonligIndkomstOverskudVirksomhedUdlejningEjendomEfterAMBidrag","skat2020:BeløbType","PersonligIndkomstOverskudVirksomhedUdlejningEjendomEfterAMBidragBeloeb.xsd","xs:decimal"]
["PersonligIndkomstResultatAfVirksomhed","skat2020:BeløbType","PersonligIndkomstResultatAfVirksomhedBeloeb.xsd","xs:decimal"]
["PersonligIndkomstResultatAfVirksomhedEfterAMBidrag","skat2020:BeløbType","PersonligIndkomstResultatAfVirksomhedEfterAMBidragBeloeb.xsd","xs:decimal"]
["PersonligIndkomstUdlodningInvesteringsForeningVirksomhed","skat2020:BeløbType","PersonligIndkomstUdlodningInvesteringsForeningVirksomhedBeloeb.xsd","xs:decimal"]
["PersonligIndkomstVirksomhedRenteudgift","skat2020:BeløbType","PersonligIndkomstVirksomhedRenteudgiftBeloeb.xsd","xs:decimal"]
["PersonligIndkomstFradragUdenlandskeSocialeBidrag","skat2020:BeløbDanskType","PersonligIndkomstFradragUdenlandskeSocialeBidragBeloeb.xsd","xs:decimal"]
["PersonSelvangivelseIndkomstÅr","skat2020:IndkomstÅrType","AarIdentifikator_20080901.xsd","xs:gYear"]
["PersonSelvangivelseVirksomhedOphør","skat2020:MarkeringType","PersonSelvangivelseVirksomhedOphoerIndikator.xsd","xs:boolean"]
["PersonSelvangivelseVirksomhedOphørTidligere","skat2020:MarkeringType","PersonSelvangivelseVirksomhedOphoerTidligereIndikator.xsd","xs:boolean"]
["PersonSelvangivelseHenstandsbegæring","skat2020:MarkeringType","PersonSelvangivelseHenstandsbegaeringIndikator.xsd","xs:boolean"]
["PersonSelvangivelseBeskatningsordning","skat2020:Tekst1Type","PersonSelvangivelseBeskatningsordningKode.xsd","xs:string"]
["PersonSelvangivelseEjendomsoplysningAccept","skat2020:MarkeringType","PersonSelvangivelseEjendomsoplysningAcceptIndikator.xsd","xs:boolean"]
["PersonSelvangivelseEjendomsoplysningSupplement","skat2020:MarkeringType","PersonSelvangivelseEjendomsoplysningSupplementIndikator.xsd","xs:boolean"]
["PersonSelvangivelseRevisorindberetning","skat2020:KodeType","PersonSelvangivelseRevisorindberetningTekst.xsd","xs:string"]
["PersonSelvangivelseFradragHelårsomregning","skat2020:MarkeringType","PersonSelvangivelseFradragHelaarsomregningIndikator.xsd","xs:boolean"]
["PersonSkattepligtigIndkomstSkatBeløb","skat2020:BeløbDanskType","PersonSkattepligtigIndkomstSkatBeloeb.xsd","xs:decimal"]
["PersonSkattepligtigIndkomstSkatManueltNettoBeløb","skat2020:BeløbDanskType","PersonSkattepligtigIndkomstSkatManueltNettoBeloeb.xsd","xs:decimal"]
["PersonSkattepligtigIndkomstBeløbPeriodeNedslag","skat2020:BeløbDanskType","PersonSkattepligtigIndkomstBeloebPeriodeNedslagBeloeb.xsd","xs:decimal"]
["RegnskabAngivelseOplysningsfritagelse","skat2020:MarkeringType","RegnskabAngivelseOplysningsfritagelseIndikator.xsd","xs:boolean"]
["RegnskabAngivelseOplysningsfritagelseÅrsag","skat2020:KodeType","RegnskabAngivelseOplysningsfritagelseAarsagKode.xsd","xs:string"]
["RegnskabAngivelseRevisorbistand","skat2020:MarkeringType","RegnskabAngivelseRevisorbistandIndikator.xsd","xs:boolean"]
["RegnskabAngivelseRevisorbistandArt","skat2020:KodeType","RegnskabAngivelseRevisorbistandArtKode.xsd","xs:string"]
["RegnskabAngivelseRevisorerklæring","skat2020:KodeType","RegnskabAngivelseRevisorerklaeringKode.xsd","xs:string"]
["RegnskabAngivelseRevisorforbehold","skat2020:KodeType","RegnskabAngivelseRevisorforbeholdKode.xsd","xs:string"]
["RegnskabAngivelsePrivateAndeleArt","skat2020:KodeType","RegnskabAngivelsePrivateAndeleArtKode.xsd","xs:string"]
["RegnskabAngivelseGældseftergivelse","skat2020:MarkeringType","RegnskabAngivelseGaeldseftergivelseIndikator.xsd","xs:boolean"]
["ReguleretGevinstUdenlandsk","skat2020:BeløbDanskType","ReguleretGevinstUdenlandskBeloeb.xsd","xs:decimal"]
["ReguleretTabKontrakter","skat2020:BeløbDanskType","ReguleretTabKontrakterBeloeb.xsd","xs:decimal"]
["ReguleretTabKontrakterFremførsel","skat2020:BeløbDanskType","ReguleretTabKontrakterFremfoerselBeloeb.xsd","xs:decimal"]
["ReguleretTabKontrakterKode","skat2020:FinansielleKontrakterKodeType","ReguleretTabKontrakterKode.xsd","regulerettabkontrakterkode:ReguleretTabKontrakterKodeType"]
["ReguleretUdbytteUdenlandsk","skat2020:BeløbDanskType","ReguleretUdbytteUdenlandskBeloeb.xsd","xs:decimal"]
["ReguleretUdbytteUdenlandskKapitalIndkomst","skat2020:BeløbDanskType","ReguleretUdbytteUdenlandskKapitalIndkomstBeloeb.xsd","xs:decimal"]
["RenteudgiftUdenlandskEjendom","skat2020:BeløbDanskType","RenteudgiftUdenlandskEjendomBeloeb.xsd","xs:decimal"]
["RenteudgiftAndenUdenlandskGæld","skat2020:BeløbDanskType","RenteudgiftAndenUdenlandskGaeldBeloeb.xsd","xs:decimal"]
["RenteudgiftOffentligGæld","skat2020:BeløbDanskType","RenteudgiftOffentligGaeldBeloeb.xsd","xs:decimal"]
["RenteudgiftUdenlandskGældBeløb","skat2020:BeløbDanskType","RenteudgiftUdenlandskGaeldBeloeb.xsd","xs:decimal"]
["SærligIndkomstFlyvningIDanmark","skat2020:Tekst1Type","SaerligIndkomstFlyvningIDanmarkIndikator.xsd","xs:string"]
["SærligIndkomstSejladsIDanmark","skat2020:Tekst1Type","SaerligIndkomstSejladsIDanmarkIndikator.xsd","xs:string"]
["SærligIndkomstKulturaftale","skat2020:Tekst1Type","SaerligIndkomstKulturaftaleIndikator.xsd","xs:string"]
["SærligIndkomstOffentligStøtte","skat2020:Tekst1Type","SaerligIndkomstOffentligStoetteIndikator.xsd","xs:string"]
["SærligIndkomstPræmierPriser","skat2020:Tekst1Type","SaerligIndkomstPraemierPriserIndikator.xsd","xs:string"]
["SærligIndkomstTilfalderPerson","skat2020:Tekst1Type","SaerligIndkomstTilfalderPersonIndikator.xsd","xs:string"]
["SærligIndkomstTurne","skat2020:Tekst1Type","SaerligIndkomstTurneIndikator.xsd","xs:string"]
["SærligIndkomstDanskVelgørende","skat2020:Tekst1Type","SaerligIndkomstDanskVelgoerendeIndikator.xsd","xs:string"]
["SelvangivelseFeltIndholdBeløb","skat2020:BeløbPositivNegativ13Decimaler2Type","SelvangivelseFeltIndholdBeloeb.xsd","xs:decimal"]
["SelvstændigVirksomhedAndenKapitalindkomst","skat2020:BeløbDanskType","SelvstaendigVirksomhedAndenKapitalindkomstBeloeb.xsd","xs:decimal"]
["SelvstændigVirksomhedBiblioteksafgiftGodtgørelse","skat2020:BeløbDanskType","SelvstaendigVirksomhedBiblioteksafgiftGodtgoerelseBeloeb.xsd","xs:decimal"]
["SelvstændigVirksomhedBiblioteksafgiftGodtgørelseEfterAMBidrag","skat2020:BeløbDanskType","SelvstaendigVirksomhedBiblioteksafgiftGodtgoerelseEfterAMBidragBeloeb.xsd","xs:decimal"]
["ServicefradragAngivelseBeløb","skat2020:BeløbDanskType","ServicefradragAngivelseBeloeb.xsd","xs:integer"]
["ServicefradragBetalingDato","skat2020:DatoType","ServicefradragBetalingDato.xsd","xs:date"]
["ServicefradragArbejdstypeKode","skat2020:Tekst8Type","ServicefradragArbejdstypeKode.xsd","xs:string"]
["ServicefradragFritidsboligUdlejet","skat2020:MarkeringType","ServicefradragFritidsboligUdlejetIndikator.xsd","xs:boolean"]
["ServicefradragUdenlandskVirksomhedNummerEllerNavn","skat2020:Tekst30Type","ServicefradragUdenlandskVirksomhedNummerEllerNavnText.xsd","xs:string"]
["SkibGrønlandHeleÅret","skat2020:Tekst1Type","SkibGroenlandHeleAaretIndikator.xsd","xs:string"]
["SkibGrønlandsk","skat2020:Tekst1Type","SkibGroenlandskIndikator.xsd","xs:string"]
["SkibDanmarkHeleÅret","skat2020:Tekst1Type","SkibDanmarkHeleAaretIndikator.xsd","xs:string"]
["SkibFAS","skat2020:Tekst1Type","SkibFASIndikator.xsd","xs:string"]
["SkibRegistreringLand","skat2020:Tekst1Type","SkibRegistreringLandTekst.xsd","xs:string"]
["SkibOpgave","skat2020:Tekst1Type","SkibOpgaveIndikator.xsd","xs:string"]
["SkibSejladsFlereLande","skat2020:Tekst1Type","SkibSejladsFlereLandeIndikator.xsd","xs:string"]
["SkibSejladsIndreVandveje","skat2020:Tekst1Type","SkibSejladsIndreVandvejeIndikator.xsd","xs:string"]
["SkibFastBesætning","skat2020:Tekst1Type","SkibFastBesaetningIndikator.xsd","xs:string"]
["TopskatTotal","skat2020:BeløbDanskType","TopskatTotalBeloeb.xsd","xs:decimal"]
["TopskatManueltNettoBeløb","skat2020:BeløbDanskType","TopskatManueltNettoBeloeb.xsd","xs:decimal"]
["TopskatOverførtFraÆgtefælle","skat2020:BeløbDanskType","TopskatOverfoertFraAegtefaelleBeloeb.xsd","xs:decimal"]
["TopskatOverførtTilÆgtefælle","skat2020:BeløbDanskType","TopskatOverfoertTilAegtefaelleBeloeb.xsd","xs:decimal"]
["TopskatDISIndkomstNedslag","skat2020:BeløbDanskType","TopskatDISIndkomstNedslagBeloeb.xsd","xs:decimal"]
["TopskatUdenlandskIndkomstCreditNedslag","skat2020:BeløbDanskType","TopskatUdenlandskIndkomstCreditNedslagBeloeb.xsd","xs:decimal"]
["TopskatUdenlandskIndkomstExemptionNedslag","skat2020:BeløbDanskType","TopskatUdenlandskIndkomstExemptionNedslagBeloeb.xsd","xs:decimal"]
["TopskatUdenlandskIndkomstHalvLempelseNedslag","skat2020:BeløbDanskType","TopskatUdenlandskIndkomstHalvLempelseNedslagBeloeb.xsd","xs:decimal"]
["TopskatUdenlandskKapitalIndkomstCreditNedslag","skat2020:BeløbDanskType","TopskatUdenlandskKapitalIndkomstCreditNedslagBeloeb.xsd","xs:decimal"]
["TopskatUdenlandskKapitalIndkomstGammelExemptionNedslag","skat2020:BeløbDanskType","TopskatUdenlandskKapitalIndkomstGammelExemptionNedslagBeloeb.xsd","xs:decimal"]
["TopskatUdenlandskKapitalIndkomstVirksomhedNedslag","skat2020:BeløbDanskType","TopskatUdenlandskKapitalIndkomstVirksomhedNedslagBeloeb.xsd","xs:decimal"]
["TopskatUdenlandskPensionCreditNedslag","skat2020:BeløbDanskType","TopskatUdenlandskPensionCreditNedslagBeloeb.xsd","xs:decimal"]
["TopskatUdenlandskPensionExemptionSærligOrdningNedslag","skat2020:BeløbDanskType","TopskatUdenlandskPensionExemptionSaerligOrdningNedslagBeloeb.xsd","xs:decimal"]
["TopskatUdenlandskPensionSærligOrdningCreditNedslag","skat2020:BeløbDanskType","TopskatUdenlandskPensionSaerligOrdningCreditNedslagBeloeb.xsd","xs:decimal"]
["TopskatUdenlandskPersonligIndkomstExemptionNedslag","skat2020:BeløbDanskType","TopskatUdenlandskPersonligIndkomstExemptionNedslagBeloeb.xsd","xs:decimal"]
["TopskatUdenlandskVirksomhedOverskudNedslag","skat2020:BeløbDanskType","TopskatUdenlandskVirksomhedOverskudNedslagBeloeb.xsd","xs:decimal"]
["TopskatUdenlandskIndkomst33ANedslag","skat2020:BeløbDanskType","TopskatUdenlandskIndkomst33ANedslagBeloeb.xsd","xs:decimal"]
["TopskatUdenlandskKapitalIndkomstExemptionNedslag","skat2020:BeløbDanskType","TopskatUdenlandskKapitalIndkomstExemptionNedslagBeloeb.xsd","xs:decimal"]
["TopskatUdenlandskPersonligIndkomstGammelExemptionNedslag","skat2020:BeløbDanskType","TopskatUdenlandskPersonligIndkomstGammelExemptionNedslagBeloeb.xsd","xs:decimal"]
["UdenlandskAktieObligationsbaseretInvesteringBeløb","skat2020:BeløbDanskType","UdenlandskAktieObligationsbaseretInvesteringBeloeb.xsd","xs:decimal"]
["UdenlandskAktieAktiebaseretInvesteringBeløb","skat2020:BeløbDanskType","UdenlandskAktieAktiebaseretInvesteringBeloeb.xsd","xs:decimal"]
["UdenlandskAnsættelseOffentligErhverv","skat2020:Tekst1Type","UdenlandskAnsaettelseOffentligErhvervIndikator.xsd","xs:string"]
["UdenlandskAnsættelseTjenesteforhold","skat2020:Tekst1Type","UdenlandskAnsaettelseTjenesteforholdIndikator.xsd","xs:string"]
["UdenlandskAnsættelseArbejdsudlejet","skat2020:Tekst1Type","UdenlandskAnsaettelseArbejdsudlejetIndikator.xsd","xs:string"]
["UdenlandskAnsættelseFormål","skat2020:Tekst1Type","UdenlandskAnsaettelseFormaalIndikator.xsd","xs:string"]
["UdenlandskAnsættelseFritErhverv","skat2020:Tekst1Type","UdenlandskAnsaettelseFritErhvervIndikator.xsd","xs:string"]
["UdenlandskAnsættelseSædvanligArbejdsgiver","skat2020:Tekst1Type","UdenlandskAnsaettelseSaedvanligArbejdsgiverIndikator.xsd","xs:string"]
["UdenlandskAnsættelseTuristorganisation","skat2020:Tekst1Type","UdenlandskAnsaettelseTuristorganisationIndikator.xsd","xs:string"]
["UdenlandskAnsættelseAnsættelsesforholdType","skat2020:Tekst1Type","UdenlandskAnsaettelseAnsaettelsesforholdTypeTekst.xsd","xs:string"]
["UdenlandskAnsættelseStatsborgerskabMarkering","skat2020:Tekst1Type","UdenlandskAnsaettelseStatsborgerskabMarkeringIndikator.xsd","xs:string"]
["UdenlandskAnsættelseArbejdslandLigUdbetalingsland","skat2020:Tekst1Type","UdenlandskAnsaettelseArbejdslandLigUdbetalingslandTekst.xsd","xs:string"]
["UdenlandskArbejdsgiverVelgørende","skat2020:Tekst1Type","UdenlandskArbejdsgiverVelgoerendeIndikator.xsd","xs:string"]
["UdenlandskArbejdsgiverGrønland","skat2020:Tekst1Type","UdenlandskArbejdsgiverGroenlandIndikator.xsd","xs:string"]
["UdenlandskArbejdsgiverLand","skat2020:Tekst1Type","UdenlandskArbejdsgiverLandTekst.xsd","xs:string"]
["UdenlandskArbejdsgiverLedelse","skat2020:Tekst1Type","UdenlandskArbejdsgiverLedelseTekst.xsd","xs:string"]
["UdenlandskArbejdsgiverLandEjArbejdsland","skat2020:Tekst1Type","UdenlandskArbejdsgiverLandEjArbejdslandIndikator.xsd","xs:string"]
["UdenlandskArbejdsgiverFastDriftstedArbejdsland","skat2020:Tekst1Type","UdenlandskArbejdsgiverFastDriftstedArbejdslandTekst.xsd","xs:string"]
["UdenlandskArbejdsgiverKonsortie","skat2020:Tekst1Type","UdenlandskArbejdsgiverKonsortieIndikator.xsd","xs:string"]
["UdenlandskArbejdsgiverOffentlig","skat2020:Tekst1Type","UdenlandskArbejdsgiverOffentligIndikator.xsd","xs:string"]
["UdenlandskArbejdsgiverAmbassade","skat2020:Tekst1Type","UdenlandskArbejdsgiverAmbassadeIndikator.xsd","xs:string"]
["UdenlandskArbejdsgiverTuristoriganisationKommerciel","skat2020:Tekst1Type","UdenlandskArbejdsgiverTuristoriganisationKommercielIndikator.xsd","xs:string"]
["UdenlandskArbejdsgiverFastRepræsentation","skat2020:Tekst1Type","UdenlandskArbejdsgiverFastRepraesentationIndikator.xsd","xs:string"]
["UdenlandskArbejdsgiverKommerciel","skat2020:Tekst1Type","UdenlandskArbejdsgiverKommercielIndikator.xsd","xs:string"]
["UdenlandskFormueIndestående","skat2020:BeløbDanskType","UdenlandskFormueIndestaaendeBeloeb.xsd","xs:decimal"]
["UdenlandskFormueGæld","skat2020:BeløbDanskType","UdenlandskFormueGaeldBeloeb.xsd","xs:decimal"]
["UdenlandskKapitalIndkomstBeløbGammelExemption","skat2020:BeløbDanskType","UdenlandskKapitalIndkomstBeloebGammelExemptionBeloeb.xsd","xs:decimal"]
["UdenlandskKapitalIndkomstLejeindtægt","skat2020:BeløbDanskType","UdenlandskKapitalIndkomstLejeindtaegtBeloeb.xsd","xs:decimal"]
["UdenlandskKapitalIndkomstRenteindtægt","skat2020:BeløbDanskType","UdenlandskKapitalIndkomstRenteindtaegtBeloeb.xsd","xs:decimal"]
["UdenlandskKapitalIndkomstPensionsordningVærdiStigning","skat2020:BeløbType","UdenlandskKapitalIndkomstPensionsordningVaerdiStigningBeloeb.xsd","xs:decimal"]
["UdenlandskKapitalIndkomstAndenKapitalIndkomst","skat2020:BeløbType","UdenlandskKapitalIndkomstAndenKapitalIndkomstBeloeb.xsd","xs:decimal"]
["UdenlandskLigningmæssigtFradragLønindtægt","skat2020:BeløbDanskType","UdenlandskLigningmaessigtFradragLoenindtaegtBeloeb.xsd","xs:decimal"]
["UdenlandskLigningmæssigtFradragPersonligIndkomstHalvLempelse","skat2020:BeløbDanskType","UdenlandskLigningmaessigtFradragPersonligIndkomstHalvLempelseBeloeb.xsd","xs:decimal"]
["UdenlandskLigningmæssigtFradragVirksomhedIndkomst","skat2020:BeløbDanskType","UdenlandskLigningmaessigtFradragVirksomhedIndkomstBeloeb.xsd","xs:decimal"]
["UdenlandskLigningmæssigtFradragPersonligIndkomstGammelExemption","skat2020:BeløbDanskType","UdenlandskLigningmaessigtFradragPersonligIndkomstGammelExemptionBeloeb.xsd","xs:decimal"]
["UdenlandskPensionUdbetalingDanskBeskatning","skat2020:BeløbDanskType","UdenlandskPensionUdbetalingDanskBeskatningBeloeb.xsd","xs:decimal"]
["UdenlandskPensionUdbetalingCredit","skat2020:BeløbDanskType","UdenlandskPensionUdbetalingCreditBeloeb.xsd","xs:decimal"]
["UdenlandskPensionUdbetalingExemption","skat2020:BeløbDanskType","UdenlandskPensionUdbetalingExemptionBeloeb.xsd","xs:decimal"]
["UdenlandskPensionUdbetalingGammelExemption","skat2020:BeløbDanskType","UdenlandskPensionUdbetalingGammelExemptionBeloeb.xsd","xs:decimal"]
["UdenlandskPensionUdbetalingSærligOrdning","skat2020:BeløbDanskType","UdenlandskPensionUdbetalingSaerligOrdningBeloeb.xsd","xs:decimal"]
["UdenlandskPensionUdbetalingSærligOrdningExemption","skat2020:BeløbDanskType","UdenlandskPensionUdbetalingSaerligOrdningExemptionBeloeb.xsd","xs:decimal"]
["UdenlandskPersonligIndkomstLønindtægt","skat2020:BeløbDanskType","UdenlandskPersonligIndkomstLoenindtaegtBeloeb.xsd","xs:decimal"]
["UdenlandskPersonligIndkomstAndenIndkomstFraUdlArbejdsgiver","skat2020:BeløbDanskType","UdenlandskPersonligIndkomstAndenIndkomstFraUdlArbejdsgiverBeloeb.xsd","xs:decimal"]
["UdenlandskPersonligIndkomstBeløbHalvLempelse","skat2020:BeløbDanskType","UdenlandskPersonligIndkomstBeloebHalvLempelseBeloeb.xsd","xs:decimal"]
["UdenlandskPersonligIndkomstBeløbGammelExemption","skat2020:BeløbDanskType","UdenlandskPersonligIndkomstBeloebGammelExemptionBeloeb.xsd","xs:decimal"]
["UdenlandskPersonligIndkomstLempelseBetingelserLigningslov33A","skat2020:Tekst1Type","UdenlandskPersonligIndkomstLempelseBetingelserLigningslov33AIndikator.xsd","xs:string"]
["UdenlandskPersonligIndkomstType","skat2020:Tekst1Type","UdenlandskPersonligIndkomstTypeTekst.xsd","xs:string"]
["UdenlandskPersonligIndkomstSocialtSikretArbejdsland","skat2020:Tekst1Type","UdenlandskPersonligIndkomstSocialtSikretArbejdslandIndikator.xsd","xs:string"]
["UdenlandskPersonligIndkomstOverBeløbGrænse","skat2020:Tekst1Type","UdenlandskPersonligIndkomstOverBeloebGraenseIndikator.xsd","xs:string"]
["UdenlandskPersonligIndkomstDokumentation","skat2020:Tekst1Type","UdenlandskPersonligIndkomstDokumentationIndikator.xsd","xs:string"]
["UdenlandskPersonligIndkomstLønindtægtDanskBeskatning","skat2020:BeløbDanskType","UdenlandskPersonligIndkomstLoenindtaegtDanskBeskatningBeloeb.xsd","xs:decimal"]
["UdenlandskPersonligIndkomstLønindtægtDanskBeskatningEfterAMBidrag","skat2020:BeløbDanskType","UdenlandskPersonligIndkomstLoenindtaegtDanskBeskatningEfterAMBidragBeloeb.xsd","xs:decimal"]
["UdenlandskPersonligIndkomstLønindtægtUdenlandskBeskatning","skat2020:BeløbDanskType","UdenlandskPersonligIndkomstLoenindtaegtUdenlandskBeskatningBeloeb.xsd","xs:decimal"]
["UdenlandskPersonligIndkomstLønindtægtUdenlandskBeskatningEfterAMBidrag","skat2020:BeløbDanskType","UdenlandskPersonligIndkomstLoenindtaegtUdenlandskBeskatningEfterAMBidragBeloeb.xsd","xs:decimal"]
["UdenlandskPersonligIndkomstLønindtægtExemption","skat2020:BeløbDanskType","UdenlandskPersonligIndkomstLoenindtaegtExemptionBeloeb.xsd","xs:decimal"]
["UdenlandskPersonligIndkomstLønindtægtExemptionEfterAMBidrag","skat2020:BeløbDanskType","UdenlandskPersonligIndkomstLoenindtaegtExemptionEfterAMBidragBeloeb.xsd","xs:decimal"]
["UdenlandskPersonligIndkomstLønindtægtCredit","skat2020:BeløbDanskType","UdenlandskPersonligIndkomstLoenindtaegtCreditBeloeb.xsd","xs:decimal"]
["UdenlandskPersonligIndkomstLønindtægtCreditEfterAMBidrag","skat2020:BeløbDanskType","UdenlandskPersonligIndkomstLoenindtaegtCreditEfterAMBidragBeloeb.xsd","xs:decimal"]
["UdenlandskPersonligIndkomstBeløbHalvLempelseEfterAMBidrag","skat2020:BeløbDanskType","UdenlandskPersonligIndkomstBeloebHalvLempelseEfterAMBidragBeloeb.xsd","xs:decimal"]
["UdenlandskPersonligIndkomstBeløbGammelExemptionEfterAMBidrag","skat2020:BeløbDanskType","UdenlandskPersonligIndkomstBeloebGammelExemptionEfterAMBidragBeloeb.xsd","xs:decimal"]
["UdenlandskPersonligIndkomstAndenIndkomstFraUdlArbejdsgiverEfterAMBidrag","skat2020:BeløbDanskType","UdenlandskPersonligIndkomstAndenIndkomstFraUdlArbejdsgiverEfterAMBidragBeloeb.xsd","xs:decimal"]
["UdenlandskPersonligIndkomstPendlerArbejdslandBopælsland","skat2020:Tekst1Type","UdenlandskPersonligIndkomstPendlerArbejdslandBopaelslandIndikator.xsd","xs:string"]
["UdenlandskSelvstændigVirksomhedOverskud","skat2020:BeløbDanskType","UdenlandskSelvstaendigVirksomhedOverskudBeloeb.xsd","xs:decimal"]
["UdenlandskSelvstændigVirksomhedNettoRenter","skat2020:BeløbDanskType","UdenlandskSelvstaendigVirksomhedNettoRenterBeloeb.xsd","xs:decimal"]
["UdenlandskSelvstændigVirksomhedKontingent","skat2020:BeløbDanskType","UdenlandskSelvstaendigVirksomhedKontingentBeloeb.xsd","xs:decimal"]
["UdenlandskSkatBeløb","skat2020:BeløbDanskType","UdenlandskSkatBeloeb.xsd","xs:decimal"]
["UdenlandskSkatVirksomhedsIndkomst","skat2020:BeløbDanskType","UdenlandskSkatVirksomhedsIndkomstBeloeb.xsd","xs:decimal"]
["UdenlandskSkatKapitalIndkomst","skat2020:BeløbDanskType","UdenlandskSkatKapitalIndkomstBeloeb.xsd","xs:decimal"]
["UdenlandskSkatUdbytteskat","skat2020:BeløbDanskType","UdenlandskSkatUdbytteskatBeloeb.xsd","xs:decimal"]
["UdenlandskSkatEjendomskat","skat2020:BeløbDanskType","UdenlandskSkatEjendomskatBeloeb.xsd","xs:decimal"]
["UdenlandskSkatNordiskTræk","skat2020:JaNejType","UdenlandskSkatNordiskTraekIndikator.xsd","xs:boolean"]
["UdenlandskSkatDokumentation","skat2020:Tekst1Type","UdenlandskSkatDokumentationIndikator.xsd","xs:string"]
["UdenlandskSkatArbejdsgiverHjemland","skat2020:Tekst1Type","UdenlandskSkatArbejdsgiverHjemlandIndikator.xsd","xs:string"]
["UdenlandskSkattepligtMarkering","skat2020:Tekst1Type","UdenlandskSkattepligtMarkeringIndikator.xsd","xs:string"]
["UdenlandskSkattepligtHel","skat2020:Tekst1Type","UdenlandskSkattepligtHelIndikator.xsd","xs:string"]
["UdenlandskSkattepligtDelvis","skat2020:Tekst1Type","UdenlandskSkattepligtDelvisIndikator.xsd","xs:string"]
["UdenlandskSkattepligtBundgrænse","skat2020:Tekst1Type","UdenlandskSkattepligtBundgraenseIndikator.xsd","xs:string"]
["UdligningsskatBeløb","skat2020:BeløbDanskType","UdligningsskatBeloeb.xsd","xs:decimal"]
["UnderholdAftægtYdelse","skat2020:BeløbType","UnderholdAftaegtYdelseBeloeb.xsd","xs:decimal"]
["UnderholdÆgtefælleBidragMånedlig","skat2020:BeløbType","UnderholdAEgtefaelleBidragMaanedligBeloeb.xsd","xs:decimal"]
["UnderholdBørneBidragAftaltBeløbMånedlig","skat2020:BeløbType","UnderholdBoerneBidragAftaltBeloebMaanedligBeloeb.xsd","xs:decimal"]
["UnderholdBørneBidragNormalbidragProcentTillæg","skat2020:TalHel3Type","UnderholdBoerneBidragNormalbidragProcentTillaegProcent.xsd","xs:integer"]
["UnderholdBørneBidragDækningPeriodeStart","skat2020:DatoType","UnderholdBoerneBidragDaekningPeriodeStartDato.xsd","xs:date"]
["UnderholdBørneBidragDækningPeriodeSlut","skat2020:DatoType","UnderholdBoerneBidragDaekningPeriodeSlutDato.xsd","xs:date"]
["UnderholdBørneBidragBeløbDåb","skat2020:BeløbType","UnderholdBoerneBidragBeloebDaabBeloeb.xsd","xs:decimal"]
["UnderholdBørneBidragBeløbKonfirmation","skat2020:BeløbType","UnderholdBoerneBidragBeloebKonfirmationBeloeb.xsd","xs:decimal"]
["UnderholdÆgtefælleBidragPeriodeStart","skat2020:DatoType","UnderholdAEgtefaelleBidragPeriodeStartDato.xsd","xs:date"]
["UnderholdÆgtefælleBidragPeriodeSlut","skat2020:DatoType","UnderholdAEgtefaelleBidragPeriodeSlutDato.xsd","xs:date"]
["VirksomhedSENummer","skat2020:SENummerType","SKAT_VirksomhedSENummerIdentifikator.xsd","cvr:CVRnumberIdentifierType"]
["VirksomhedCVRNummer","skat2020:CVRNummerType","VirksomhedCVRNummerIdentifikator.xsd","xs:string"]
["VirksomhedOrdningIndkomstTilVirksomhedsbeskatning","skat2020:BeløbDanskType","VirksomhedOrdningIndkomstTilVirksomhedsbeskatningBeloeb.xsd","xs:decimal"]
["VirksomhedOrdningRentekorrektion","skat2020:BeløbDanskType","VirksomhedOrdningRentekorrektionBeloeb.xsd","xs:decimal"]
["VirksomhedOrdningKapitalafkast","skat2020:BeløbDanskType","VirksomhedOrdningKapitalafkastBeloeb.xsd","xs:decimal"]
["VirksomhedOrdningRentekorrektionEfterAMBidrag","skat2020:BeløbDanskType","VirksomhedOrdningRentekorrektionEfterAMBidragBeloeb.xsd","xs:decimal"]
["VirksomhedSkattetillægBeløb","skat2020:BeløbDanskType","VirksomhedSkattetillaegBeloeb.xsd","xs:decimal"]
["VirksomhedsskatBeløb","skat2020:BeløbDanskType","VirksomhedsskatBeloeb.xsd","xs:decimal"]
["VirksomhedsskatNedslagBeløb","skat2020:BeløbDanskType","VirksomhedsskatNedslagBeloeb.xsd","xs:decimal"]
["AdvisNummer","skat2020:TalHel5Type","AdvisIdentifier.xsd","xs:integer"]
["AdvisTekst","skat2020:TekstLangType","AdvisTekst.xsd","xs:string"]
["AlderspensionAfgiftsBeløb20PctOver5År","skat2020:BeløbDanskType","AlderspensionAfgiftsBeloeb20PctOver5AArBeloeb.xsd","xs:decimal"]
["AlderspensionAfgiftsBeløb20PctUnder6År","skat2020:BeløbDanskType","AlderspensionAfgiftsBeloeb20PctUnder6AArBeloeb.xsd","xs:decimal"]
["AlderspensionAfgiftsBeløb40PctDiskvalificeret","skat2020:BeløbDanskType","AlderspensionAfgiftsBeloeb40PctDiskvalificeretBeloeb.xsd","xs:decimal"]
["AlderspensionAfgiftsBeløb4Pct","skat2020:BeløbDanskType","AlderspensionAfgiftsBeloeb4PctBeloeb.xsd","xs:decimal"]
["AlderspensionAfgiftsberegning20PctOg40Pct","skat2020:BeløbDanskType","AlderspensionAfgiftsberegning20PctOg40PctBeloeb.xsd","xs:decimal"]
["AlderspensionAfgiftsberegning4Pct","skat2020:BeløbDanskType","AlderspensionAfgiftsberegning4PctBeloeb.xsd","xs:decimal"]
["AlderspensionDiskvalifikationKode","skat2020:KodeEtTegnType","AlderspensionDiskvalifikationKode.xsd","xs:string"]
["DelårSpecifikationBiblioteksAfgift","skat2020:BeløbType","DelaarSpecifikationBiblioteksafgiftBeloeb.xsd","xs:decimal"]
["DummyMarkering","skat2020:MarkeringType","DummyMarkeringIndikator.xsd","xs:boolean"]
["EjendomsavanceAngivelseGenanbringelsePlacering","skat2020:KodeEtCifferStartNulType","EjendomsavanceGenanbringelsePlaceringKode.xsd","xs:string"]
["IndberetterautorisationUdløbDato","skat2020:DatoType","IndberetterautorisationUdloebDato.xsd","xs:date"]
["KapitalIndkomstAndenGældSURenteudgift","skat2020:BeløbType","KapitalindkomstAndenGaeldSURenteudgiftBeloeb.xsd","xs:decimal"]
["KapitalIndkomstAndenKapitalIndkomstVirksomhed","skat2020:BeløbType","KapitalindkomstAndenKapitalindkomstVirksomhedBeloeb.xsd","xs:decimal"]
["KapitalIndkomstEjendomsAvance","skat2020:BeløbType","KapitalindkomstEjendomsavanceBeloeb.xsd","xs:decimal"]
["KapitalIndkomstKapitalafkastOrdningen","skat2020:BeløbType","KapitalindkomstKapitalafkastordningenBeloeb.xsd","xs:decimal"]
["KapitalIndkomstKapitalafkastVirksomhedOrdningen","skat2020:BeløbType","KapitalindkomstKapitalafkastVirksomhedordningenBeloeb.xsd","xs:decimal"]
["KapitalIndkomstOverskudOphørSkibsVirksomhed","skat2020:BeløbType","KapitalindkomstOverskudOphoerSkibsvirksomhedBeloeb.xsd","xs:decimal"]
["KapitalIndkomstOverskudSkibsVirksomhed","skat2020:BeløbType","KapitalindkomstOverskudSkibsvirksomhedBeloeb.xsd","xs:decimal"]
["KapitalIndkomstPengeinstitutRenteudgift","skat2020:BeløbType","KapitalindkomstPengeinstitutRenteudgiftBeloeb.xsd","xs:decimal"]
["KapitalIndkomstRealkreditinstitutRenteudgift","skat2020:BeløbType","KapitalindkomstRealkreditinstitutRenteudgiftBeloeb.xsd","xs:decimal"]
["KapitalIndkomstRentekorrektion","skat2020:BeløbType","KapitalindkomstRentekorrektionBeloeb.xsd","xs:decimal"]
["KapitalIndkomstStudielånRenteudgift","skat2020:BeløbType","KapitalindkomstStudielaanRenteudgiftBeloeb.xsd","xs:decimal"]
["KapitalIndkomstUdlodningInvesteringsForeningVirksomhed","skat2020:BeløbType","KapitalindkomstUdlodningInvesteringsforeningVirksomhedBeloeb.xsd","xs:decimal"]
["KapitalIndkomstVirksomhedRenteudgift","skat2020:BeløbType","KapitalindkomstVirksomhedRenteudgiftBeloeb.xsd","xs:decimal"]
["KonjunkturudligningsskatHenlæggelse","skat2020:BeløbDanskType","KonjunkturudligningsskatHenlaeggelseBeloeb.xsd","xs:decimal"]
["LigningsmæssigtFradragEkstraPensionsfradragBeløb","skat2020:BeløbDanskType","LigningsmaessigtFradragEkstraPensionsfradragBeloeb.xsd","xs:decimal"]
["LigningsmæssigtFradragJobFradragBeløb","skat2020:BeløbDanskType","LigningsmaessigtFradragJobFradragBeloeb.xsd","xs:decimal"]
["MyndighedNummer","skat2020:MyndighedNummerType","CPR_AuthorityCode.xsd","cpr:AuthorityCodeType"]
["NedslagBundskatUdenlandskPensionCredit","skat2020:BeløbDanskType","NedslagBundskatUdenlandskPensionCreditBeloeb.xsd","xs:decimal"]
["PersonligIndkomstAndenPersonligIndkomstEfterAMBidrag","skat2020:BeløbType","PersonligIndkomstAndenPersonligIndkomstEfterAMBidragBeloeb.xsd","xs:decimal"]
["PersonligIndkomstFradragGæsteStuderendeEfter","skat2020:BeløbType","PersonligIndkomstFradragGaesteStuderendeEfterBeloeb.xsd","xs:decimal"]
["PersonligIndkomstFradragGæsteStuderendeFør","skat2020:BeløbType","PersonligIndkomstFradragGaesteStuderendeFoerBeloeb.xsd","xs:decimal"]
["PersonligIndkomstFradragIndskudIværksætterKonto","skat2020:BeløbType","PersonligIndkomstFradragIndskudIvaerksaetterKontoBeloeb.xsd","xs:decimal"]
["PersonligIndkomstFradragMedarbejdendeÆgtefælle","skat2020:BeløbType","PersonligIndkomstFradragMedarbejdendeAegtefaelleBeloeb.xsd","xs:decimal"]
["PersonligIndkomstHonorarEfterAMBidrag","skat2020:BeløbDanskType","PersonligIndkomstHonorarEfterAMBidragBeloeb.xsd","xs:decimal"]
["PersonligIndkomstIndkomstVirksomhedsBeskatning","skat2020:BeløbType","PersonligIndkomstIndkomstVirksomhedsBeskatningBeloeb.xsd","xs:decimal"]
["PersonligIndkomstJubilæumsGratialeFratrædelsesGodtgørelseEfterAMBidrag","skat2020:BeløbDanskType","PersonligIndkomstJubilaeumsGratialeFratraedelsesGodtgoerelseEfterAMBidragBeloeb.xsd","xs:decimal"]
["PersonligIndkomstLønIndkomstEfterAM","skat2020:BeløbType","PersonligIndkomstLoenIndkomstEfterAMBeloeb.xsd","xs:decimal"]
["PersonligIndkomstOverførtKonjunkturUdligning","skat2020:BeløbType","PersonligIndkomstOverfoertKonjunkturUdligningBeloeb.xsd","xs:decimal"]
["PersonligIndkomstOverførtKonjunkturUdligningProcent","skat2020:ProcentType","PersonligIndkomstOverfoertKonjunkturUdligningProcent.xsd","xs:decimal"]
["PersonligIndkomstOverførtKonjunkturUdligningSum","skat2020:BeløbType","PersonligIndkomstOverfoertKonjunkturUdligningSumBeloeb.xsd","xs:decimal"]
["PersonligIndkomstOverførtOpsparetOverskud","skat2020:BeløbType","PersonligIndkomstOverfoertOpsparetOverskudBeloeb.xsd","xs:decimal"]
["PersonligIndkomstOverførtOpsparetOverskudProcent","skat2020:ProcentType","PersonligIndkomstOverfoertOpsparetOverskudProcent.xsd","xs:decimal"]
["PersonligIndkomstOverførtOpsparetOverskudSuccession","skat2020:BeløbType","PersonligIndkomstOverfoertOpsparetOverskudSuccessionBeloeb.xsd","xs:decimal"]
["PersonligIndkomstOverførtOpsparetOverskudSuccessionProcent","skat2020:ProcentType","PersonligIndkomstOverfoertOpsparetOverskudSuccessionProcent.xsd","xs:decimal"]
["PersonligIndkomstOverførtOpsparetOverskudSuccessionSum","skat2020:BeløbType","PersonligIndkomstOverfoertOpsparetOverskudSuccessionSumBeloeb.xsd","xs:decimal"]
["PersonligIndkomstOverførtOpsparetOverskudSum","skat2020:BeløbType","PersonligIndkomstOverfoertOpsparetOverskudSumBeloeb.xsd","xs:decimal"]
["PersonligIndkomstPrivatDagplejeHushjælpEfterAMBidrag","skat2020:BeløbDanskType","PersonligIndkomstPrivatDagplejeHushjaelpEfterAMBidragBeloeb.xsd","xs:decimal"]
["PersonligIndkomstPrivatLivsvarigPensionsOrdning","skat2020:BeløbType","PersonligIndkomstPrivatLivsvarigPensionsOrdningBeloeb.xsd","xs:decimal"]
["PersonligIndkomstRenteIndtægtVirksomhed","skat2020:BeløbType","PersonligIndkomstRenteIndtaegtVirksomhedBeloeb.xsd","xs:decimal"]
["PersonligIndkomstTilbageBetalingKontantHjælpIntroYdelse","skat2020:BeløbType","PersonligIndkomstTilbageBetalingKontantHjaelpIntroYdelseBeloeb.xsd","xs:decimal"]
["PersonligIndkomstTotalEfterAMBidrag","skat2020:BeløbDanskType","PersonligIndkomstTotalEfterAMBidragBeloeb.xsd","xs:decimal"]
["PersonligIndkomstUnderskudVirksomhed","skat2020:BeløbType","PersonligIndkomstUnderskudVirksomhedBeloeb.xsd","xs:decimal"]
["PersonligIndkomstVirksomhedsBeskatningKonjunktur","skat2020:BeløbType","PersonligIndkomstVirksomhedsBeskatningKonjunkturBeloeb.xsd","xs:decimal"]
["PersonligIndkomstØvrigeFradragPersonligIndkomst","skat2020:BeløbType","PersonligIndkomstOevrigeFradragPersonligIndkomstBeloeb.xsd","xs:decimal"]
["PersonNavnEfterNavn","skat2020:NavnType","DKCC_PersonSurnameName.xsd","dkcc:PersonSurnameNameType"]
["PersonNavnForNavn","skat2020:NavnType ","DKCC_PersonGivenName.xsd","dkcc:PersonGivenNameType"]
["RenteUdgiftAndenGældGældTilPrivat","skat2020:BeløbType","RenteUdgiftAndenGaeldGaeldTilPrivatBeloeb.xsd","xs:decimal"]
["RenteUdgiftAndenGældLånMedMereEndToEjere","skat2020:BeløbType","RenteUdgiftAndenGaeldLaanMedMereEndToEjereBeloeb.xsd","xs:decimal"]
["RenteUdgiftAndenGældStatsgarantStudielånIPengeinstitut","skat2020:BeløbType","RenteUdgiftAndenGaeldStatsgarantStudielaanIPengeinstitutBeloeb.xsd","xs:decimal"]
["RenteUdgiftAndenGældStiftelseProvision","skat2020:BeløbType","RenteUdgiftAndenGaeldStiftelseProvisionBeloeb.xsd","xs:decimal"]
["SagHandlingType","skat2020:Tekst1Type","SagHandlingTypeTekst.xsd","xs:string"]
["SkibNationalitet","skat2020:Tekst1Type","SkibNationalitetIdentifikator.xsd","xs:string"]
["SlutOpgørelseFilIndhold","skat2020:FilType","OpgoerelseFilIndholdData.xsd","xs:base64Binary"]
["ToFamilieBenyttelseKode","skat2020:TalHel1Type","ToFamilieBenyttelseKode.xsd","xs:integer"]
["ToFamilieEnhedsløbeNummer","skat2020:TalHel1Type","ToFamilieEnhedsloebeNummerIdentifikator.xsd","xs:integer"]
["UdenlandskFormueAktieBevisKursværdi","skat2020:BeløbDanskType","UdenlandskFormueAktieBevisKursvaerdiBeloeb.xsd","xs:decimal"]
["UdenlandskFormueFastEjendom","skat2020:BeløbDanskType","UdenlandskFormueFastEjendomBeloeb.xsd","xs:decimal"]
["UdenlandskKapitalIndkomstBeløb","skat2020:BeløbDanskType","UdenlandskKapitalIndkomstBeloeb.xsd","xs:decimal"]
["UdviklerSENummer","skat2020:SENummerType","UdviklerSENummerIdentifikator.xsd","xs:integer"]
["UdviklerUnikIdentifikationskode","skat2020:TekstKortType","UdviklerUnikIdentifikationskodeIdentifikator.xsd","xs:string"]
["UnikIdentifikationskode","skat2020:UUIDType","UnikIdentifikationskodeIdentifikator.xsd","xs:string"]
["ÅrligSkatteOplysningBeregnetSkat","skat2020:BeløbType","AarligSkatteOplysningBeregnetSkatBeloeb.xsd","xs:decimal"]
["ÅrligSkatteOplysningForskudSkat","skat2020:BeløbType","AarligSkatteoplysningForskudSkatBeloeb.xsd","xs:decimal"]
["ÅrligSkatteOplysningIndkomstÅr","skat2020:AarType","AarIdentifikator_20080901.xsd","xs:gYear"]
["ÅrligSkatteOplysningKapitalIndkomst","skat2020:BeløbType","AarligSkatteOplysningKapitalindkomstBeloeb.xsd","xs:decimal"]
["ÅrligSkatteOplysningLigningsmæssigtFradrag","skat2020:BeløbType","AarligSkatteOplysningLigningsmaessigtFradragBeloeb.xsd","xs:decimal"]
["ÅrligSkatteOplysningOverskydendeSkat","skat2020:BeløbType","AarligSkatteOplysningOverskydendeSkatBeloeb.xsd","xs:decimal"]
["ÅrligSkatteOplysningPersonligIndkomst","skat2020:BeløbType","AarligSkatteOplysningPersonligIndkomstBeloeb.xsd","xs:decimal"]
["ÅrligSkatteOplysningRestSkat","skat2020:BeløbType","AarligSkatteOplysningRestskatBeloeb.xsd","xs:decimal"]
["ÅrligSkatteOplysningSkattePligtigIndkomst","skat2020:BeløbType","AarligSkatteOplysningSkattepligtigIndkomstBeloeb.xsd","xs:decimal"]
["NedslagUdenlandskIndkomstVirksomhedsbeskatning","skat2020:BeløbDanskType","NedslagUdenlandskIndkomstVirksomhedsbeskatningBeloeb.xsd","xs:decimal"]

{"sheet":"Temp","index":5,"n_rows":33,"n_cols":5,"rows_kept":33,"cut":false,"hidden":false,"merged":[]}
[]
[]
[]
[]
[]
[]
[]
[null,null,"RapportOplysning.xsd","RapportOplysningNummer","fase2_1:TalHelType"]
[null,null,"RapportOplysning.xsd","RapportOplysningNavn","fase2_1:TekstKortType"]
[null,null,"RapportOplysningBeloeb.xsd","RapportOplysningBeløbBeløb","fase2_1:BeløbType"]
[null,null,"RapportOplysningBeloeb.xsd","RapportOplysningBeløbKvalifikator","fase2_1:KodeType"]
[null,null,"RapportOplysningIdentifikation.xsd","RapportOplysningIdentifikationKvalifikator","fase2_1:KodeType"]
[null,null,"RapportOplysningKvantum.xsd","RapportOplysningKvantumKvalifikator","fase2_1:KodeType"]
[null,null,"RapportOplysningKvantum.xsd","RapportOplysningKvantumAntal","fase2_1:TalFlydendeType"]
[null,null,"RapportOplysningKvantum.xsd","RapportOplysningKvantumEnhedKode","fase2_1:KodeType"]
[null,null,"RapportOplysningMarkering.xsd","RapportOplysningMarkeringTekst","fase2_1:TekstKortType"]
[null,null,"RapportOplysningMarkering.xsd","RapportOplysningMarkeringKode","fase2_1:KodeType"]
[null,null,"RapportOplysningMarkering.xsd","RapportOplysningMarkeringKvalifikator","fase2_1:KodeType"]
[null,null,"RapportOplysningPeriode.xsd","RapportOplysningPeriodeKvalifikator","fase2_1:KodeType"]
[null,null,"RapportOplysningPeriode.xsd","RapportOplysningPeriodeÅr","fase2_1:AarType"]
[null,null,"RapportOplysningPeriode.xsd","RapportOplysningPeriodeKvartal","fase2_1:KodeEtCifferStartEtType"]
[null,null,"RapportOplysningPeriode.xsd","RapportOplysningPeriodeMåned","fase2_1:MånedType"]
[null,null,"RapportOplysningPeriode.xsd","RapportOplysningPeriodeDato","fase2_1:DatoType"]
[null,null,"RapportOplysningPeriode.xsd","RapportOplysningPeriodeStartÅr","fase2_1:AarType"]
[null,null,"RapportOplysningPeriode.xsd","RapportOplysningPeriodeSlutÅr","fase2_1:AarType"]
[null,null,"RapportOplysningPeriode.xsd","RapportOplysningPeriodeStartDato","fase2_1:DatoType"]
[null,null,"RapportOplysningPeriode.xsd","RapportOplysningPeriodeSlutDato","fase2_1:DatoType"]
[null,null,"RapportOplysningProcent.xsd","RapportOplysningProcentKvalifikator","fase2_1:KodeType"]
[null,null,"RapportOplysningProcent.xsd","RapportOplysningProcentProcenttal","fase2_1:ProcentType"]
[null,null,"RapportOplysningReference.xsd","RapportOplysningReferenceTekst","fase2_1:TekstLangType"]
[null,null,"RapportOplysningReference.xsd","RapportOplysningReferenceKvalifikator","fase2_1:KodeType"]
[null,null,"RapportOplysningSekvens.xsd","RapportOplysningSekvensNummer","fase2_1:IDType"]
[null,null,"RapportOplysningSekvens.xsd","RapportOplysningSekvensNavn","fase2_1:TekstKortType"]